date,department/service,beneficiary,amount,summary of purpose,category,transaction number
01.10.2016,ASSET MANAGEMENT,STANDAGE & CO LTD,265.00,ADAPTATIONS,BUILDING R&M,5902215313
01.10.2016,ENVIRONMENT AND LEISURE,CONWAY AECOM LTD,"21,757.67",CAPITAL PS (LEISURE),CONSTR'N SUB CONTRACT - NON CERTIFICATED,5902214514
01.10.2016,ENVIRONMENT DIRECTORATE,BELL BRUSH CO LTD,607.50,MANAGEMENT TEAM,MATERIALS,5902214448
01.10.2016,F & C S EXCLUDING CORPORATE BUDGETS,CIPFA,750.00,CIPFA TRAINEES,TRAINING,5902214299
01.10.2016,F & C S EXCLUDING CORPORATE BUDGETS,CIPFA,750.00,CIPFA TRAINEES,TRAINING,5902214299
01.10.2016,F & C S EXCLUDING CORPORATE BUDGETS,CIPFA,750.00,CIPFA TRAINEES,TRAINING,5902214302
01.10.2016,F & C S EXCLUDING CORPORATE BUDGETS,CIPFA,750.00,CIPFA TRAINEES,TRAINING,5902214302
01.10.2016,F & C S EXCLUDING CORPORATE BUDGETS,CIPFA,750.00,CIPFA TRAINEES,TRAINING,5902214305
01.10.2016,F & C S EXCLUDING CORPORATE BUDGETS,CIPFA,750.00,CIPFA TRAINEES,TRAINING,5902214305
01.10.2016,F & C S EXCLUDING CORPORATE BUDGETS,CIPFA,750.00,CIPFA TRAINEES,TRAINING,5902214309
01.10.2016,F & C S EXCLUDING CORPORATE BUDGETS,CIPFA,750.00,CIPFA TRAINEES,TRAINING,5902214309
02.10.2016,ASSET MANAGEMENT,M E HORSTEAD,360.00,ADAPTATIONS,BUILDING R&M,5902215431
02.10.2016,ENVIRONMENT AND LEISURE,WESTCO TRADING LTD,"2,970.00",CAPITAL PS (LEISURE),CONSTRUCTION FEES - ARCHITECT,5902215076
02.10.2016,ENVIRONMENT DIRECTORATE,SOUTHWARK NEWSPAPER LTD,312.00,STREET WORKS OVERHEADS,MARKETING & PUBLICITY SERVICES,5902215514
02.10.2016,ENVIRONMENT DIRECTORATE,SOUTHWARK NEWSPAPER LTD,288.00,STREET WORKS OVERHEADS,MARKETING & PUBLICITY SERVICES,5902215515
02.10.2016,ENVIRONMENT DIRECTORATE,SOUTHWARK NEWSPAPER LTD,288.00,STREET WORKS OVERHEADS,MARKETING & PUBLICITY SERVICES,5902215517
02.10.2016,ENVIRONMENT DIRECTORATE,SOUTHWARK NEWSPAPER LTD,324.00,STREET WORKS OVERHEADS,MARKETING & PUBLICITY SERVICES,5902215519
02.10.2016,ENVIRONMENT DIRECTORATE,SOUTHWARK NEWSPAPER LTD,288.00,STREET WORKS OVERHEADS,MARKETING & PUBLICITY SERVICES,5902215520
02.10.2016,HOUSING HRA,A & E ELKINS LTD,"262,605.70",CAPITAL PS (HRA),CONSTRUCTION MAIN CONTRACT -CERTIFICATED,2102568688
02.10.2016,HOUSING HRA,FAIRVIEW NEW HOMES LTD,"122,002.00",CAPITAL PS (HRA),LAND & BUILDINGS ACQUISITION,5902215384
02.10.2016,MODERNISATION HGF,WYNNE BIER CONSULTANCY LTD,360.00,CORP. TRAINING BUDGETS,TRAINING,5902214450
02.10.2016,SOUTHWARK BUILDING SERVICES,ORANGE PERSONAL COMMUNICATIONS,"5,253.58",ICT & COMMUNICATIONS,TELEPHONES (MOBILES),5902215143
03.10.2016,ADULT SOCIAL CARE,REDACTED PERSONAL DATA,-484.32,LD LTS 18-64,DISCRETIONARY FLEXIBLE FEES & INCOME,2102571065
03.10.2016,ADULT SOCIAL CARE,REDACTED PERSONAL DATA,484.32,LD LTS 18-64,PAYMENTS TO CLIENTS (DIRECT PAYMENTS),2102571253
03.10.2016,ADULT SOCIAL CARE,REDACTED PERSONAL DATA,314.00,MH LTS 18-64,PAYMENTS TO CLIENTS (DIRECT PAYMENTS),2102571696
03.10.2016,ADULT SOCIAL CARE,REDACTED PERSONAL DATA,-314.00,MH LTS 18-64,DISCRETIONARY FLEXIBLE FEES & INCOME,2102571697
03.10.2016,CHILDREN'S SERVICES,INTERSERVE HEALTHCARE,481.05,HOME 2 SCHOOL TRANSPORT,AGENCY STAFF,5902215068
03.10.2016,CHILDREN'S SERVICES,DULWICH STORAGE COMPANY,460.00,YOUTH SPECIALIST TEAM,EQUIPMENT PURCHASE & REPAIR,5902214719
03.10.2016,DULWICH COMMUNITY COUNCIL,DULWICH SOCIETY ,"5,000.00",,GRANT,CHEQUE PAYMENT
03.10.2016,ENVIRONMENT DIRECTORATE,AMETHYST HORTICULTURE LTD,329.20,GROUNDS MAINTENANCE - GENERAL,MATERIALS,5902214978
03.10.2016,F & C S EXCLUDING CORPORATE BUDGETS,DSI BILLING SERVICES LTD,"2,538.60",ADMINISTRATIVE SUPPORT,POSTAGES,5902215006
03.10.2016,LEISURE DIRECTORATE,TELESHORE UK LTD,"1,791.00",CREMATORIUM,MATERIALS,5902214606
03.10.2016,LEISURE DIRECTORATE,ASBESTOS FIRST LTD,"4,972.00",FACILITIES MAINTENANCE,BUILDING R&M,5902214797
03.10.2016,MODERNISATION,BIFFA WASTE SERVICES LTD,300.04,COMMERCIAL PROPERTIES,REFUSE COLLECTION CONTRACT,5902215357
03.10.2016,MODERNISATION HGF,MBM SAFEGUARDING CHILDREN LTD,"1,200.00",SAFEGUARDING,TRAINING,5902214806
03.10.2016,RESIDENT SERVICES,RUSKIN PARK HOUSE LTD,705.63,CAMBERWELL,RENTS,5902214892
03.10.2016,RESIDENT SERVICES,RUSKIN PARK HOUSE LTD,705.63,CAMBERWELL,RENTS,5902214903
03.10.2016,RESIDENT SERVICES,RUSKIN PARK HOUSE LTD,753.63,CAMBERWELL,RENTS,5902214907
03.10.2016,SOUTHWARK BUILDING SERVICES,MASHER BROTHERS,"2,888.75",BUSINESS SUPPORT,OTHER CONTRACTORS,2102570983
03.10.2016,SOUTHWARK BUILDING SERVICES,MASHER BROTHERS,"-2,888.75",BUSINESS SUPPORT,OTHER CONTRACTORS,2102572037
04.10.2016,ADULT SOCIAL CARE,REDACTED PERSONAL DATA,476.00,CARERS SERVICES,PAYMENTS TO CARERS,2102571378
04.10.2016,ADULT SOCIAL CARE,PEOPLE PLUS,"2,733.76",CONTINUING CARE PERSONAL BUDGETS DR,RECOVERABLE COSTS INCL. HEALTH,2102571036
04.10.2016,ADULT SOCIAL CARE,REDACTED PERSONAL DATA,"2,340.80",CONTINUING CARE PERSONAL BUDGETS DR,RECOVERABLE COSTS INCL. HEALTH,2102571376
04.10.2016,ADULT SOCIAL CARE,REDACTED PERSONAL DATA,"5,335.96",CONTINUING CARE PERSONAL BUDGETS DR,RECOVERABLE COSTS INCL. HEALTH,2102571393
04.10.2016,ADULT SOCIAL CARE,REDACTED PERSONAL DATA,"2,360.80",CONTINUING CARE PERSONAL BUDGETS DR,RECOVERABLE COSTS INCL. HEALTH,2102571767
04.10.2016,ADULT SOCIAL CARE,PEOPLE PLUS,"3,518.32",CONTINUING CARE PERSONAL BUDGETS DR,RECOVERABLE COSTS INCL. HEALTH,2102571776
04.10.2016,ADULT SOCIAL CARE,PEOPLE PLUS,"2,374.80",CONTINUING CARE PERSONAL BUDGETS DR,RECOVERABLE COSTS INCL. HEALTH,2102571806
04.10.2016,ADULT SOCIAL CARE,PEOPLE PLUS,"2,523.08",CONTINUING CARE PERSONAL BUDGETS DR,RECOVERABLE COSTS INCL. HEALTH,2102571816
04.10.2016,ADULT SOCIAL CARE,REDACTED PERSONAL DATA,"2,583.00",DRUGS & ALCOHOL REHABITATION PLACES,DAYCARE,2102571010
04.10.2016,ADULT SOCIAL CARE,THE NELSON TRUST,"1,928.62",DRUGS & ALCOHOL REHABITATION PLACES,PLACEMENTS - REHAB,2102571022
04.10.2016,ADULT SOCIAL CARE,FREEDOM RECOVERY CENTRE,"3,350.00",DRUGS & ALCOHOL REHABITATION PLACES,PLACEMENTS - REHAB,2102571024
04.10.2016,ADULT SOCIAL CARE,MERCIA CARE HOMES LTD,"3,317.00",DRUGS & ALCOHOL REHABITATION PLACES,PLACEMENTS - REHAB,2102571026
04.10.2016,ADULT SOCIAL CARE,MERCIA CARE HOMES LTD,"2,354.00",DRUGS & ALCOHOL REHABITATION PLACES,PLACEMENTS - REHAB,2102571028
04.10.2016,ADULT SOCIAL CARE,CRANSTOUN DRUG SERVICES,"2,989.29",DRUGS & ALCOHOL REHABITATION PLACES,PLACEMENTS - REHAB,2102571031
04.10.2016,ADULT SOCIAL CARE,MIHOMECARE LTD,760.32,HOME CARE C&V,HOMECARE - C&V,2102571019
04.10.2016,ADULT SOCIAL CARE,PEOPLE PLUS,424.00,LD LTS 18-64,PAYMENTS TO CLIENTS (DIRECT PAYMENTS),2102571035
04.10.2016,ADULT SOCIAL CARE,THE CAMDEN SOCIETY (SOCIAL CARE),"1,060.00",LD LTS 18-64,DAYCARE,2102571038
04.10.2016,ADULT SOCIAL CARE,THE CAMDEN SOCIETY (SOCIAL CARE),"2,154.52",LD LTS 18-64,DAYCARE,2102571048
04.10.2016,ADULT SOCIAL CARE,REDACTED PERSONAL DATA,"1,051.40",LD LTS 18-64,PAYMENTS TO CLIENTS (DIRECT PAYMENTS),2102571054
04.10.2016,ADULT SOCIAL CARE,THE CAMDEN SOCIETY (SOCIAL CARE),988.00,LD LTS 18-64,DAYCARE,2102571059
04.10.2016,ADULT SOCIAL CARE,FRESH IDEAS & SOLUTIONS SERVICES CIC,644.00,LD LTS 18-64,HOMECARE - C&V,2102571060
04.10.2016,ADULT SOCIAL CARE,THE CAMDEN SOCIETY (SOCIAL CARE),753.60,LD LTS 18-64,DAYCARE,2102571062
04.10.2016,ADULT SOCIAL CARE,PEOPLE PLUS,"1,211.60",LD LTS 18-64,PAYMENTS TO CLIENTS (DIRECT PAYMENTS),2102571070
04.10.2016,ADULT SOCIAL CARE,THE CAMDEN SOCIETY (SOCIAL CARE),504.00,LD LTS 18-64,DAYCARE,2102571072
04.10.2016,ADULT SOCIAL CARE,PEOPLE PLUS,"2,990.20",LD LTS 18-64,PAYMENTS TO CLIENTS (DIRECT PAYMENTS),2102571078
04.10.2016,ADULT SOCIAL CARE,REDACTED PERSONAL DATA,314.96,LD LTS 18-64,PAYMENTS TO CLIENTS (DIRECT PAYMENTS),2102571079
04.10.2016,ADULT SOCIAL CARE,PEOPLE PLUS,815.36,LD LTS 18-64,PAYMENTS TO CLIENTS (DIRECT PAYMENTS),2102571081
04.10.2016,ADULT SOCIAL CARE,PEOPLE PLUS,"1,145.96",LD LTS 18-64,PAYMENTS TO CLIENTS (DIRECT PAYMENTS),2102571087
04.10.2016,ADULT SOCIAL CARE,PEOPLE PLUS,"2,733.64",LD LTS 18-64,PAYMENTS TO CLIENTS (DIRECT PAYMENTS),2102571089
04.10.2016,ADULT SOCIAL CARE,PEOPLE PLUS,892.36,LD LTS 18-64,PAYMENTS TO CLIENTS (DIRECT PAYMENTS),2102571095
04.10.2016,ADULT SOCIAL CARE,PEOPLE PLUS,850.28,LD LTS 18-64,PAYMENTS TO CLIENTS (DIRECT PAYMENTS),2102571109
04.10.2016,ADULT SOCIAL CARE,PEOPLE PLUS,"1,714.00",LD LTS 18-64,PAYMENTS TO CLIENTS (DIRECT PAYMENTS),2102571110
04.10.2016,ADULT SOCIAL CARE,THE CAMDEN SOCIETY (SOCIAL CARE),"1,060.00",LD LTS 18-64,DAYCARE,2102571115
04.10.2016,ADULT SOCIAL CARE,REDACTED PERSONAL DATA,"2,736.00",LD LTS 18-64,PAYMENTS TO CLIENTS (DIRECT PAYMENTS),2102571121
04.10.2016,ADULT SOCIAL CARE,PEOPLE PLUS,254.68,LD LTS 18-64,PAYMENTS TO CLIENTS (DIRECT PAYMENTS),2102571125
04.10.2016,ADULT SOCIAL CARE,PEOPLE PLUS,"1,474.96",LD LTS 18-64,PAYMENTS TO CLIENTS (DIRECT PAYMENTS),2102571127
04.10.2016,ADULT SOCIAL CARE,THREE C'S SUPPORT,320.00,LD LTS 18-64,SUPPORTED LIVING,2102571129
04.10.2016,ADULT SOCIAL CARE,PEOPLE PLUS,758.72,LD LTS 18-64,PAYMENTS TO CLIENTS (DIRECT PAYMENTS),2102571136
04.10.2016,ADULT SOCIAL CARE,PEOPLE PLUS,"2,327.60",LD LTS 18-64,PAYMENTS TO CLIENTS (DIRECT PAYMENTS),2102571137
04.10.2016,ADULT SOCIAL CARE,THE CAMDEN SOCIETY (SOCIAL CARE),"1,924.00",LD LTS 18-64,DAYCARE,2102571141
04.10.2016,ADULT SOCIAL CARE,PEOPLE PLUS,679.20,LD LTS 18-64,PAYMENTS TO CLIENTS (DIRECT PAYMENTS),2102571146
04.10.2016,ADULT SOCIAL CARE,PEOPLE PLUS,813.36,LD LTS 18-64,PAYMENTS TO CLIENTS (DIRECT PAYMENTS),2102571149
04.10.2016,ADULT SOCIAL CARE,THE CAMDEN SOCIETY (SOCIAL CARE),"1,105.60",LD LTS 18-64,DAYCARE,2102571150
04.10.2016,ADULT SOCIAL CARE,THE CAMDEN SOCIETY (SOCIAL CARE),"1,060.00",LD LTS 18-64,DAYCARE,2102571151
04.10.2016,ADULT SOCIAL CARE,THE CAMDEN SOCIETY (SOCIAL CARE),"1,128.00",LD LTS 18-64,DAYCARE,2102571156
04.10.2016,ADULT SOCIAL CARE,THE CAMDEN SOCIETY (SOCIAL CARE),988.00,LD LTS 18-64,DAYCARE,2102571157
04.10.2016,ADULT SOCIAL CARE,SWK AFRICAN FAMILY SUPPORT SVCS,"1,310.40",LD LTS 18-64,HOMECARE - C&V,2102571160
04.10.2016,ADULT SOCIAL CARE,REDACTED PERSONAL DATA,"3,923.12",LD LTS 18-64,PAYMENTS TO CLIENTS (DIRECT PAYMENTS),2102571161
04.10.2016,ADULT SOCIAL CARE,PEOPLE PLUS,"3,322.56",LD LTS 18-64,PAYMENTS TO CLIENTS (DIRECT PAYMENTS),2102571174
04.10.2016,ADULT SOCIAL CARE,THE CAMDEN SOCIETY (SOCIAL CARE),"1,137.60",LD LTS 18-64,DAYCARE,2102571176
04.10.2016,ADULT SOCIAL CARE,THE CAMDEN SOCIETY (SOCIAL CARE),"1,852.00",LD LTS 18-64,DAYCARE,2102571187
04.10.2016,ADULT SOCIAL CARE,PEOPLE PLUS,"1,239.04",LD LTS 18-64,PAYMENTS TO CLIENTS (DIRECT PAYMENTS),2102571189
04.10.2016,ADULT SOCIAL CARE,THE CAMDEN SOCIETY (SOCIAL CARE),"1,060.00",LD LTS 18-64,DAYCARE,2102571191
04.10.2016,ADULT SOCIAL CARE,REDACTED PERSONAL DATA,"1,570.00",LD LTS 18-64,SUPPORTED LIVING,2102571194
04.10.2016,ADULT SOCIAL CARE,PEOPLE PLUS,"12,619.20",LD LTS 18-64,PAYMENTS TO CLIENTS (DIRECT PAYMENTS),2102571196
04.10.2016,ADULT SOCIAL CARE,PEOPLE PLUS,"2,245.12",LD LTS 18-64,PAYMENTS TO CLIENTS (DIRECT PAYMENTS),2102571200
04.10.2016,ADULT SOCIAL CARE,THE CAMDEN SOCIETY (SOCIAL CARE),988.00,LD LTS 18-64,DAYCARE,2102571201
04.10.2016,ADULT SOCIAL CARE,THE CAMDEN SOCIETY (SOCIAL CARE),"1,060.00",LD LTS 18-64,DAYCARE,2102571202
04.10.2016,ADULT SOCIAL CARE,THE CAMDEN SOCIETY (SOCIAL CARE),753.60,LD LTS 18-64,DAYCARE,2102571203
04.10.2016,ADULT SOCIAL CARE,THE CAMDEN SOCIETY (SOCIAL CARE),"1,848.00",LD LTS 18-64,DAYCARE,2102571205
04.10.2016,ADULT SOCIAL CARE,PEOPLE PLUS,"1,911.52",LD LTS 18-64,PAYMENTS TO CLIENTS (DIRECT PAYMENTS),2102571218
04.10.2016,ADULT SOCIAL CARE,PEOPLE PLUS,"1,612.00",LD LTS 18-64,PAYMENTS TO CLIENTS (DIRECT PAYMENTS),2102571221
04.10.2016,ADULT SOCIAL CARE,REDACTED PERSONAL DATA,"1,019.44",LD LTS 18-64,PAYMENTS TO CLIENTS (DIRECT PAYMENTS),2102571224
04.10.2016,ADULT SOCIAL CARE,PEOPLE PLUS,563.76,LD LTS 18-64,PAYMENTS TO CLIENTS (DIRECT PAYMENTS),2102571225
04.10.2016,ADULT SOCIAL CARE,PEOPLE PLUS,"3,360.88",LD LTS 18-64,PAYMENTS TO CLIENTS (DIRECT PAYMENTS),2102571226
04.10.2016,ADULT SOCIAL CARE,PEOPLE PLUS,395.12,LD LTS 18-64,PAYMENTS TO CLIENTS (DIRECT PAYMENTS),2102571227
04.10.2016,ADULT SOCIAL CARE,THREE C'S SUPPORT,526.00,LD LTS 18-64,SUPPORTED LIVING,2102571233
04.10.2016,ADULT SOCIAL CARE,PEOPLE PLUS,"1,377.28",LD LTS 18-64,PAYMENTS TO CLIENTS (DIRECT PAYMENTS),2102571235
04.10.2016,ADULT SOCIAL CARE,THE CAMDEN SOCIETY (SOCIAL CARE),"1,848.00",LD LTS 18-64,DAYCARE,2102571240
04.10.2016,ADULT SOCIAL CARE,THE CAMDEN SOCIETY (SOCIAL CARE),484.00,LD LTS 18-64,HOMECARE - SPOT,2102571244
04.10.2016,ADULT SOCIAL CARE,PEOPLE PLUS,794.00,LD LTS 18-64,PAYMENTS TO CLIENTS (DIRECT PAYMENTS),2102571245
04.10.2016,ADULT SOCIAL CARE,THE CAMDEN SOCIETY (SOCIAL CARE),"1,824.48",LD LTS 18-64,DAYCARE,2102571246
04.10.2016,ADULT SOCIAL CARE,THE CAMDEN SOCIETY (SOCIAL CARE),"1,060.00",LD LTS 18-64,DAYCARE,2102571249
04.10.2016,ADULT SOCIAL CARE,REDACTED PERSONAL DATA,"3,144.00",LD LTS 18-64,HOMECARE - C&V,2102571254
04.10.2016,ADULT SOCIAL CARE,REDACTED PERSONAL DATA,"1,672.00",LD LTS 18-64,PAYMENTS TO CLIENTS (DIRECT PAYMENTS),2102571256
04.10.2016,ADULT SOCIAL CARE,PEOPLE PLUS,"1,862.00",LD LTS 18-64,PAYMENTS TO CLIENTS (DIRECT PAYMENTS),2102571262
04.10.2016,ADULT SOCIAL CARE,REDACTED PERSONAL DATA,"3,600.00",LD LTS 18-64,PAYMENTS TO CLIENTS (DIRECT PAYMENTS),2102571265
04.10.2016,ADULT SOCIAL CARE,PEOPLE PLUS,383.44,LD LTS 18-64,PAYMENTS TO CLIENTS (DIRECT PAYMENTS),2102571266
04.10.2016,ADULT SOCIAL CARE,PEOPLE PLUS,"2,204.00",LD LTS 18-64,PAYMENTS TO CLIENTS (DIRECT PAYMENTS),2102571268
04.10.2016,ADULT SOCIAL CARE,PEOPLE PLUS,"1,274.60",LD LTS 18-64,PAYMENTS TO CLIENTS (DIRECT PAYMENTS),2102571272
04.10.2016,ADULT SOCIAL CARE,PEOPLE PLUS,665.20,LD LTS 18-64,PAYMENTS TO CLIENTS (DIRECT PAYMENTS),2102571273
04.10.2016,ADULT SOCIAL CARE,PEOPLE PLUS,"2,534.60",LD LTS 18-64,PAYMENTS TO CLIENTS (DIRECT PAYMENTS),2102571276
04.10.2016,ADULT SOCIAL CARE,REDACTED PERSONAL DATA,"2,660.20",LD LTS 18-64,PAYMENTS TO CLIENTS (DIRECT PAYMENTS),2102571278
04.10.2016,ADULT SOCIAL CARE,PEOPLE PLUS,"1,069.36",LD LTS 18-64,PAYMENTS TO CLIENTS (DIRECT PAYMENTS),2102571286
04.10.2016,ADULT SOCIAL CARE,REDACTED PERSONAL DATA,458.64,LD LTS 18-64,PAYMENTS TO CLIENTS (DIRECT PAYMENTS),2102571295
04.10.2016,ADULT SOCIAL CARE,REDACTED PERSONAL DATA,"1,025.20",LD LTS 18-64,PAYMENTS TO CLIENTS (DIRECT PAYMENTS),2102571303
04.10.2016,ADULT SOCIAL CARE,REDACTED PERSONAL DATA,"2,116.00",LD LTS 18-64,PAYMENTS TO CLIENTS (DIRECT PAYMENTS),2102571311
04.10.2016,ADULT SOCIAL CARE,REDACTED PERSONAL DATA,420.00,LD LTS 18-64,PAYMENTS TO CLIENTS (DIRECT PAYMENTS),2102571329
04.10.2016,ADULT SOCIAL CARE,REDACTED PERSONAL DATA,"2,344.00",LD LTS 18-64,PAYMENTS TO CLIENTS (DIRECT PAYMENTS),2102571332
04.10.2016,ADULT SOCIAL CARE,REDACTED PERSONAL DATA,"1,483.00",LD LTS 18-64,PAYMENTS TO CLIENTS (DIRECT PAYMENTS),2102571336
04.10.2016,ADULT SOCIAL CARE,REDACTED PERSONAL DATA,"2,412.00",LD LTS 18-64,PAYMENTS TO CLIENTS (DIRECT PAYMENTS),2102571342
04.10.2016,ADULT SOCIAL CARE,REDACTED PERSONAL DATA,"6,466.84",LD LTS 18-64,PAYMENTS TO CLIENTS (DIRECT PAYMENTS),2102571346
04.10.2016,ADULT SOCIAL CARE,REDACTED PERSONAL DATA,"1,036.24",LD LTS 18-64,PAYMENTS TO CLIENTS (DIRECT PAYMENTS),2102571351
04.10.2016,ADULT SOCIAL CARE,REDACTED PERSONAL DATA,"1,197.96",LD LTS 18-64,PAYMENTS TO CLIENTS (DIRECT PAYMENTS),2102571353
04.10.2016,ADULT SOCIAL CARE,REDACTED PERSONAL DATA,"3,509.44",LD LTS 18-64,PAYMENTS TO CLIENTS (DIRECT PAYMENTS),2102571362
04.10.2016,ADULT SOCIAL CARE,REDACTED PERSONAL DATA,"1,532.92",LD LTS 18-64,PAYMENTS TO CLIENTS (DIRECT PAYMENTS),2102571373
04.10.2016,ADULT SOCIAL CARE,REDACTED PERSONAL DATA,616.00,LD LTS 18-64,PAYMENTS TO CLIENTS (DIRECT PAYMENTS),2102571377
04.10.2016,ADULT SOCIAL CARE,REDACTED PERSONAL DATA,"1,829.48",LD LTS 18-64,PAYMENTS TO CLIENTS (DIRECT PAYMENTS),2102571382
04.10.2016,ADULT SOCIAL CARE,REDACTED PERSONAL DATA,480.00,LD LTS 18-64,PAYMENTS TO CLIENTS (DIRECT PAYMENTS),2102571388
04.10.2016,ADULT SOCIAL CARE,REDACTED PERSONAL DATA,"12,580.00",LD LTS 18-64,PAYMENTS TO CLIENTS (DIRECT PAYMENTS),2102571389
04.10.2016,ADULT SOCIAL CARE,REDACTED PERSONAL DATA,"-3,567.88",LD LTS 18-64,DISCRETIONARY FLEXIBLE FEES & INCOME,2102571390
04.10.2016,ADULT SOCIAL CARE,REDACTED PERSONAL DATA,269.60,LD LTS 18-64,PAYMENTS TO CLIENTS (DIRECT PAYMENTS),2102571391
04.10.2016,ADULT SOCIAL CARE,REDACTED PERSONAL DATA,280.00,LD LTS 18-64,PAYMENTS TO CLIENTS (DIRECT PAYMENTS),2102571395
04.10.2016,ADULT SOCIAL CARE,THE CAMDEN SOCIETY (SOCIAL CARE),"1,848.00",LD LTS 18-64,DAYCARE,2102571420
04.10.2016,ADULT SOCIAL CARE,REDACTED PERSONAL DATA,409.08,LD LTS 18-64,PAYMENTS TO CLIENTS (DIRECT PAYMENTS),2102571429
04.10.2016,ADULT SOCIAL CARE,REDACTED PERSONAL DATA,"3,066.48",LD LTS 18-64,PAYMENTS TO CLIENTS (DIRECT PAYMENTS),2102571442
04.10.2016,ADULT SOCIAL CARE,PEOPLE PLUS,670.00,LD LTS 18-64,PAYMENTS TO CLIENTS (DIRECT PAYMENTS),2102571445
04.10.2016,ADULT SOCIAL CARE,PEOPLE PLUS,505.96,LD LTS 18-64,PAYMENTS TO CLIENTS (DIRECT PAYMENTS),2102571446
04.10.2016,ADULT SOCIAL CARE,PEOPLE PLUS,"2,956.28",LD LTS 18-64,PAYMENTS TO CLIENTS (DIRECT PAYMENTS),2102571447
04.10.2016,ADULT SOCIAL CARE,THE CAMDEN SOCIETY (SOCIAL CARE),"1,926.16",LD LTS 18-64,DAYCARE,2102571455
04.10.2016,ADULT SOCIAL CARE,PEOPLE PLUS,"1,235.68",LD LTS 18-64,PAYMENTS TO CLIENTS (DIRECT PAYMENTS),2102571461
04.10.2016,ADULT SOCIAL CARE,PEOPLE PLUS,"1,480.20",LD LTS 18-64,PAYMENTS TO CLIENTS (DIRECT PAYMENTS),2102571471
04.10.2016,ADULT SOCIAL CARE,THE CAMDEN SOCIETY (SOCIAL CARE),"2,489.68",LD LTS 18-64,DAYCARE,2102571473
04.10.2016,ADULT SOCIAL CARE,PEOPLE PLUS,997.80,LD LTS 18-64,PAYMENTS TO CLIENTS (DIRECT PAYMENTS),2102571476
04.10.2016,ADULT SOCIAL CARE,THE CAMDEN SOCIETY (SOCIAL CARE),"1,060.00",LD LTS 18-64,DAYCARE,2102571477
04.10.2016,ADULT SOCIAL CARE,THE CAMDEN SOCIETY (SOCIAL CARE),"1,137.60",LD LTS 18-64,DAYCARE,2102571478
04.10.2016,ADULT SOCIAL CARE,THE CAMDEN SOCIETY (SOCIAL CARE),"1,473.60",LD LTS 18-64,DAYCARE,2102571479
04.10.2016,ADULT SOCIAL CARE,REDACTED PERSONAL DATA,"3,096.96",LD LTS 18-64,PAYMENTS TO CLIENTS (DIRECT PAYMENTS),2102571481
04.10.2016,ADULT SOCIAL CARE,REDACTED PERSONAL DATA,"1,545.48",LD LTS 18-64,PAYMENTS TO CLIENTS (DIRECT PAYMENTS),2102571493
04.10.2016,ADULT SOCIAL CARE,REDACTED PERSONAL DATA,"2,317.60",LD LTS 18-64,PAYMENTS TO CLIENTS (DIRECT PAYMENTS),2102571496
04.10.2016,ADULT SOCIAL CARE,REDACTED PERSONAL DATA,"1,112.40",LD LTS 18-64,PAYMENTS TO CLIENTS (DIRECT PAYMENTS),2102571501
04.10.2016,ADULT SOCIAL CARE,REDACTED PERSONAL DATA,"3,864.64",LD LTS 18-64,PAYMENTS TO CLIENTS (DIRECT PAYMENTS),2102571506
04.10.2016,ADULT SOCIAL CARE,PEOPLE PLUS,"1,430.96",LD LTS 18-64,PAYMENTS TO CLIENTS (DIRECT PAYMENTS),2102571507
04.10.2016,ADULT SOCIAL CARE,PEOPLE PLUS,"1,629.12",LD LTS 18-64,PAYMENTS TO CLIENTS (DIRECT PAYMENTS),2102571514
04.10.2016,ADULT SOCIAL CARE,THE CAMDEN SOCIETY (SOCIAL CARE),700.00,LD LTS 18-64,DAYCARE,2102571525
04.10.2016,ADULT SOCIAL CARE,REDACTED PERSONAL DATA,"1,290.16",LD LTS 18-64,PAYMENTS TO CLIENTS (DIRECT PAYMENTS),2102571535
04.10.2016,ADULT SOCIAL CARE,PEOPLE PLUS,876.92,LD LTS 18-64,PAYMENTS TO CLIENTS (DIRECT PAYMENTS),2102571536
04.10.2016,ADULT SOCIAL CARE,PEOPLE PLUS,974.00,LD LTS 18-64,PAYMENTS TO CLIENTS (DIRECT PAYMENTS),2102571537
04.10.2016,ADULT SOCIAL CARE,THE CAMDEN SOCIETY (SOCIAL CARE),"1,536.48",LD LTS 18-64,DAYCARE,2102571539
04.10.2016,ADULT SOCIAL CARE,THE CAMDEN SOCIETY (SOCIAL CARE),"1,060.00",LD LTS 18-64,DAYCARE,2102571540
04.10.2016,ADULT SOCIAL CARE,FRESH IDEAS & SOLUTIONS SERVICES CIC,895.60,LD LTS 18-64,HOMECARE - C&V,2102571546
04.10.2016,ADULT SOCIAL CARE,PEOPLE PLUS,"1,649.32",LD LTS 18-64,PAYMENTS TO CLIENTS (DIRECT PAYMENTS),2102571548
04.10.2016,ADULT SOCIAL CARE,THE CAMDEN SOCIETY (SOCIAL CARE),"2,328.48",LD LTS 18-64,DAYCARE,2102571550
04.10.2016,ADULT SOCIAL CARE,THE CAMDEN SOCIETY (SOCIAL CARE),"1,128.00",LD LTS 18-64,DAYCARE,2102571552
04.10.2016,ADULT SOCIAL CARE,THE CAMDEN SOCIETY (SOCIAL CARE),"1,492.00",LD LTS 18-64,DAYCARE,2102571553
04.10.2016,ADULT SOCIAL CARE,REDACTED PERSONAL DATA,"1,811.76",LD LTS 18-64,PAYMENTS TO CLIENTS (DIRECT PAYMENTS),2102571558
04.10.2016,ADULT SOCIAL CARE,PEOPLE PLUS,450.00,LD LTS 18-64,PAYMENTS TO CLIENTS (DIRECT PAYMENTS),2102571563
04.10.2016,ADULT SOCIAL CARE,PEOPLE PLUS,493.36,LD LTS 18-64,PAYMENTS TO CLIENTS (DIRECT PAYMENTS),2102571564
04.10.2016,ADULT SOCIAL CARE,THE CAMDEN SOCIETY (SOCIAL CARE),"1,848.00",LD LTS 18-64,DAYCARE,2102571569
04.10.2016,ADULT SOCIAL CARE,THE CAMDEN SOCIETY (SOCIAL CARE),"1,848.00",LD LTS 18-64,DAYCARE,2102571575
04.10.2016,ADULT SOCIAL CARE,PEOPLE PLUS,"15,164.00",LD LTS 18-64,PAYMENTS TO CLIENTS (DIRECT PAYMENTS),2102571579
04.10.2016,ADULT SOCIAL CARE,THE CAMDEN SOCIETY (SOCIAL CARE),"1,137.60",LD LTS 18-64,DAYCARE,2102571586
04.10.2016,ADULT SOCIAL CARE,PEOPLE PLUS,307.84,LD LTS 18-64,PAYMENTS TO CLIENTS (DIRECT PAYMENTS),2102571590
04.10.2016,ADULT SOCIAL CARE,PEOPLE PLUS,"7,521.32",LD LTS 18-64,PAYMENTS TO CLIENTS (DIRECT PAYMENTS),2102571594
04.10.2016,ADULT SOCIAL CARE,PEOPLE PLUS,"2,946.20",LD LTS 18-64,PAYMENTS TO CLIENTS (DIRECT PAYMENTS),2102571596
04.10.2016,ADULT SOCIAL CARE,THE CAMDEN SOCIETY (SOCIAL CARE),"2,412.00",LD LTS 18-64,DAYCARE,2102571598
04.10.2016,ADULT SOCIAL CARE,THE CAMDEN SOCIETY (SOCIAL CARE),"1,137.60",LD LTS 18-64,DAYCARE,2102571603
04.10.2016,ADULT SOCIAL CARE,THE CAMDEN SOCIETY (SOCIAL CARE),"1,848.00",LD LTS 18-64,DAYCARE,2102571604
04.10.2016,ADULT SOCIAL CARE,PEOPLE PLUS,289.36,LD LTS 18-64,PAYMENTS TO CLIENTS (DIRECT PAYMENTS),2102571606
04.10.2016,ADULT SOCIAL CARE,PEOPLE PLUS,"2,050.00",LD LTS 18-64,PAYMENTS TO CLIENTS (DIRECT PAYMENTS),2102571607
04.10.2016,ADULT SOCIAL CARE,PEOPLE PLUS,329.72,LD LTS 18-64,PAYMENTS TO CLIENTS (DIRECT PAYMENTS),2102571613
04.10.2016,ADULT SOCIAL CARE,PEOPLE PLUS,"1,696.32",LD LTS 18-64,PAYMENTS TO CLIENTS (DIRECT PAYMENTS),2102571614
04.10.2016,ADULT SOCIAL CARE,PEOPLE PLUS,"1,813.48",LD LTS 18-64,PAYMENTS TO CLIENTS (DIRECT PAYMENTS),2102571615
04.10.2016,ADULT SOCIAL CARE,PEOPLE PLUS,542.80,LD LTS 18-64,PAYMENTS TO CLIENTS (DIRECT PAYMENTS),2102571616
04.10.2016,ADULT SOCIAL CARE,REDACTED PERSONAL DATA,288.80,LD LTS 18-64,PAYMENTS TO CLIENTS (DIRECT PAYMENTS),2102571620
04.10.2016,ADULT SOCIAL CARE,PEOPLE PLUS,"2,312.40",LD LTS 18-64,PAYMENTS TO CLIENTS (DIRECT PAYMENTS),2102571621
04.10.2016,ADULT SOCIAL CARE,PEOPLE PLUS,356.92,LD LTS 18-64,PAYMENTS TO CLIENTS (DIRECT PAYMENTS),2102571627
04.10.2016,ADULT SOCIAL CARE,THE CAMDEN SOCIETY (SOCIAL CARE),988.00,LD LTS 18-64,DAYCARE,2102571629
04.10.2016,ADULT SOCIAL CARE,REDACTED PERSONAL DATA,718.00,LD LTS 18-64,PAYMENTS TO CLIENTS (DIRECT PAYMENTS),2102571635
04.10.2016,ADULT SOCIAL CARE,REDACTED PERSONAL DATA,-718.00,LD LTS 18-64,DISCRETIONARY FLEXIBLE FEES & INCOME,2102571636
04.10.2016,ADULT SOCIAL CARE,PEOPLE PLUS,"1,477.48",LD LTS 18-64,PAYMENTS TO CLIENTS (DIRECT PAYMENTS),2102571639
04.10.2016,ADULT SOCIAL CARE,FRONTIER SUPPORT SERVICES LTD,"4,772.00",LD LTS 18-64,SUPPORTED LIVING,2102571642
04.10.2016,ADULT SOCIAL CARE,THE CAMDEN SOCIETY (SOCIAL CARE),"1,824.48",LD LTS 18-64,DAYCARE,2102571650
04.10.2016,ADULT SOCIAL CARE,THE CAMDEN SOCIETY (SOCIAL CARE),"2,760.48",LD LTS 18-64,DAYCARE,2102571651
04.10.2016,ADULT SOCIAL CARE,THE CAMDEN SOCIETY (SOCIAL CARE),"1,848.00",LD LTS 18-64,DAYCARE,2102571657
04.10.2016,ADULT SOCIAL CARE,THE CAMDEN SOCIETY (SOCIAL CARE),"1,848.00",LD LTS 18-64,DAYCARE,2102571662
04.10.2016,ADULT SOCIAL CARE,PEOPLE PLUS,"1,447.60",LD LTS 18-64,PAYMENTS TO CLIENTS (DIRECT PAYMENTS),2102571663
04.10.2016,ADULT SOCIAL CARE,THE CAMDEN SOCIETY (SOCIAL CARE),"1,060.00",LD LTS 18-64,DAYCARE,2102571667
04.10.2016,ADULT SOCIAL CARE,THE CAMDEN SOCIETY (SOCIAL CARE),"3,538.08",LD LTS 18-64,DAYCARE,2102571668
04.10.2016,ADULT SOCIAL CARE,PEOPLE PLUS,"12,619.20",LD LTS 18-64,PAYMENTS TO CLIENTS (DIRECT PAYMENTS),2102571669
04.10.2016,ADULT SOCIAL CARE,PEOPLE PLUS,690.72,LD LTS 18-64,PAYMENTS TO CLIENTS (DIRECT PAYMENTS),2102571671
04.10.2016,ADULT SOCIAL CARE,THE CAMDEN SOCIETY (SOCIAL CARE),"1,848.00",LD LTS 18-64,DAYCARE,2102571678
04.10.2016,ADULT SOCIAL CARE,PEOPLE PLUS,743.04,LD LTS 18-64,PAYMENTS TO CLIENTS (DIRECT PAYMENTS),2102571685
04.10.2016,ADULT SOCIAL CARE,PEOPLE PLUS,"1,950.96",LD LTS 18-64,PAYMENTS TO CLIENTS (DIRECT PAYMENTS),2102571702
04.10.2016,ADULT SOCIAL CARE,THE CAMDEN SOCIETY (SOCIAL CARE),753.60,LD LTS 18-64,DAYCARE,2102571708
04.10.2016,ADULT SOCIAL CARE,PEOPLE PLUS,329.80,LD LTS 18-64,PAYMENTS TO CLIENTS (DIRECT PAYMENTS),2102571720
04.10.2016,ADULT SOCIAL CARE,PEOPLE PLUS,712.40,LD LTS 18-64,PAYMENTS TO CLIENTS (DIRECT PAYMENTS),2102571721
04.10.2016,ADULT SOCIAL CARE,THE CAMDEN SOCIETY (SOCIAL CARE),"2,412.00",LD LTS 18-64,DAYCARE,2102571724
04.10.2016,ADULT SOCIAL CARE,THE CAMDEN SOCIETY (SOCIAL CARE),384.00,LD LTS 18-64,DAYCARE,2102571725
04.10.2016,ADULT SOCIAL CARE,REDACTED PERSONAL DATA,"1,200.00",LD LTS 18-64,PAYMENTS TO CLIENTS (DIRECT PAYMENTS),2102571726
04.10.2016,ADULT SOCIAL CARE,PEOPLE PLUS,"2,447.76",LD LTS 18-64,PAYMENTS TO CLIENTS (DIRECT PAYMENTS),2102571728
04.10.2016,ADULT SOCIAL CARE,THE CAMDEN SOCIETY (SOCIAL CARE),"2,412.00",LD LTS 18-64,DAYCARE,2102571732
04.10.2016,ADULT SOCIAL CARE,PEOPLE PLUS,934.00,LD LTS 18-64,PAYMENTS TO CLIENTS (DIRECT PAYMENTS),2102571736
04.10.2016,ADULT SOCIAL CARE,ALLIED HEALTHCARE,"1,170.00",LD LTS 18-64,HOMECARE - C&V,2102571740
04.10.2016,ADULT SOCIAL CARE,PEOPLE PLUS,"1,024.72",LD LTS 18-64,PAYMENTS TO CLIENTS (DIRECT PAYMENTS),2102571741
04.10.2016,ADULT SOCIAL CARE,PEOPLE PLUS,862.64,LD LTS 18-64,PAYMENTS TO CLIENTS (DIRECT PAYMENTS),2102571747
04.10.2016,ADULT SOCIAL CARE,REDACTED PERSONAL DATA,"8,484.60",LD LTS 18-64,PAYMENTS TO CLIENTS (DIRECT PAYMENTS),2102571750
04.10.2016,ADULT SOCIAL CARE,PEOPLE PLUS,"1,666.08",LD LTS 18-64,PAYMENTS TO CLIENTS (DIRECT PAYMENTS),2102571755
04.10.2016,ADULT SOCIAL CARE,THE CAMDEN SOCIETY (SOCIAL CARE),609.60,LD LTS 18-64,DAYCARE,2102571756
04.10.2016,ADULT SOCIAL CARE,THE CAMDEN SOCIETY (SOCIAL CARE),753.60,LD LTS 18-64,DAYCARE,2102571760
04.10.2016,ADULT SOCIAL CARE,PEOPLE PLUS,"1,080.04",LD LTS 18-64,PAYMENTS TO CLIENTS (DIRECT PAYMENTS),2102571762
04.10.2016,ADULT SOCIAL CARE,PEOPLE PLUS,755.60,LD LTS 18-64,PAYMENTS TO CLIENTS (DIRECT PAYMENTS),2102571764
04.10.2016,ADULT SOCIAL CARE,PEOPLE PLUS,"1,380.96",LD LTS 18-64,PAYMENTS TO CLIENTS (DIRECT PAYMENTS),2102571768
04.10.2016,ADULT SOCIAL CARE,REDACTED PERSONAL DATA,"1,454.08",LD LTS 18-64,PAYMENTS TO CLIENTS (DIRECT PAYMENTS),2102571769
04.10.2016,ADULT SOCIAL CARE,PEOPLE PLUS,"2,268.84",LD LTS 18-64,PAYMENTS TO CLIENTS (DIRECT PAYMENTS),2102571771
04.10.2016,ADULT SOCIAL CARE,THE CAMDEN SOCIETY (SOCIAL CARE),"1,824.48",LD LTS 18-64,DAYCARE,2102571775
04.10.2016,ADULT SOCIAL CARE,PEOPLE PLUS,578.00,LD LTS 18-64,PAYMENTS TO CLIENTS (DIRECT PAYMENTS),2102571780
04.10.2016,ADULT SOCIAL CARE,PEOPLE PLUS,"2,332.00",LD LTS 18-64,PAYMENTS TO CLIENTS (DIRECT PAYMENTS),2102571782
04.10.2016,ADULT SOCIAL CARE,PEOPLE PLUS,934.00,LD LTS 18-64,PAYMENTS TO CLIENTS (DIRECT PAYMENTS),2102571785
04.10.2016,ADULT SOCIAL CARE,PEOPLE PLUS,"1,690.24",LD LTS 18-64,PAYMENTS TO CLIENTS (DIRECT PAYMENTS),2102571792
04.10.2016,ADULT SOCIAL CARE,PEOPLE PLUS,440.00,LD LTS 18-64,PAYMENTS TO CLIENTS (DIRECT PAYMENTS),2102571798
04.10.2016,ADULT SOCIAL CARE,PEOPLE PLUS,"3,472.00",LD LTS 18-64,PAYMENTS TO CLIENTS (DIRECT PAYMENTS),2102571802
04.10.2016,ADULT SOCIAL CARE,PEOPLE PLUS,"2,918.00",LD LTS 18-64,PAYMENTS TO CLIENTS (DIRECT PAYMENTS),2102571804
04.10.2016,ADULT SOCIAL CARE,THE CAMDEN SOCIETY (SOCIAL CARE),"1,128.00",LD LTS 18-64,DAYCARE,2102571807
04.10.2016,ADULT SOCIAL CARE,REDACTED PERSONAL DATA,738.00,LD LTS 18-64,PAYMENTS TO CLIENTS (DIRECT PAYMENTS),2102571809
04.10.2016,ADULT SOCIAL CARE,PEOPLE PLUS,"1,398.00",LD LTS 18-64,PAYMENTS TO CLIENTS (DIRECT PAYMENTS),2102571811
04.10.2016,ADULT SOCIAL CARE,PEOPLE PLUS,"1,437.28",LD LTS 18-64,PAYMENTS TO CLIENTS (DIRECT PAYMENTS),2102571812
04.10.2016,ADULT SOCIAL CARE,THE CAMDEN SOCIETY (SOCIAL CARE),"1,492.00",LD LTS 18-64,DAYCARE,2102571815
04.10.2016,ADULT SOCIAL CARE,PEOPLE PLUS,707.04,LD LTS 18-64,PAYMENTS TO CLIENTS (DIRECT PAYMENTS),2102571818
04.10.2016,ADULT SOCIAL CARE,THE CAMDEN SOCIETY (SOCIAL CARE),"1,451.52",LD LTS 18-64,DAYCARE,2102571826
04.10.2016,ADULT SOCIAL CARE,PEOPLE PLUS,"1,129.80",LD LTS 18-64,PAYMENTS TO CLIENTS (DIRECT PAYMENTS),2102571828
04.10.2016,ADULT SOCIAL CARE,PEOPLE PLUS,875.60,LD LTS 18-64,PAYMENTS TO CLIENTS (DIRECT PAYMENTS),2102571843
04.10.2016,ADULT SOCIAL CARE,PEOPLE PLUS,415.60,LD LTS 18-64,PAYMENTS TO CLIENTS (DIRECT PAYMENTS),2102571844
04.10.2016,ADULT SOCIAL CARE,THE CAMDEN SOCIETY (SOCIAL CARE),"1,137.60",LD LTS 18-64,DAYCARE,2102571845
04.10.2016,ADULT SOCIAL CARE,THE CAMDEN SOCIETY (SOCIAL CARE),753.60,LD LTS 18-64,DAYCARE,2102571846
04.10.2016,ADULT SOCIAL CARE,THE CAMDEN SOCIETY (SOCIAL CARE),"1,848.00",LD LTS 18-64,DAYCARE,2102571847
04.10.2016,ADULT SOCIAL CARE,THE CAMDEN SOCIETY (SOCIAL CARE),"1,848.00",LD LTS 18-64,DAYCARE,2102571848
04.10.2016,ADULT SOCIAL CARE,THE CAMDEN SOCIETY (SOCIAL CARE),"1,128.00",LD LTS 18-64,DAYCARE,2102571850
04.10.2016,ADULT SOCIAL CARE,FRESH IDEAS & SOLUTIONS SERVICES CIC,"1,067.12",LD LTS 18-64,HOMECARE - C&V,2102571855
04.10.2016,ADULT SOCIAL CARE,THE CAMDEN SOCIETY (SOCIAL CARE),465.60,LD LTS 18-64,DAYCARE,2102571863
04.10.2016,ADULT SOCIAL CARE,THE CAMDEN SOCIETY (SOCIAL CARE),753.60,LD LTS 18-64,DAYCARE,2102571865
04.10.2016,ADULT SOCIAL CARE,PEOPLE PLUS,"1,626.28",LD LTS 18-64,PAYMENTS TO CLIENTS (DIRECT PAYMENTS),2102571866
04.10.2016,ADULT SOCIAL CARE,PEOPLE PLUS,288.40,LD LTS 18-64,PAYMENTS TO CLIENTS (DIRECT PAYMENTS),2102571867
04.10.2016,ADULT SOCIAL CARE,THE CAMDEN SOCIETY (SOCIAL CARE),"1,680.48",LD LTS 18-64,DAYCARE,2102571869
04.10.2016,ADULT SOCIAL CARE,THE CAMDEN SOCIETY (SOCIAL CARE),705.60,LD LTS 18-64,DAYCARE,2102571872
04.10.2016,ADULT SOCIAL CARE,PEOPLE PLUS,"1,659.04",LD LTS 18-64,PAYMENTS TO CLIENTS (DIRECT PAYMENTS),2102571878
04.10.2016,ADULT SOCIAL CARE,PEOPLE PLUS,"2,119.80",LD LTS 18-64,PAYMENTS TO CLIENTS (DIRECT PAYMENTS),2102571879
04.10.2016,ADULT SOCIAL CARE,REDACTED PERSONAL DATA,"1,790.40",LD LTS 18-64,PAYMENTS TO CLIENTS (DIRECT PAYMENTS),2102571880
04.10.2016,ADULT SOCIAL CARE,THE CAMDEN SOCIETY (SOCIAL CARE),"1,848.00",LD LTS 18-64,DAYCARE,2102571888
04.10.2016,ADULT SOCIAL CARE,PEOPLE PLUS,754.00,LD LTS 18-64,PAYMENTS TO CLIENTS (DIRECT PAYMENTS),2102571892
04.10.2016,ADULT SOCIAL CARE,THE CAMDEN SOCIETY (SOCIAL CARE),"1,137.60",LD LTS 18-64,DAYCARE,2102571893
04.10.2016,ADULT SOCIAL CARE,THE CAMDEN SOCIETY (SOCIAL CARE),988.00,LD LTS 18-64,DAYCARE,2102571894
04.10.2016,ADULT SOCIAL CARE,REDACTED PERSONAL DATA,"3,162.12",LD LTS 18-64,PAYMENTS TO CLIENTS (DIRECT PAYMENTS),2102571899
04.10.2016,ADULT SOCIAL CARE,PEOPLE PLUS,334.20,LD LTS 18-64,PAYMENTS TO CLIENTS (DIRECT PAYMENTS),2102571900
04.10.2016,ADULT SOCIAL CARE,PEOPLE PLUS,266.00,LD LTS 18-64,PAYMENTS TO CLIENTS (DIRECT PAYMENTS),2102571903
04.10.2016,ADULT SOCIAL CARE,THE CAMDEN SOCIETY (SOCIAL CARE),"1,473.60",LD LTS 18-64,DAYCARE,2102571907
04.10.2016,ADULT SOCIAL CARE,FRESH IDEAS & SOLUTIONS SERVICES CIC,"1,464.32",LD LTS 18-64,PAYMENTS TO CLIENTS (DIRECT PAYMENTS),2102571909
04.10.2016,ADULT SOCIAL CARE,PEOPLE PLUS,"1,437.28",LD LTS 18-64,PAYMENTS TO CLIENTS (DIRECT PAYMENTS),2102571914
04.10.2016,ADULT SOCIAL CARE,PEOPLE PLUS,712.40,LD LTS 18-64,PAYMENTS TO CLIENTS (DIRECT PAYMENTS),2102571925
04.10.2016,ADULT SOCIAL CARE,FRESH IDEAS & SOLUTIONS SERVICES CIC,"1,848.00",LD LTS 18-64,HOMECARE - SPOT,2102571927
04.10.2016,ADULT SOCIAL CARE,PEOPLE PLUS,"1,125.28",LD LTS 18-64,PAYMENTS TO CLIENTS (DIRECT PAYMENTS),2102571930
04.10.2016,ADULT SOCIAL CARE,PEOPLE PLUS,"1,617.56",LD LTS 18-64,PAYMENTS TO CLIENTS (DIRECT PAYMENTS),2102571932
04.10.2016,ADULT SOCIAL CARE,PEOPLE PLUS,"2,600.08",LD LTS 18-64,PAYMENTS TO CLIENTS (DIRECT PAYMENTS),2102571933
04.10.2016,ADULT SOCIAL CARE,PEOPLE PLUS,365.88,LD LTS 18-64,PAYMENTS TO CLIENTS (DIRECT PAYMENTS),2102571934
04.10.2016,ADULT SOCIAL CARE,REDACTED PERSONAL DATA,"1,532.68",LD LTS 18-64,PAYMENTS TO CLIENTS (DIRECT PAYMENTS),2102571936
04.10.2016,ADULT SOCIAL CARE,PEOPLE PLUS,909.24,LD LTS 18-64,PAYMENTS TO CLIENTS (DIRECT PAYMENTS),2102571941
04.10.2016,ADULT SOCIAL CARE,PEOPLE PLUS,"2,490.00",LD LTS 18-64,PAYMENTS TO CLIENTS (DIRECT PAYMENTS),2102571942
04.10.2016,ADULT SOCIAL CARE,PEOPLE PLUS,"2,360.40",LD LTS 18-64,PAYMENTS TO CLIENTS (DIRECT PAYMENTS),2102571944
04.10.2016,ADULT SOCIAL CARE,PEOPLE PLUS,"2,494.00",LD LTS 18-64,PAYMENTS TO CLIENTS (DIRECT PAYMENTS),2102571945
04.10.2016,ADULT SOCIAL CARE,PEOPLE PLUS,"7,908.96",LD LTS 18-64,PAYMENTS TO CLIENTS (DIRECT PAYMENTS),2102571955
04.10.2016,ADULT SOCIAL CARE,THE CAMDEN SOCIETY (SOCIAL CARE),"2,412.00",LD LTS 18-64,DAYCARE,2102571960
04.10.2016,ADULT SOCIAL CARE,THE CAMDEN SOCIETY (SOCIAL CARE),753.60,LD LTS 18-64,DAYCARE,2102571964
04.10.2016,ADULT SOCIAL CARE,THE CAMDEN SOCIETY (SOCIAL CARE),"1,137.60",LD LTS 18-64,DAYCARE,2102571965
04.10.2016,ADULT SOCIAL CARE,PEOPLE PLUS,"3,809.20",LD LTS 18-64,PAYMENTS TO CLIENTS (DIRECT PAYMENTS),2102571968
04.10.2016,ADULT SOCIAL CARE,PEOPLE PLUS,"5,222.00",LD LTS 18-64,PAYMENTS TO CLIENTS (DIRECT PAYMENTS),2102571975
04.10.2016,ADULT SOCIAL CARE,THE CAMDEN SOCIETY (SOCIAL CARE),465.60,LD LTS 18-64,DAYCARE,2102571976
04.10.2016,ADULT SOCIAL CARE,THE CAMDEN SOCIETY (SOCIAL CARE),753.60,LD LTS 18-64,DAYCARE,2102571977
04.10.2016,ADULT SOCIAL CARE,PEOPLE PLUS,"2,108.12",LD LTS 18-64,PAYMENTS TO CLIENTS (DIRECT PAYMENTS),2102571985
04.10.2016,ADULT SOCIAL CARE,THE CAMDEN SOCIETY (SOCIAL CARE),988.00,LD LTS 18-64,DAYCARE,2102571991
04.10.2016,ADULT SOCIAL CARE,REDACTED PERSONAL DATA,300.00,LD LTS 18-64,PAYMENTS TO CLIENTS (DIRECT PAYMENTS),2102571998
04.10.2016,ADULT SOCIAL CARE,REDACTED PERSONAL DATA,"13,198.16",LD LTS 18-64,PAYMENTS TO CLIENTS (DIRECT PAYMENTS),2102571999
04.10.2016,ADULT SOCIAL CARE,REDACTED PERSONAL DATA,"5,362.72",LD LTS 18-64,PAYMENTS TO CLIENTS (DIRECT PAYMENTS),2102572000
04.10.2016,ADULT SOCIAL CARE,PEOPLE PLUS,"1,714.80",LD LTS 18-64,PAYMENTS TO CLIENTS (DIRECT PAYMENTS),2102572008
04.10.2016,ADULT SOCIAL CARE,PEOPLE PLUS,288.40,LD LTS 18-64,PAYMENTS TO CLIENTS (DIRECT PAYMENTS),2102572011
04.10.2016,ADULT SOCIAL CARE,THE CAMDEN SOCIETY (SOCIAL CARE),"1,137.60",LD LTS 65+,DAYCARE,2102571209
04.10.2016,ADULT SOCIAL CARE,THE CAMDEN SOCIETY (SOCIAL CARE),897.60,LD LTS 65+,DAYCARE,2102571982
04.10.2016,ADULT SOCIAL CARE,BLACK ELDER GROUP SWK,264.00,MEM LTS 18-64,DAYCARE,2102571043
04.10.2016,ADULT SOCIAL CARE,REDACTED PERSONAL DATA,"1,096.36",MEM LTS 18-64,PAYMENTS TO CLIENTS (DIRECT PAYMENTS),2102571361
04.10.2016,ADULT SOCIAL CARE,PEOPLE PLUS,619.20,MEM LTS 18-64,PAYMENTS TO CLIENTS (DIRECT PAYMENTS),2102571486
04.10.2016,ADULT SOCIAL CARE,REDACTED PERSONAL DATA,256.00,MEM LTS 18-64,SUPPORTED LIVING,2102571508
04.10.2016,ADULT SOCIAL CARE,PEOPLE PLUS,389.32,MEM LTS 18-64,PAYMENTS TO CLIENTS (DIRECT PAYMENTS),2102571649
04.10.2016,ADULT SOCIAL CARE,AGE UK  LEWISHAM & SOUTHWARK,540.00,MEM LTS 65+,DAYCARE,2102571042
04.10.2016,ADULT SOCIAL CARE,AGE UK  LEWISHAM & SOUTHWARK,900.00,MEM LTS 65+,DAYCARE,2102571144
04.10.2016,ADULT SOCIAL CARE,BLACK ELDER GROUP SWK,300.00,MEM LTS 65+,DAYCARE,2102571241
04.10.2016,ADULT SOCIAL CARE,REDACTED PERSONAL DATA,-292.64,MEM LTS 65+,DISCRETIONARY FLEXIBLE FEES & INCOME,2102571326
04.10.2016,ADULT SOCIAL CARE,REDACTED PERSONAL DATA,950.96,MEM LTS 65+,PAYMENTS TO CLIENTS (DIRECT PAYMENTS),2102571327
04.10.2016,ADULT SOCIAL CARE,REDACTED PERSONAL DATA,"1,316.00",MEM LTS 65+,PAYMENTS TO CLIENTS (DIRECT PAYMENTS),2102571392
04.10.2016,ADULT SOCIAL CARE,PEOPLE PLUS,934.00,MEM LTS 65+,PAYMENTS TO CLIENTS (DIRECT PAYMENTS),2102571521
04.10.2016,ADULT SOCIAL CARE,AGE UK  LEWISHAM & SOUTHWARK,900.00,MEM LTS 65+,DAYCARE,2102571529
04.10.2016,ADULT SOCIAL CARE,AGE UK  LEWISHAM & SOUTHWARK,360.00,MEM LTS 65+,DAYCARE,2102571532
04.10.2016,ADULT SOCIAL CARE,ARK HOME HEALTHCARE,748.80,MEM LTS 65+,HOMECARE - C&V,2102571748
04.10.2016,ADULT SOCIAL CARE,AGE UK  LEWISHAM & SOUTHWARK,540.00,MEM LTS 65+,DAYCARE,2102571833
04.10.2016,ADULT SOCIAL CARE,CARE DIRECT UK LTD,"1,417.32",MEM LTS 65+,HOMECARE - C&V,2102571864
04.10.2016,ADULT SOCIAL CARE,ALLIED HEALTHCARE,655.20,MEM LTS 65+,HOMECARE - C&V,2102571889
04.10.2016,ADULT SOCIAL CARE,REDACTED PERSONAL DATA,709.72,MEM LTS 65+,PAYMENTS TO CLIENTS (DIRECT PAYMENTS),2102571918
04.10.2016,ADULT SOCIAL CARE,BUDDI LTD,"2,304.00",MEM LTS 65+,EXTERNAL AGENCIES AND BODIES,2102571967
04.10.2016,ADULT SOCIAL CARE,FRESH IDEAS & SOLUTIONS SERVICES CIC,860.44,MEM LTS 65+,HOMECARE - C&V,2102572003
04.10.2016,ADULT SOCIAL CARE,PEOPLE PLUS,381.84,MH LTS 18-64,PAYMENTS TO CLIENTS (DIRECT PAYMENTS),2102571083
04.10.2016,ADULT SOCIAL CARE,REDACTED PERSONAL DATA,320.00,MH LTS 18-64,DAYCARE,2102571131
04.10.2016,ADULT SOCIAL CARE,COOLTAN ARTS,376.00,MH LTS 18-64,DAYCARE,2102571182
04.10.2016,ADULT SOCIAL CARE,PEOPLE PLUS,310.48,MH LTS 18-64,PAYMENTS TO CLIENTS (DIRECT PAYMENTS),2102571198
04.10.2016,ADULT SOCIAL CARE,PEOPLE PLUS,"1,105.76",MH LTS 18-64,PAYMENTS TO CLIENTS (DIRECT PAYMENTS),2102571199
04.10.2016,ADULT SOCIAL CARE,PEOPLE PLUS,427.92,MH LTS 18-64,PAYMENTS TO CLIENTS (DIRECT PAYMENTS),2102571243
04.10.2016,ADULT SOCIAL CARE,FUTURE VISION CARE LTD,421.20,MH LTS 18-64,HOMECARE - C&V,2102571277
04.10.2016,ADULT SOCIAL CARE,REDACTED PERSONAL DATA,651.17,MH LTS 18-64,PAYMENTS TO CLIENTS (DIRECT PAYMENTS),2102571293
04.10.2016,ADULT SOCIAL CARE,REDACTED PERSONAL DATA,328.00,MH LTS 18-64,PAYMENTS TO CLIENTS (DIRECT PAYMENTS),2102571312
04.10.2016,ADULT SOCIAL CARE,REDACTED PERSONAL DATA,279.84,MH LTS 18-64,PAYMENTS TO CLIENTS (DIRECT PAYMENTS),2102571325
04.10.2016,ADULT SOCIAL CARE,HEXAGON HOUSING ASSOCIATION LTD,360.00,MH LTS 18-64,SUPPORTED LIVING,2102571423
04.10.2016,ADULT SOCIAL CARE,REDACTED PERSONAL DATA,"1,412.72",MH LTS 18-64,HOMECARE - C&V,2102571523
04.10.2016,ADULT SOCIAL CARE,BUDDI LTD,"2,899.20",MH LTS 18-64,EXTERNAL AGENCIES AND BODIES,2102571531
04.10.2016,ADULT SOCIAL CARE,ARK HOME HEALTHCARE,456.00,MH LTS 18-64,HOMECARE - SPOT,2102571562
04.10.2016,ADULT SOCIAL CARE,REDACTED PERSONAL DATA,320.00,MH LTS 18-64,DAYCARE,2102571584
04.10.2016,ADULT SOCIAL CARE,REDACTED PERSONAL DATA,330.40,MH LTS 18-64,HOMECARE - C&V,2102571654
04.10.2016,ADULT SOCIAL CARE,BEDE HOUSE ASSOCIATION,280.00,MH LTS 18-64,DAYCARE,2102571688
04.10.2016,ADULT SOCIAL CARE,ALLIED HEALTHCARE,468.00,MH LTS 18-64,HOMECARE - C&V,2102571693
04.10.2016,ADULT SOCIAL CARE,REDACTED PERSONAL DATA,"1,962.00",MH LTS 18-64,PAYMENTS TO CLIENTS (DIRECT PAYMENTS),2102571733
04.10.2016,ADULT SOCIAL CARE,CAPITAL HOMECARE (UK) LTD,423.88,MH LTS 18-64,HOMECARE - C&V,2102571739
04.10.2016,ADULT SOCIAL CARE,REDACTED PERSONAL DATA,255.00,MH LTS 18-64,HOMECARE - SPOT,2102571745
04.10.2016,ADULT SOCIAL CARE,PEOPLE PLUS,431.20,MH LTS 18-64,PAYMENTS TO CLIENTS (DIRECT PAYMENTS),2102571765
04.10.2016,ADULT SOCIAL CARE,REDACTED PERSONAL DATA,304.00,MH LTS 18-64,DAYCARE,2102571784
04.10.2016,ADULT SOCIAL CARE,THAMES HOMECARE SERVICE LTD,514.80,MH LTS 18-64,HOMECARE - C&V,2102571793
04.10.2016,ADULT SOCIAL CARE,THREE C'S SUPPORT,256.00,MH LTS 18-64,SUPPORTED LIVING,2102571830
04.10.2016,ADULT SOCIAL CARE,THREE C'S SUPPORT,492.00,MH LTS 18-64,SUPPORTED LIVING,2102571841
04.10.2016,ADULT SOCIAL CARE,COOLTAN ARTS,369.48,MH LTS 18-64,DAYCARE,2102571851
04.10.2016,ADULT SOCIAL CARE,REDACTED PERSONAL DATA,"1,497.60",MH LTS 18-64,PAYMENTS TO CLIENTS (DIRECT PAYMENTS),2102571868
04.10.2016,ADULT SOCIAL CARE,PEOPLE PLUS,263.92,MH LTS 18-64,PAYMENTS TO CLIENTS (DIRECT PAYMENTS),2102571873
04.10.2016,ADULT SOCIAL CARE,PEOPLE PLUS,274.00,MH LTS 18-64,PAYMENTS TO CLIENTS (DIRECT PAYMENTS),2102571940
04.10.2016,ADULT SOCIAL CARE,THREE C'S SUPPORT,328.16,MH LTS 18-64,HOMECARE - SPOT,2102571950
04.10.2016,ADULT SOCIAL CARE,REDACTED PERSONAL DATA,"1,755.60",MH LTS 65+,SUPPORTED LIVING,2102571232
04.10.2016,ADULT SOCIAL CARE,PEOPLE PLUS,608.40,MH LTS 65+,PAYMENTS TO CLIENTS (DIRECT PAYMENTS),2102571274
04.10.2016,ADULT SOCIAL CARE,PEOPLE PLUS,"1,003.20",MH LTS 65+,PAYMENTS TO CLIENTS (DIRECT PAYMENTS),2102571282
04.10.2016,ADULT SOCIAL CARE,FIRST CHOICE SOCIAL CARE & HOUSING,690.32,MH LTS 65+,HOMECARE - C&V,2102571416
04.10.2016,ADULT SOCIAL CARE,BLACK ELDER GROUP SWK,680.00,MH LTS 65+,DAYCARE,2102571557
04.10.2016,ADULT SOCIAL CARE,REDACTED PERSONAL DATA,900.00,MH LTS 65+,PAYMENTS TO CLIENTS (DIRECT PAYMENTS),2102571709
04.10.2016,ADULT SOCIAL CARE,PEOPLE PLUS,283.60,MH LTS 65+,PAYMENTS TO CLIENTS (DIRECT PAYMENTS),2102571777
04.10.2016,ADULT SOCIAL CARE,REDACTED PERSONAL DATA,"1,607.96",MH LTS 65+,PAYMENTS TO CLIENTS (DIRECT PAYMENTS),2102571795
04.10.2016,ADULT SOCIAL CARE,BUDDI LTD,"2,352.00",MH LTS 65+,EXTERNAL AGENCIES AND BODIES,2102571854
04.10.2016,ADULT SOCIAL CARE,REDACTED PERSONAL DATA,327.60,MH LTS 65+,HOMECARE - C&V,2102571870
04.10.2016,ADULT SOCIAL CARE,MEDACS HOMECARE,392.00,MH LTS 65+,HOMECARE - C&V,2102571876
04.10.2016,ADULT SOCIAL CARE,ARK HOME HEALTHCARE,351.00,MH LTS 65+,HOMECARE - C&V,2102571886
04.10.2016,ADULT SOCIAL CARE,PEOPLE PLUS,901.36,MH LTS 65+,PAYMENTS TO CLIENTS (DIRECT PAYMENTS),2102571984
04.10.2016,ADULT SOCIAL CARE,STUDIO UPSTAIRS,-912.00,PERSONAL BUDGET - SOCIAL CARE,PERSONALISATION PAYMENTS,2102459235
04.10.2016,ADULT SOCIAL CARE,CAPITAL HOMECARE (UK) LTD,"7,698.60",PHY LTS 18-64,HOMECARE - C&V,2102571045
04.10.2016,ADULT SOCIAL CARE,REDACTED PERSONAL DATA,814.20,PHY LTS 18-64,PAYMENTS TO CLIENTS (DIRECT PAYMENTS),2102571046
04.10.2016,ADULT SOCIAL CARE,PEOPLE PLUS,974.52,PHY LTS 18-64,PAYMENTS TO CLIENTS (DIRECT PAYMENTS),2102571055
04.10.2016,ADULT SOCIAL CARE,SWK AFRICAN FAMILY SUPPORT SVCS,982.80,PHY LTS 18-64,HOMECARE - C&V,2102571057
04.10.2016,ADULT SOCIAL CARE,SWK DISABLEMENT ASSN,515.56,PHY LTS 18-64,HOMECARE - C&V,2102571064
04.10.2016,ADULT SOCIAL CARE,PEOPLE PLUS,"2,446.64",PHY LTS 18-64,PAYMENTS TO CLIENTS (DIRECT PAYMENTS),2102571069
04.10.2016,ADULT SOCIAL CARE,PEOPLE PLUS,535.60,PHY LTS 18-64,PAYMENTS TO CLIENTS (DIRECT PAYMENTS),2102571074
04.10.2016,ADULT SOCIAL CARE,REDACTED PERSONAL DATA,514.80,PHY LTS 18-64,PAYMENTS TO CLIENTS (DIRECT PAYMENTS),2102571086
04.10.2016,ADULT SOCIAL CARE,PEOPLE PLUS,"3,307.52",PHY LTS 18-64,PAYMENTS TO CLIENTS (DIRECT PAYMENTS),2102571094
04.10.2016,ADULT SOCIAL CARE,REDACTED PERSONAL DATA,491.40,PHY LTS 18-64,PAYMENTS TO CLIENTS (DIRECT PAYMENTS),2102571098
04.10.2016,ADULT SOCIAL CARE,REDACTED PERSONAL DATA,647.92,PHY LTS 18-64,PAYMENTS TO CLIENTS (DIRECT PAYMENTS),2102571108
04.10.2016,ADULT SOCIAL CARE,SWK DISABLEMENT ASSN,648.12,PHY LTS 18-64,HOMECARE - C&V,2102571111
04.10.2016,ADULT SOCIAL CARE,YOUTH GRACES (UK) LTD,713.68,PHY LTS 18-64,HOMECARE - C&V,2102571116
04.10.2016,ADULT SOCIAL CARE,REDACTED PERSONAL DATA,730.60,PHY LTS 18-64,PAYMENTS TO CLIENTS (DIRECT PAYMENTS),2102571119
04.10.2016,ADULT SOCIAL CARE,REDACTED PERSONAL DATA,635.28,PHY LTS 18-64,PAYMENTS TO CLIENTS (DIRECT PAYMENTS),2102571120
04.10.2016,ADULT SOCIAL CARE,THE CAMDEN SOCIETY (SOCIAL CARE),705.60,PHY LTS 18-64,DAYCARE,2102571128
04.10.2016,ADULT SOCIAL CARE,FRESH IDEAS & SOLUTIONS SERVICES CIC,870.00,PHY LTS 18-64,PAYMENTS TO CLIENTS (DIRECT PAYMENTS),2102571132
04.10.2016,ADULT SOCIAL CARE,PEOPLE PLUS,441.56,PHY LTS 18-64,PAYMENTS TO CLIENTS (DIRECT PAYMENTS),2102571139
04.10.2016,ADULT SOCIAL CARE,GOLDSBOROUGH HOMECARE & NURSING,655.20,PHY LTS 18-64,HOMECARE - C&V,2102571163
04.10.2016,ADULT SOCIAL CARE,PEOPLE PLUS,619.20,PHY LTS 18-64,PAYMENTS TO CLIENTS (DIRECT PAYMENTS),2102571169
04.10.2016,ADULT SOCIAL CARE,PEOPLE PLUS,613.80,PHY LTS 18-64,PAYMENTS TO CLIENTS (DIRECT PAYMENTS),2102571171
04.10.2016,ADULT SOCIAL CARE,CARE DIRECT UK LTD,"1,076.40",PHY LTS 18-64,HOMECARE - C&V,2102571188
04.10.2016,ADULT SOCIAL CARE,SWK DISABLEMENT ASSN,"2,062.20",PHY LTS 18-64,HOMECARE - C&V,2102571204
04.10.2016,ADULT SOCIAL CARE,REDACTED PERSONAL DATA,"1,002.32",PHY LTS 18-64,PAYMENTS TO CLIENTS (DIRECT PAYMENTS),2102571212
04.10.2016,ADULT SOCIAL CARE,ALLIED HEALTHCARE,491.40,PHY LTS 18-64,HOMECARE - C&V,2102571251
04.10.2016,ADULT SOCIAL CARE,SWK DISABLEMENT ASSN,"2,489.36",PHY LTS 18-64,HOMECARE - C&V,2102571255
04.10.2016,ADULT SOCIAL CARE,PEOPLE PLUS,"2,295.04",PHY LTS 18-64,PAYMENTS TO CLIENTS (DIRECT PAYMENTS),2102571270
04.10.2016,ADULT SOCIAL CARE,PEOPLE PLUS,452.00,PHY LTS 18-64,PAYMENTS TO CLIENTS (DIRECT PAYMENTS),2102571280
04.10.2016,ADULT SOCIAL CARE,PEOPLE PLUS,"1,032.32",PHY LTS 18-64,PAYMENTS TO CLIENTS (DIRECT PAYMENTS),2102571281
04.10.2016,ADULT SOCIAL CARE,REDACTED PERSONAL DATA,"1,257.92",PHY LTS 18-64,PAYMENTS TO CLIENTS (DIRECT PAYMENTS),2102571287
04.10.2016,ADULT SOCIAL CARE,REDACTED PERSONAL DATA,403.44,PHY LTS 18-64,PAYMENTS TO CLIENTS (DIRECT PAYMENTS),2102571289
04.10.2016,ADULT SOCIAL CARE,REDACTED PERSONAL DATA,462.86,PHY LTS 18-64,PAYMENTS TO CLIENTS (DIRECT PAYMENTS),2102571290
04.10.2016,ADULT SOCIAL CARE,REDACTED PERSONAL DATA,688.80,PHY LTS 18-64,PAYMENTS TO CLIENTS (DIRECT PAYMENTS),2102571292
04.10.2016,ADULT SOCIAL CARE,REDACTED PERSONAL DATA,440.00,PHY LTS 18-64,PAYMENTS TO CLIENTS (DIRECT PAYMENTS),2102571296
04.10.2016,ADULT SOCIAL CARE,REDACTED PERSONAL DATA,314.44,PHY LTS 18-64,PAYMENTS TO CLIENTS (DIRECT PAYMENTS),2102571297
04.10.2016,ADULT SOCIAL CARE,REDACTED PERSONAL DATA,"2,851.96",PHY LTS 18-64,PAYMENTS TO CLIENTS (DIRECT PAYMENTS),2102571300
04.10.2016,ADULT SOCIAL CARE,REDACTED PERSONAL DATA,668.80,PHY LTS 18-64,PAYMENTS TO CLIENTS (DIRECT PAYMENTS),2102571302
04.10.2016,ADULT SOCIAL CARE,REDACTED PERSONAL DATA,"3,542.40",PHY LTS 18-64,PAYMENTS TO CLIENTS (DIRECT PAYMENTS),2102571316
04.10.2016,ADULT SOCIAL CARE,REDACTED PERSONAL DATA,602.44,PHY LTS 18-64,PAYMENTS TO CLIENTS (DIRECT PAYMENTS),2102571323
04.10.2016,ADULT SOCIAL CARE,REDACTED PERSONAL DATA,521.64,PHY LTS 18-64,PAYMENTS TO CLIENTS (DIRECT PAYMENTS),2102571324
04.10.2016,ADULT SOCIAL CARE,REDACTED PERSONAL DATA,"3,234.00",PHY LTS 18-64,PAYMENTS TO CLIENTS (DIRECT PAYMENTS),2102571333
04.10.2016,ADULT SOCIAL CARE,REDACTED PERSONAL DATA,"1,147.12",PHY LTS 18-64,PAYMENTS TO CLIENTS (DIRECT PAYMENTS),2102571335
04.10.2016,ADULT SOCIAL CARE,REDACTED PERSONAL DATA,876.88,PHY LTS 18-64,PAYMENTS TO CLIENTS (DIRECT PAYMENTS),2102571345
04.10.2016,ADULT SOCIAL CARE,REDACTED PERSONAL DATA,309.72,PHY LTS 18-64,PAYMENTS TO CLIENTS (DIRECT PAYMENTS),2102571355
04.10.2016,ADULT SOCIAL CARE,REDACTED PERSONAL DATA,312.60,PHY LTS 18-64,PAYMENTS TO CLIENTS (DIRECT PAYMENTS),2102571359
04.10.2016,ADULT SOCIAL CARE,REDACTED PERSONAL DATA,323.04,PHY LTS 18-64,PAYMENTS TO CLIENTS (DIRECT PAYMENTS),2102571370
04.10.2016,ADULT SOCIAL CARE,REDACTED PERSONAL DATA,501.60,PHY LTS 18-64,PAYMENTS TO CLIENTS (DIRECT PAYMENTS),2102571379
04.10.2016,ADULT SOCIAL CARE,REDACTED PERSONAL DATA,"3,433.80",PHY LTS 18-64,PAYMENTS TO CLIENTS (DIRECT PAYMENTS),2102571380
04.10.2016,ADULT SOCIAL CARE,REDACTED PERSONAL DATA,721.04,PHY LTS 18-64,PAYMENTS TO CLIENTS (DIRECT PAYMENTS),2102571385
04.10.2016,ADULT SOCIAL CARE,REDACTED PERSONAL DATA,"3,278.60",PHY LTS 18-64,PAYMENTS TO CLIENTS (DIRECT PAYMENTS),2102571400
04.10.2016,ADULT SOCIAL CARE,REDACTED PERSONAL DATA,354.40,PHY LTS 18-64,PAYMENTS TO CLIENTS (DIRECT PAYMENTS),2102571401
04.10.2016,ADULT SOCIAL CARE,REDACTED PERSONAL DATA,"1,204.16",PHY LTS 18-64,PAYMENTS TO CLIENTS (DIRECT PAYMENTS),2102571406
04.10.2016,ADULT SOCIAL CARE,REDACTED PERSONAL DATA,418.00,PHY LTS 18-64,PAYMENTS TO CLIENTS (DIRECT PAYMENTS),2102571410
04.10.2016,ADULT SOCIAL CARE,AGE UK  LEWISHAM & SOUTHWARK,360.00,PHY LTS 18-64,DAYCARE,2102571422
04.10.2016,ADULT SOCIAL CARE,REDACTED PERSONAL DATA,836.36,PHY LTS 18-64,PAYMENTS TO CLIENTS (DIRECT PAYMENTS),2102571432
04.10.2016,ADULT SOCIAL CARE,REDACTED PERSONAL DATA,824.64,PHY LTS 18-64,PAYMENTS TO CLIENTS (DIRECT PAYMENTS),2102571433
04.10.2016,ADULT SOCIAL CARE,REDACTED PERSONAL DATA,400.00,PHY LTS 18-64,PAYMENTS TO CLIENTS (DIRECT PAYMENTS),2102571440
04.10.2016,ADULT SOCIAL CARE,BUDDI LTD,"2,352.00",PHY LTS 18-64,EXTERNAL AGENCIES AND BODIES,2102571444
04.10.2016,ADULT SOCIAL CARE,SWK DISABLEMENT ASSN,777.60,PHY LTS 18-64,HOMECARE - C&V,2102571448
04.10.2016,ADULT SOCIAL CARE,REDACTED PERSONAL DATA,675.48,PHY LTS 18-64,PAYMENTS TO CLIENTS (DIRECT PAYMENTS),2102571451
04.10.2016,ADULT SOCIAL CARE,REDACTED PERSONAL DATA,663.52,PHY LTS 18-64,PAYMENTS TO CLIENTS (DIRECT PAYMENTS),2102571465
04.10.2016,ADULT SOCIAL CARE,REDACTED PERSONAL DATA,"1,579.20",PHY LTS 18-64,PAYMENTS TO CLIENTS (DIRECT PAYMENTS),2102571475
04.10.2016,ADULT SOCIAL CARE,PEOPLE PLUS,588.40,PHY LTS 18-64,PAYMENTS TO CLIENTS (DIRECT PAYMENTS),2102571485
04.10.2016,ADULT SOCIAL CARE,REDACTED PERSONAL DATA,957.68,PHY LTS 18-64,PAYMENTS TO CLIENTS (DIRECT PAYMENTS),2102571499
04.10.2016,ADULT SOCIAL CARE,REDACTED PERSONAL DATA,312.60,PHY LTS 18-64,PAYMENTS TO CLIENTS (DIRECT PAYMENTS),2102571504
04.10.2016,ADULT SOCIAL CARE,PEOPLE PLUS,"1,052.64",PHY LTS 18-64,PAYMENTS TO CLIENTS (DIRECT PAYMENTS),2102571510
04.10.2016,ADULT SOCIAL CARE,PEOPLE PLUS,535.60,PHY LTS 18-64,PAYMENTS TO CLIENTS (DIRECT PAYMENTS),2102571512
04.10.2016,ADULT SOCIAL CARE,PEOPLE PLUS,"4,096.40",PHY LTS 18-64,PAYMENTS TO CLIENTS (DIRECT PAYMENTS),2102571513
04.10.2016,ADULT SOCIAL CARE,CAPITAL HOMECARE (UK) LTD,"1,170.00",PHY LTS 18-64,HOMECARE - C&V,2102571516
04.10.2016,ADULT SOCIAL CARE,PEOPLE PLUS,629.64,PHY LTS 18-64,PAYMENTS TO CLIENTS (DIRECT PAYMENTS),2102571520
04.10.2016,ADULT SOCIAL CARE,REDACTED PERSONAL DATA,500.72,PHY LTS 18-64,PAYMENTS TO CLIENTS (DIRECT PAYMENTS),2102571534
04.10.2016,ADULT SOCIAL CARE,LIFECARE QUALIFICATIONS LTD,690.32,PHY LTS 18-64,HOMECARE - C&V,2102571542
04.10.2016,ADULT SOCIAL CARE,CAPITAL HOMECARE (UK) LTD,351.00,PHY LTS 18-64,HOMECARE - C&V,2102571543
04.10.2016,ADULT SOCIAL CARE,FIRST CHOICE SOCIAL CARE & HOUSING,491.40,PHY LTS 18-64,HOMECARE - C&V,2102571544
04.10.2016,ADULT SOCIAL CARE,BUDDI LTD,"2,851.20",PHY LTS 18-64,EXTERNAL AGENCIES AND BODIES,2102571559
04.10.2016,ADULT SOCIAL CARE,REDACTED PERSONAL DATA,"1,221.76",PHY LTS 18-64,PAYMENTS TO CLIENTS (DIRECT PAYMENTS),2102571565
04.10.2016,ADULT SOCIAL CARE,PEOPLE PLUS,535.60,PHY LTS 18-64,PAYMENTS TO CLIENTS (DIRECT PAYMENTS),2102571573
04.10.2016,ADULT SOCIAL CARE,PEOPLE PLUS,"1,003.20",PHY LTS 18-64,PAYMENTS TO CLIENTS (DIRECT PAYMENTS),2102571582
04.10.2016,ADULT SOCIAL CARE,PEOPLE PLUS,554.00,PHY LTS 18-64,PAYMENTS TO CLIENTS (DIRECT PAYMENTS),2102571589
04.10.2016,ADULT SOCIAL CARE,PEOPLE PLUS,692.36,PHY LTS 18-64,PAYMENTS TO CLIENTS (DIRECT PAYMENTS),2102571592
04.10.2016,ADULT SOCIAL CARE,PEOPLE PLUS,"1,935.92",PHY LTS 18-64,PAYMENTS TO CLIENTS (DIRECT PAYMENTS),2102571597
04.10.2016,ADULT SOCIAL CARE,ALLIED HEALTHCARE,"1,146.60",PHY LTS 18-64,HOMECARE - C&V,2102571602
04.10.2016,ADULT SOCIAL CARE,AGE UK  LEWISHAM & SOUTHWARK,360.00,PHY LTS 18-64,DAYCARE,2102571630
04.10.2016,ADULT SOCIAL CARE,REDACTED PERSONAL DATA,258.08,PHY LTS 18-64,PAYMENTS TO CLIENTS (DIRECT PAYMENTS),2102571643
04.10.2016,ADULT SOCIAL CARE,REDACTED PERSONAL DATA,-322.40,PHY LTS 18-64,DISCRETIONARY FLEXIBLE FEES & INCOME,2102571652
04.10.2016,ADULT SOCIAL CARE,REDACTED PERSONAL DATA,"1,653.80",PHY LTS 18-64,PAYMENTS TO CLIENTS (DIRECT PAYMENTS),2102571653
04.10.2016,ADULT SOCIAL CARE,REDACTED PERSONAL DATA,438.00,PHY LTS 18-64,PAYMENTS TO CLIENTS (DIRECT PAYMENTS),2102571655
04.10.2016,ADULT SOCIAL CARE,PEOPLE PLUS,911.80,PHY LTS 18-64,PAYMENTS TO CLIENTS (DIRECT PAYMENTS),2102571665
04.10.2016,ADULT SOCIAL CARE,PEOPLE PLUS,"1,018.40",PHY LTS 18-64,PAYMENTS TO CLIENTS (DIRECT PAYMENTS),2102571670
04.10.2016,ADULT SOCIAL CARE,PEOPLE PLUS,692.36,PHY LTS 18-64,PAYMENTS TO CLIENTS (DIRECT PAYMENTS),2102571672
04.10.2016,ADULT SOCIAL CARE,SWK DISABLEMENT ASSN,"1,148.96",PHY LTS 18-64,HOMECARE - C&V,2102571674
04.10.2016,ADULT SOCIAL CARE,BUDDI LTD,"2,899.20",PHY LTS 18-64,EXTERNAL AGENCIES AND BODIES,2102571677
04.10.2016,ADULT SOCIAL CARE,REDACTED PERSONAL DATA,751.96,PHY LTS 18-64,PAYMENTS TO CLIENTS (DIRECT PAYMENTS),2102571687
04.10.2016,ADULT SOCIAL CARE,REDACTED PERSONAL DATA,"3,589.92",PHY LTS 18-64,PAYMENTS TO CLIENTS (DIRECT PAYMENTS),2102571692
04.10.2016,ADULT SOCIAL CARE,PEOPLE PLUS,598.28,PHY LTS 18-64,PAYMENTS TO CLIENTS (DIRECT PAYMENTS),2102571700
04.10.2016,ADULT SOCIAL CARE,PEOPLE PLUS,"2,082.20",PHY LTS 18-64,PAYMENTS TO CLIENTS (DIRECT PAYMENTS),2102571701
04.10.2016,ADULT SOCIAL CARE,REDACTED PERSONAL DATA,616.52,PHY LTS 18-64,PAYMENTS TO CLIENTS (DIRECT PAYMENTS),2102571711
04.10.2016,ADULT SOCIAL CARE,PEOPLE PLUS,629.64,PHY LTS 18-64,PAYMENTS TO CLIENTS (DIRECT PAYMENTS),2102571731
04.10.2016,ADULT SOCIAL CARE,PEOPLE PLUS,765.52,PHY LTS 18-64,PAYMENTS TO CLIENTS (DIRECT PAYMENTS),2102571754
04.10.2016,ADULT SOCIAL CARE,THAMES HOMECARE SERVICE LTD,"1,316.00",PHY LTS 18-64,HOMECARE - C&V,2102571758
04.10.2016,ADULT SOCIAL CARE,PEOPLE PLUS,389.32,PHY LTS 18-64,PAYMENTS TO CLIENTS (DIRECT PAYMENTS),2102571778
04.10.2016,ADULT SOCIAL CARE,PEOPLE PLUS,"1,120.80",PHY LTS 18-64,PAYMENTS TO CLIENTS (DIRECT PAYMENTS),2102571786
04.10.2016,ADULT SOCIAL CARE,SWK DISABLEMENT ASSN,"3,977.12",PHY LTS 18-64,HOMECARE - SPOT,2102571801
04.10.2016,ADULT SOCIAL CARE,REDACTED PERSONAL DATA,"1,025.20",PHY LTS 18-64,PAYMENTS TO CLIENTS (DIRECT PAYMENTS),2102571820
04.10.2016,ADULT SOCIAL CARE,FRESH IDEAS & SOLUTIONS SERVICES CIC,"5,774.24",PHY LTS 18-64,HOMECARE - C&V,2102571823
04.10.2016,ADULT SOCIAL CARE,FRESH IDEAS & SOLUTIONS SERVICES CIC,846.44,PHY LTS 18-64,PAYMENTS TO CLIENTS (DIRECT PAYMENTS),2102571824
04.10.2016,ADULT SOCIAL CARE,PEOPLE PLUS,"1,964.60",PHY LTS 18-64,PAYMENTS TO CLIENTS (DIRECT PAYMENTS),2102571827
04.10.2016,ADULT SOCIAL CARE,LIFECARE QUALIFICATIONS LTD,"2,328.32",PHY LTS 18-64,HOMECARE - C&V,2102571829
04.10.2016,ADULT SOCIAL CARE,PEOPLE PLUS,"1,738.64",PHY LTS 18-64,PAYMENTS TO CLIENTS (DIRECT PAYMENTS),2102571856
04.10.2016,ADULT SOCIAL CARE,PEOPLE PLUS,734.16,PHY LTS 18-64,PAYMENTS TO CLIENTS (DIRECT PAYMENTS),2102571857
04.10.2016,ADULT SOCIAL CARE,PEOPLE PLUS,661.00,PHY LTS 18-64,PAYMENTS TO CLIENTS (DIRECT PAYMENTS),2102571860
04.10.2016,ADULT SOCIAL CARE,REDACTED PERSONAL DATA,"4,608.04",PHY LTS 18-64,PAYMENTS TO CLIENTS (DIRECT PAYMENTS),2102571871
04.10.2016,ADULT SOCIAL CARE,GOLDSBOROUGH HOMECARE & NURSING,690.32,PHY LTS 18-64,HOMECARE - C&V,2102571895
04.10.2016,ADULT SOCIAL CARE,YOUTH GRACES (UK) LTD,550.00,PHY LTS 18-64,HOMECARE - C&V,2102571904
04.10.2016,ADULT SOCIAL CARE,PEOPLE PLUS,389.32,PHY LTS 18-64,PAYMENTS TO CLIENTS (DIRECT PAYMENTS),2102571915
04.10.2016,ADULT SOCIAL CARE,REDACTED PERSONAL DATA,521.60,PHY LTS 18-64,PAYMENTS TO CLIENTS (DIRECT PAYMENTS),2102571920
04.10.2016,ADULT SOCIAL CARE,SWK DISABLEMENT ASSN,"1,561.40",PHY LTS 18-64,HOMECARE - C&V,2102571924
04.10.2016,ADULT SOCIAL CARE,PEOPLE PLUS,295.04,PHY LTS 18-64,PAYMENTS TO CLIENTS (DIRECT PAYMENTS),2102571935
04.10.2016,ADULT SOCIAL CARE,PEOPLE PLUS,"1,356.32",PHY LTS 18-64,PAYMENTS TO CLIENTS (DIRECT PAYMENTS),2102571947
04.10.2016,ADULT SOCIAL CARE,PEOPLE PLUS,877.80,PHY LTS 18-64,PAYMENTS TO CLIENTS (DIRECT PAYMENTS),2102571951
04.10.2016,ADULT SOCIAL CARE,SWK DISABLEMENT ASSN,"2,975.44",PHY LTS 18-64,HOMECARE - C&V,2102571953
04.10.2016,ADULT SOCIAL CARE,PEOPLE PLUS,619.20,PHY LTS 18-64,PAYMENTS TO CLIENTS (DIRECT PAYMENTS),2102571957
04.10.2016,ADULT SOCIAL CARE,REDACTED PERSONAL DATA,999.60,PHY LTS 18-64,PAYMENTS TO CLIENTS (DIRECT PAYMENTS),2102571958
04.10.2016,ADULT SOCIAL CARE,SWK DISABLEMENT ASSN,"2,238.96",PHY LTS 18-64,HOMECARE - C&V,2102571959
04.10.2016,ADULT SOCIAL CARE,SWK DISABLEMENT ASSN,368.24,PHY LTS 18-64,HOMECARE - SPOT,2102571963
04.10.2016,ADULT SOCIAL CARE,PEOPLE PLUS,779.88,PHY LTS 18-64,PAYMENTS TO CLIENTS (DIRECT PAYMENTS),2102571974
04.10.2016,ADULT SOCIAL CARE,ALLIED HEALTHCARE,"1,649.72",PHY LTS 18-64,HOMECARE - C&V,2102571981
04.10.2016,ADULT SOCIAL CARE,REDACTED PERSONAL DATA,"1,210.40",PHY LTS 18-64,PAYMENTS TO CLIENTS (DIRECT PAYMENTS),2102571988
04.10.2016,ADULT SOCIAL CARE,SWK DISABLEMENT ASSN,"1,252.04",PHY LTS 18-64,HOMECARE - C&V,2102571996
04.10.2016,ADULT SOCIAL CARE,CAPITAL HOMECARE (UK) LTD,491.40,PHY LTS 18-64,HOMECARE - C&V,2102572006
04.10.2016,ADULT SOCIAL CARE,PEOPLE PLUS,911.80,PHY LTS 18-64,PAYMENTS TO CLIENTS (DIRECT PAYMENTS),2102572012
04.10.2016,ADULT SOCIAL CARE,CARE DIRECT UK LTD,783.92,PHY LTS 65+,HOMECARE - C&V,2102571039
04.10.2016,ADULT SOCIAL CARE,BLACK ELDER GROUP SWK,480.00,PHY LTS 65+,DAYCARE,2102571044
04.10.2016,ADULT SOCIAL CARE,FRESH IDEAS & SOLUTIONS SERVICES CIC,"1,079.04",PHY LTS 65+,HOMECARE - C&V,2102571051
04.10.2016,ADULT SOCIAL CARE,AGE UK  LEWISHAM & SOUTHWARK,540.00,PHY LTS 65+,DAYCARE,2102571052
04.10.2016,ADULT SOCIAL CARE,SWK DISABLEMENT ASSN,854.36,PHY LTS 65+,HOMECARE - C&V,2102571061
04.10.2016,ADULT SOCIAL CARE,PEOPLE PLUS,531.76,PHY LTS 65+,PAYMENTS TO CLIENTS (DIRECT PAYMENTS),2102571067
04.10.2016,ADULT SOCIAL CARE,PEOPLE PLUS,953.60,PHY LTS 65+,PAYMENTS TO CLIENTS (DIRECT PAYMENTS),2102571076
04.10.2016,ADULT SOCIAL CARE,REDACTED PERSONAL DATA,"1,552.36",PHY LTS 65+,HOMECARE - C&V,2102571077
04.10.2016,ADULT SOCIAL CARE,PEOPLE PLUS,263.92,PHY LTS 65+,PAYMENTS TO CLIENTS (DIRECT PAYMENTS),2102571080
04.10.2016,ADULT SOCIAL CARE,PEOPLE PLUS,334.40,PHY LTS 65+,PAYMENTS TO CLIENTS (DIRECT PAYMENTS),2102571082
04.10.2016,ADULT SOCIAL CARE,SWK DISABLEMENT ASSN,"1,355.16",PHY LTS 65+,HOMECARE - C&V,2102571084
04.10.2016,ADULT SOCIAL CARE,BLACK ELDER GROUP SWK,680.00,PHY LTS 65+,DAYCARE,2102571085
04.10.2016,ADULT SOCIAL CARE,PEOPLE PLUS,556.52,PHY LTS 65+,PAYMENTS TO CLIENTS (DIRECT PAYMENTS),2102571088
04.10.2016,ADULT SOCIAL CARE,REDACTED PERSONAL DATA,"1,621.60",PHY LTS 65+,PAYMENTS TO CLIENTS (DIRECT PAYMENTS),2102571090
04.10.2016,ADULT SOCIAL CARE,AGE UK  LEWISHAM & SOUTHWARK,360.00,PHY LTS 65+,DAYCARE,2102571112
04.10.2016,ADULT SOCIAL CARE,CAPITAL HOMECARE (UK) LTD,"1,228.52",PHY LTS 65+,HOMECARE - C&V,2102571113
04.10.2016,ADULT SOCIAL CARE,REDACTED PERSONAL DATA,627.12,PHY LTS 65+,PAYMENTS TO CLIENTS (DIRECT PAYMENTS),2102571114
04.10.2016,ADULT SOCIAL CARE,FRESH IDEAS & SOLUTIONS SERVICES CIC,849.12,PHY LTS 65+,PAYMENTS TO CLIENTS (DIRECT PAYMENTS),2102571123
04.10.2016,ADULT SOCIAL CARE,PEOPLE PLUS,911.80,PHY LTS 65+,PAYMENTS TO CLIENTS (DIRECT PAYMENTS),2102571126
04.10.2016,ADULT SOCIAL CARE,FIRST CHOICE SOCIAL CARE & HOUSING,304.20,PHY LTS 65+,HOMECARE - C&V,2102571130
04.10.2016,ADULT SOCIAL CARE,PEOPLE PLUS,326.60,PHY LTS 65+,PAYMENTS TO CLIENTS (DIRECT PAYMENTS),2102571135
04.10.2016,ADULT SOCIAL CARE,PEOPLE PLUS,535.64,PHY LTS 65+,PAYMENTS TO CLIENTS (DIRECT PAYMENTS),2102571138
04.10.2016,ADULT SOCIAL CARE,THAMES HOMECARE SERVICE LTD,643.52,PHY LTS 65+,HOMECARE - C&V,2102571143
04.10.2016,ADULT SOCIAL CARE,REDACTED PERSONAL DATA,306.80,PHY LTS 65+,PAYMENTS TO CLIENTS (DIRECT PAYMENTS),2102571145
04.10.2016,ADULT SOCIAL CARE,FRESH IDEAS & SOLUTIONS SERVICES CIC,253.44,PHY LTS 65+,PAYMENTS TO CLIENTS (DIRECT PAYMENTS),2102571147
04.10.2016,ADULT SOCIAL CARE,PEOPLE PLUS,473.88,PHY LTS 65+,PAYMENTS TO CLIENTS (DIRECT PAYMENTS),2102571148
04.10.2016,ADULT SOCIAL CARE,ALLIED HEALTHCARE,772.20,PHY LTS 65+,HOMECARE - C&V,2102571152
04.10.2016,ADULT SOCIAL CARE,GOLDSBOROUGH HOMECARE & NURSING,"1,895.40",PHY LTS 65+,HOMECARE - C&V,2102571153
04.10.2016,ADULT SOCIAL CARE,PEOPLE PLUS,640.12,PHY LTS 65+,PAYMENTS TO CLIENTS (DIRECT PAYMENTS),2102571154
04.10.2016,ADULT SOCIAL CARE,REDACTED PERSONAL DATA,768.80,PHY LTS 65+,PAYMENTS TO CLIENTS (DIRECT PAYMENTS),2102571158
04.10.2016,ADULT SOCIAL CARE,ALLIED HEALTHCARE,994.52,PHY LTS 65+,HOMECARE - C&V,2102571159
04.10.2016,ADULT SOCIAL CARE,CARE DIRECT UK LTD,444.60,PHY LTS 65+,HOMECARE - C&V,2102571162
04.10.2016,ADULT SOCIAL CARE,AGE UK  LEWISHAM & SOUTHWARK,360.00,PHY LTS 65+,DAYCARE,2102571164
04.10.2016,ADULT SOCIAL CARE,PEOPLE PLUS,"2,550.64",PHY LTS 65+,PAYMENTS TO CLIENTS (DIRECT PAYMENTS),2102571170
04.10.2016,ADULT SOCIAL CARE,PEOPLE PLUS,650.56,PHY LTS 65+,PAYMENTS TO CLIENTS (DIRECT PAYMENTS),2102571173
04.10.2016,ADULT SOCIAL CARE,REDACTED PERSONAL DATA,888.24,PHY LTS 65+,PAYMENTS TO CLIENTS (DIRECT PAYMENTS),2102571184
04.10.2016,ADULT SOCIAL CARE,SWK AFRICAN FAMILY SUPPORT SVCS,666.92,PHY LTS 65+,HOMECARE - C&V,2102571185
04.10.2016,ADULT SOCIAL CARE,CAPITAL HOMECARE (UK) LTD,327.60,PHY LTS 65+,HOMECARE - C&V,2102571186
04.10.2016,ADULT SOCIAL CARE,CAPITAL HOMECARE (UK) LTD,678.60,PHY LTS 65+,HOMECARE - C&V,2102571192
04.10.2016,ADULT SOCIAL CARE,PEOPLE PLUS,365.76,PHY LTS 65+,PAYMENTS TO CLIENTS (DIRECT PAYMENTS),2102571197
04.10.2016,ADULT SOCIAL CARE,REDACTED PERSONAL DATA,480.00,PHY LTS 65+,PAYMENTS TO CLIENTS (DIRECT PAYMENTS),2102571206
04.10.2016,ADULT SOCIAL CARE,CAPITAL HOMECARE (UK) LTD,678.60,PHY LTS 65+,HOMECARE - C&V,2102571208
04.10.2016,ADULT SOCIAL CARE,REDACTED PERSONAL DATA,725.40,PHY LTS 65+,HOMECARE - C&V,2102571210
04.10.2016,ADULT SOCIAL CARE,AGE UK  LEWISHAM & SOUTHWARK,360.00,PHY LTS 65+,DAYCARE,2102571211
04.10.2016,ADULT SOCIAL CARE,AGE UK  LEWISHAM & SOUTHWARK,720.00,PHY LTS 65+,DAYCARE,2102571214
04.10.2016,ADULT SOCIAL CARE,BUDDI LTD,"2,352.00",PHY LTS 65+,EXTERNAL AGENCIES AND BODIES,2102571216
04.10.2016,ADULT SOCIAL CARE,CAPITAL HOMECARE (UK) LTD,538.20,PHY LTS 65+,HOMECARE - C&V,2102571223
04.10.2016,ADULT SOCIAL CARE,PEOPLE PLUS,354.00,PHY LTS 65+,PAYMENTS TO CLIENTS (DIRECT PAYMENTS),2102571229
04.10.2016,ADULT SOCIAL CARE,AGE UK  LEWISHAM & SOUTHWARK,360.00,PHY LTS 65+,DAYCARE,2102571230
04.10.2016,ADULT SOCIAL CARE,MEDACS HOMECARE,678.60,PHY LTS 65+,HOMECARE - C&V,2102571248
04.10.2016,ADULT SOCIAL CARE,THAMES HOMECARE SERVICE LTD,655.20,PHY LTS 65+,HOMECARE - C&V,2102571252
04.10.2016,ADULT SOCIAL CARE,AGE UK  LEWISHAM & SOUTHWARK,720.00,PHY LTS 65+,DAYCARE,2102571257
04.10.2016,ADULT SOCIAL CARE,AGE UK  LEWISHAM & SOUTHWARK,360.00,PHY LTS 65+,DAYCARE,2102571258
04.10.2016,ADULT SOCIAL CARE,BLACK ELDER GROUP SWK,360.00,PHY LTS 65+,DAYCARE,2102571260
04.10.2016,ADULT SOCIAL CARE,AGE UK  LEWISHAM & SOUTHWARK,360.00,PHY LTS 65+,DAYCARE,2102571261
04.10.2016,ADULT SOCIAL CARE,PEOPLE PLUS,"1,026.76",PHY LTS 65+,PAYMENTS TO CLIENTS (DIRECT PAYMENTS),2102571271
04.10.2016,ADULT SOCIAL CARE,AGE UK  LEWISHAM & SOUTHWARK,360.00,PHY LTS 65+,DAYCARE,2102571284
04.10.2016,ADULT SOCIAL CARE,REDACTED PERSONAL DATA,"2,679.60",PHY LTS 65+,HOMECARE - C&V,2102571298
04.10.2016,ADULT SOCIAL CARE,REDACTED PERSONAL DATA,"1,097.24",PHY LTS 65+,PAYMENTS TO CLIENTS (DIRECT PAYMENTS),2102571315
04.10.2016,ADULT SOCIAL CARE,REDACTED PERSONAL DATA,"2,334.48",PHY LTS 65+,PAYMENTS TO CLIENTS (DIRECT PAYMENTS),2102571317
04.10.2016,ADULT SOCIAL CARE,REDACTED PERSONAL DATA,417.72,PHY LTS 65+,PAYMENTS TO CLIENTS (DIRECT PAYMENTS),2102571321
04.10.2016,ADULT SOCIAL CARE,HESTIA HOUSING & SUPPORT,"1,198.32",PHY LTS 65+,SUPPORTED LIVING,2102571341
04.10.2016,ADULT SOCIAL CARE,REDACTED PERSONAL DATA,848.00,PHY LTS 65+,PAYMENTS TO CLIENTS (DIRECT PAYMENTS),2102571343
04.10.2016,ADULT SOCIAL CARE,REDACTED PERSONAL DATA,"2,215.40",PHY LTS 65+,PAYMENTS TO CLIENTS (DIRECT PAYMENTS),2102571344
04.10.2016,ADULT SOCIAL CARE,REDACTED PERSONAL DATA,584.04,PHY LTS 65+,PAYMENTS TO CLIENTS (DIRECT PAYMENTS),2102571367
04.10.2016,ADULT SOCIAL CARE,REDACTED PERSONAL DATA,"1,190.40",PHY LTS 65+,PAYMENTS TO CLIENTS (DIRECT PAYMENTS),2102571371
04.10.2016,ADULT SOCIAL CARE,REDACTED PERSONAL DATA,802.84,PHY LTS 65+,PAYMENTS TO CLIENTS (DIRECT PAYMENTS),2102571372
04.10.2016,ADULT SOCIAL CARE,REDACTED PERSONAL DATA,351.00,PHY LTS 65+,PAYMENTS TO CLIENTS (DIRECT PAYMENTS),2102571394
04.10.2016,ADULT SOCIAL CARE,REDACTED PERSONAL DATA,355.00,PHY LTS 65+,PAYMENTS TO CLIENTS (DIRECT PAYMENTS),2102571398
04.10.2016,ADULT SOCIAL CARE,REDACTED PERSONAL DATA,"2,158.40",PHY LTS 65+,PAYMENTS TO CLIENTS (DIRECT PAYMENTS),2102571407
04.10.2016,ADULT SOCIAL CARE,AGE UK  LEWISHAM & SOUTHWARK,540.00,PHY LTS 65+,DAYCARE,2102571413
04.10.2016,ADULT SOCIAL CARE,AGE UK  LEWISHAM & SOUTHWARK,360.00,PHY LTS 65+,DAYCARE,2102571419
04.10.2016,ADULT SOCIAL CARE,LIFECARE QUALIFICATIONS LTD,912.60,PHY LTS 65+,HOMECARE - C&V,2102571424
04.10.2016,ADULT SOCIAL CARE,REDACTED PERSONAL DATA,479.80,PHY LTS 65+,PAYMENTS TO CLIENTS (DIRECT PAYMENTS),2102571425
04.10.2016,ADULT SOCIAL CARE,THAMES HOMECARE SERVICE LTD,655.20,PHY LTS 65+,HOMECARE - C&V,2102571431
04.10.2016,ADULT SOCIAL CARE,AGE UK  LEWISHAM & SOUTHWARK,720.00,PHY LTS 65+,DAYCARE,2102571450
04.10.2016,ADULT SOCIAL CARE,PEOPLE PLUS,692.32,PHY LTS 65+,PAYMENTS TO CLIENTS (DIRECT PAYMENTS),2102571453
04.10.2016,ADULT SOCIAL CARE,REDACTED PERSONAL DATA,"1,543.76",PHY LTS 65+,PAYMENTS TO CLIENTS (DIRECT PAYMENTS),2102571454
04.10.2016,ADULT SOCIAL CARE,ALLIED HEALTHCARE,772.20,PHY LTS 65+,HOMECARE - C&V,2102571456
04.10.2016,ADULT SOCIAL CARE,SWK AFRICAN FAMILY SUPPORT SVCS,374.40,PHY LTS 65+,HOMECARE - C&V,2102571457
04.10.2016,ADULT SOCIAL CARE,MEDACS HOMECARE,327.60,PHY LTS 65+,HOMECARE - C&V,2102571458
04.10.2016,ADULT SOCIAL CARE,REDACTED PERSONAL DATA,"1,023.20",PHY LTS 65+,PAYMENTS TO CLIENTS (DIRECT PAYMENTS),2102571462
04.10.2016,ADULT SOCIAL CARE,PEOPLE PLUS,765.52,PHY LTS 65+,PAYMENTS TO CLIENTS (DIRECT PAYMENTS),2102571464
04.10.2016,ADULT SOCIAL CARE,AGE UK  LEWISHAM & SOUTHWARK,540.00,PHY LTS 65+,DAYCARE,2102571466
04.10.2016,ADULT SOCIAL CARE,REDACTED PERSONAL DATA,"1,149.52",PHY LTS 65+,PAYMENTS TO CLIENTS (DIRECT PAYMENTS),2102571467
04.10.2016,ADULT SOCIAL CARE,CARE DIRECT UK LTD,444.60,PHY LTS 65+,PAYMENTS TO CLIENTS (DIRECT PAYMENTS),2102571469
04.10.2016,ADULT SOCIAL CARE,PEOPLE PLUS,441.56,PHY LTS 65+,PAYMENTS TO CLIENTS (DIRECT PAYMENTS),2102571470
04.10.2016,ADULT SOCIAL CARE,SOUTHWARK CYPRIOT DAY CENTRE LTD,288.00,PHY LTS 65+,DAYCARE,2102571480
04.10.2016,ADULT SOCIAL CARE,PEOPLE PLUS,566.96,PHY LTS 65+,PAYMENTS TO CLIENTS (DIRECT PAYMENTS),2102571483
04.10.2016,ADULT SOCIAL CARE,REDACTED PERSONAL DATA,458.92,PHY LTS 65+,PAYMENTS TO CLIENTS (DIRECT PAYMENTS),2102571500
04.10.2016,ADULT SOCIAL CARE,REDACTED PERSONAL DATA,"1,247.04",PHY LTS 65+,PAYMENTS TO CLIENTS (DIRECT PAYMENTS),2102571509
04.10.2016,ADULT SOCIAL CARE,SWK DISABLEMENT ASSN,"1,178.40",PHY LTS 65+,HOMECARE - SPOT,2102571511
04.10.2016,ADULT SOCIAL CARE,PEOPLE PLUS,744.60,PHY LTS 65+,PAYMENTS TO CLIENTS (DIRECT PAYMENTS),2102571515
04.10.2016,ADULT SOCIAL CARE,PEOPLE PLUS,577.40,PHY LTS 65+,PAYMENTS TO CLIENTS (DIRECT PAYMENTS),2102571519
04.10.2016,ADULT SOCIAL CARE,SWK DISABLEMENT ASSN,294.60,PHY LTS 65+,HOMECARE - C&V,2102571527
04.10.2016,ADULT SOCIAL CARE,SWK DISABLEMENT ASSN,"3,770.88",PHY LTS 65+,HOMECARE - C&V,2102571528
04.10.2016,ADULT SOCIAL CARE,AGE UK  LEWISHAM & SOUTHWARK,540.00,PHY LTS 65+,DAYCARE,2102571533
04.10.2016,ADULT SOCIAL CARE,PEOPLE PLUS,543.40,PHY LTS 65+,PAYMENTS TO CLIENTS (DIRECT PAYMENTS),2102571538
04.10.2016,ADULT SOCIAL CARE,AGE UK  LEWISHAM & SOUTHWARK,360.00,PHY LTS 65+,DAYCARE,2102571549
04.10.2016,ADULT SOCIAL CARE,BLACK ELDER GROUP SWK,588.00,PHY LTS 65+,DAYCARE,2102571555
04.10.2016,ADULT SOCIAL CARE,AGE UK  LEWISHAM & SOUTHWARK,360.00,PHY LTS 65+,DAYCARE,2102571556
04.10.2016,ADULT SOCIAL CARE,REDACTED PERSONAL DATA,787.20,PHY LTS 65+,PAYMENTS TO CLIENTS (DIRECT PAYMENTS),2102571566
04.10.2016,ADULT SOCIAL CARE,PEOPLE PLUS,661.00,PHY LTS 65+,PAYMENTS TO CLIENTS (DIRECT PAYMENTS),2102571567
04.10.2016,ADULT SOCIAL CARE,ARK HOME HEALTHCARE,421.20,PHY LTS 65+,HOMECARE - C&V,2102571574
04.10.2016,ADULT SOCIAL CARE,CAPITAL HOMECARE (UK) LTD,643.52,PHY LTS 65+,HOMECARE - C&V,2102571576
04.10.2016,ADULT SOCIAL CARE,BLACK ELDER GROUP SWK,408.00,PHY LTS 65+,DAYCARE,2102571577
04.10.2016,ADULT SOCIAL CARE,CAPITAL HOMECARE (UK) LTD,"1,310.40",PHY LTS 65+,HOMECARE - C&V,2102571578
04.10.2016,ADULT SOCIAL CARE,CAPITAL HOMECARE (UK) LTD,409.52,PHY LTS 65+,HOMECARE - SPOT,2102571580
04.10.2016,ADULT SOCIAL CARE,PEOPLE PLUS,410.20,PHY LTS 65+,PAYMENTS TO CLIENTS (DIRECT PAYMENTS),2102571587
04.10.2016,ADULT SOCIAL CARE,PEOPLE PLUS,564.32,PHY LTS 65+,PAYMENTS TO CLIENTS (DIRECT PAYMENTS),2102571591
04.10.2016,ADULT SOCIAL CARE,PEOPLE PLUS,723.72,PHY LTS 65+,PAYMENTS TO CLIENTS (DIRECT PAYMENTS),2102571600
04.10.2016,ADULT SOCIAL CARE,REDACTED PERSONAL DATA,668.80,PHY LTS 65+,PAYMENTS TO CLIENTS (DIRECT PAYMENTS),2102571601
04.10.2016,ADULT SOCIAL CARE,PEOPLE PLUS,546.04,PHY LTS 65+,PAYMENTS TO CLIENTS (DIRECT PAYMENTS),2102571609
04.10.2016,ADULT SOCIAL CARE,PEOPLE PLUS,"2,231.44",PHY LTS 65+,PAYMENTS TO CLIENTS (DIRECT PAYMENTS),2102571611
04.10.2016,ADULT SOCIAL CARE,PEOPLE PLUS,-253.32,PHY LTS 65+,DISCRETIONARY FLEXIBLE FEES & INCOME,2102571612
04.10.2016,ADULT SOCIAL CARE,LIFECARE QUALIFICATIONS LTD,491.40,PHY LTS 65+,HOMECARE - C&V,2102571617
04.10.2016,ADULT SOCIAL CARE,AGE UK  LEWISHAM & SOUTHWARK,360.00,PHY LTS 65+,DAYCARE,2102571619
04.10.2016,ADULT SOCIAL CARE,PEOPLE PLUS,671.44,PHY LTS 65+,PAYMENTS TO CLIENTS (DIRECT PAYMENTS),2102571623
04.10.2016,ADULT SOCIAL CARE,REDACTED PERSONAL DATA,257.40,PHY LTS 65+,HOMECARE - C&V,2102571626
04.10.2016,ADULT SOCIAL CARE,REDACTED PERSONAL DATA,542.52,PHY LTS 65+,PAYMENTS TO CLIENTS (DIRECT PAYMENTS),2102571628
04.10.2016,ADULT SOCIAL CARE,PEOPLE PLUS,472.88,PHY LTS 65+,PAYMENTS TO CLIENTS (DIRECT PAYMENTS),2102571638
04.10.2016,ADULT SOCIAL CARE,REDACTED PERSONAL DATA,"1,041.00",PHY LTS 65+,PAYMENTS TO CLIENTS (DIRECT PAYMENTS),2102571641
04.10.2016,ADULT SOCIAL CARE,AGE UK  LEWISHAM & SOUTHWARK,660.00,PHY LTS 65+,DAYCARE,2102571646
04.10.2016,ADULT SOCIAL CARE,THAMES HOMECARE SERVICE LTD,456.04,PHY LTS 65+,HOMECARE - C&V,2102571647
04.10.2016,ADULT SOCIAL CARE,PEOPLE PLUS,556.52,PHY LTS 65+,PAYMENTS TO CLIENTS (DIRECT PAYMENTS),2102571659
04.10.2016,ADULT SOCIAL CARE,PEOPLE PLUS,"1,852.32",PHY LTS 65+,PAYMENTS TO CLIENTS (DIRECT PAYMENTS),2102571664
04.10.2016,ADULT SOCIAL CARE,BUDDI LTD,"2,352.00",PHY LTS 65+,EXTERNAL AGENCIES AND BODIES,2102571679
04.10.2016,ADULT SOCIAL CARE,REDACTED PERSONAL DATA,919.60,PHY LTS 65+,PAYMENTS TO CLIENTS (DIRECT PAYMENTS),2102571681
04.10.2016,ADULT SOCIAL CARE,PEOPLE PLUS,546.04,PHY LTS 65+,PAYMENTS TO CLIENTS (DIRECT PAYMENTS),2102571682
04.10.2016,ADULT SOCIAL CARE,PEOPLE PLUS,741.96,PHY LTS 65+,PAYMENTS TO CLIENTS (DIRECT PAYMENTS),2102571684
04.10.2016,ADULT SOCIAL CARE,SWK DISABLEMENT ASSN,810.16,PHY LTS 65+,HOMECARE - C&V,2102571689
04.10.2016,ADULT SOCIAL CARE,REDACTED PERSONAL DATA,584.80,PHY LTS 65+,HOMECARE - C&V,2102571690
04.10.2016,ADULT SOCIAL CARE,PEOPLE PLUS,"1,012.28",PHY LTS 65+,PAYMENTS TO CLIENTS (DIRECT PAYMENTS),2102571703
04.10.2016,ADULT SOCIAL CARE,PEOPLE PLUS,360.12,PHY LTS 65+,PAYMENTS TO CLIENTS (DIRECT PAYMENTS),2102571706
04.10.2016,ADULT SOCIAL CARE,MEDACS HOMECARE,643.52,PHY LTS 65+,HOMECARE - C&V,2102571707
04.10.2016,ADULT SOCIAL CARE,THAMES HOMECARE SERVICE LTD,"1,801.80",PHY LTS 65+,HOMECARE - C&V,2102571710
04.10.2016,ADULT SOCIAL CARE,BUDDI LTD,"2,352.00",PHY LTS 65+,EXTERNAL AGENCIES AND BODIES,2102571713
04.10.2016,ADULT SOCIAL CARE,ALLIED HEALTHCARE,760.52,PHY LTS 65+,HOMECARE - C&V,2102571717
04.10.2016,ADULT SOCIAL CARE,ALLIED HEALTHCARE,549.92,PHY LTS 65+,HOMECARE - C&V,2102571718
04.10.2016,ADULT SOCIAL CARE,BUDDI LTD,"2,352.00",PHY LTS 65+,EXTERNAL AGENCIES AND BODIES,2102571722
04.10.2016,ADULT SOCIAL CARE,PEOPLE PLUS,911.80,PHY LTS 65+,PAYMENTS TO CLIENTS (DIRECT PAYMENTS),2102571735
04.10.2016,ADULT SOCIAL CARE,SWK DISABLEMENT ASSN,309.32,PHY LTS 65+,HOMECARE - C&V,2102571737
04.10.2016,ADULT SOCIAL CARE,AGE UK  LEWISHAM & SOUTHWARK,360.00,PHY LTS 65+,DAYCARE,2102571738
04.10.2016,ADULT SOCIAL CARE,PEOPLE PLUS,"1,288.00",PHY LTS 65+,PAYMENTS TO CLIENTS (DIRECT PAYMENTS),2102571743
04.10.2016,ADULT SOCIAL CARE,SUPREME CARE SERVICES LTD,907.00,PHY LTS 65+,HOMECARE - C&V,2102571749
04.10.2016,ADULT SOCIAL CARE,CARE DIRECT UK LTD,648.12,PHY LTS 65+,HOMECARE - C&V,2102571759
04.10.2016,ADULT SOCIAL CARE,PEOPLE PLUS,728.52,PHY LTS 65+,PAYMENTS TO CLIENTS (DIRECT PAYMENTS),2102571761
04.10.2016,ADULT SOCIAL CARE,PEOPLE PLUS,702.80,PHY LTS 65+,PAYMENTS TO CLIENTS (DIRECT PAYMENTS),2102571770
04.10.2016,ADULT SOCIAL CARE,PEOPLE PLUS,964.04,PHY LTS 65+,PAYMENTS TO CLIENTS (DIRECT PAYMENTS),2102571788
04.10.2016,ADULT SOCIAL CARE,SWK DISABLEMENT ASSN,"1,414.08",PHY LTS 65+,HOMECARE - SPOT,2102571790
04.10.2016,ADULT SOCIAL CARE,THAMES HOMECARE SERVICE LTD,830.68,PHY LTS 65+,HOMECARE - C&V,2102571794
04.10.2016,ADULT SOCIAL CARE,MEDACS HOMECARE,374.40,PHY LTS 65+,HOMECARE - C&V,2102571796
04.10.2016,ADULT SOCIAL CARE,PEOPLE PLUS,253.44,PHY LTS 65+,PAYMENTS TO CLIENTS (DIRECT PAYMENTS),2102571799
04.10.2016,ADULT SOCIAL CARE,AGE UK  LEWISHAM & SOUTHWARK,360.00,PHY LTS 65+,DAYCARE,2102571803
04.10.2016,ADULT SOCIAL CARE,ALLIED HEALTHCARE,"1,872.00",PHY LTS 65+,HOMECARE - C&V,2102571808
04.10.2016,ADULT SOCIAL CARE,PEOPLE PLUS,619.20,PHY LTS 65+,PAYMENTS TO CLIENTS (DIRECT PAYMENTS),2102571819
04.10.2016,ADULT SOCIAL CARE,SWK DISABLEMENT ASSN,412.44,PHY LTS 65+,HOMECARE - C&V,2102571821
04.10.2016,ADULT SOCIAL CARE,CARE DIRECT UK LTD,"1,123.20",PHY LTS 65+,HOMECARE - C&V,2102571822
04.10.2016,ADULT SOCIAL CARE,CARE DIRECT UK LTD,927.00,PHY LTS 65+,HOMECARE - C&V,2102571825
04.10.2016,ADULT SOCIAL CARE,AGE UK  LEWISHAM & SOUTHWARK,540.00,PHY LTS 65+,DAYCARE,2102571831
04.10.2016,ADULT SOCIAL CARE,PEOPLE PLUS,619.20,PHY LTS 65+,PAYMENTS TO CLIENTS (DIRECT PAYMENTS),2102571835
04.10.2016,ADULT SOCIAL CARE,CAPITAL HOMECARE (UK) LTD,345.16,PHY LTS 65+,HOMECARE - C&V,2102571836
04.10.2016,ADULT SOCIAL CARE,AGE UK  LEWISHAM & SOUTHWARK,292.52,PHY LTS 65+,DAYCARE,2102571839
04.10.2016,ADULT SOCIAL CARE,AGE UK  LEWISHAM & SOUTHWARK,360.00,PHY LTS 65+,DAYCARE,2102571840
04.10.2016,ADULT SOCIAL CARE,AGE UK  LEWISHAM & SOUTHWARK,540.00,PHY LTS 65+,DAYCARE,2102571849
04.10.2016,ADULT SOCIAL CARE,MEDACS HOMECARE,959.40,PHY LTS 65+,HOMECARE - C&V,2102571852
04.10.2016,ADULT SOCIAL CARE,REDACTED PERSONAL DATA,644.88,PHY LTS 65+,PAYMENTS TO CLIENTS (DIRECT PAYMENTS),2102571858
04.10.2016,ADULT SOCIAL CARE,REDACTED PERSONAL DATA,605.20,PHY LTS 65+,PAYMENTS TO CLIENTS (DIRECT PAYMENTS),2102571861
04.10.2016,ADULT SOCIAL CARE,REDACTED PERSONAL DATA,-407.12,PHY LTS 65+,DISCRETIONARY FLEXIBLE FEES & INCOME,2102571862
04.10.2016,ADULT SOCIAL CARE,PEOPLE PLUS,546.04,PHY LTS 65+,PAYMENTS TO CLIENTS (DIRECT PAYMENTS),2102571874
04.10.2016,ADULT SOCIAL CARE,REDACTED PERSONAL DATA,830.68,PHY LTS 65+,PAYMENTS TO CLIENTS (DIRECT PAYMENTS),2102571887
04.10.2016,ADULT SOCIAL CARE,AGE UK  LEWISHAM & SOUTHWARK,360.00,PHY LTS 65+,DAYCARE,2102571890
04.10.2016,ADULT SOCIAL CARE,AGE UK  LEWISHAM & SOUTHWARK,360.00,PHY LTS 65+,DAYCARE,2102571906
04.10.2016,ADULT SOCIAL CARE,BUDDI LTD,"2,304.00",PHY LTS 65+,EXTERNAL AGENCIES AND BODIES,2102571908
04.10.2016,ADULT SOCIAL CARE,REDACTED PERSONAL DATA,"1,371.76",PHY LTS 65+,PAYMENTS TO CLIENTS (DIRECT PAYMENTS),2102571911
04.10.2016,ADULT SOCIAL CARE,ALLIED HEALTHCARE,"1,228.52",PHY LTS 65+,HOMECARE - C&V,2102571913
04.10.2016,ADULT SOCIAL CARE,PEOPLE PLUS,"1,834.00",PHY LTS 65+,PAYMENTS TO CLIENTS (DIRECT PAYMENTS),2102571921
04.10.2016,ADULT SOCIAL CARE,PEOPLE PLUS,914.24,PHY LTS 65+,PAYMENTS TO CLIENTS (DIRECT PAYMENTS),2102571922
04.10.2016,ADULT SOCIAL CARE,PEOPLE PLUS,-253.68,PHY LTS 65+,DISCRETIONARY FLEXIBLE FEES & INCOME,2102571923
04.10.2016,ADULT SOCIAL CARE,PEOPLE PLUS,493.80,PHY LTS 65+,PAYMENTS TO CLIENTS (DIRECT PAYMENTS),2102571931
04.10.2016,ADULT SOCIAL CARE,REDACTED PERSONAL DATA,737.76,PHY LTS 65+,HOMECARE - C&V,2102571937
04.10.2016,ADULT SOCIAL CARE,PEOPLE PLUS,"1,288.00",PHY LTS 65+,PAYMENTS TO CLIENTS (DIRECT PAYMENTS),2102571948
04.10.2016,ADULT SOCIAL CARE,SWK DISABLEMENT ASSN,"1,325.72",PHY LTS 65+,PAYMENTS TO CLIENTS (DIRECT PAYMENTS),2102571956
04.10.2016,ADULT SOCIAL CARE,SWK AFRICAN FAMILY SUPPORT SVCS,409.52,PHY LTS 65+,HOMECARE - C&V,2102571961
04.10.2016,ADULT SOCIAL CARE,AGE UK  LEWISHAM & SOUTHWARK,720.00,PHY LTS 65+,DAYCARE,2102571966
04.10.2016,ADULT SOCIAL CARE,PEOPLE PLUS,765.48,PHY LTS 65+,PAYMENTS TO CLIENTS (DIRECT PAYMENTS),2102571969
04.10.2016,ADULT SOCIAL CARE,PEOPLE PLUS,"1,135.60",PHY LTS 65+,PAYMENTS TO CLIENTS (DIRECT PAYMENTS),2102571970
04.10.2016,ADULT SOCIAL CARE,PEOPLE PLUS,890.92,PHY LTS 65+,PAYMENTS TO CLIENTS (DIRECT PAYMENTS),2102571972
04.10.2016,ADULT SOCIAL CARE,PEOPLE PLUS,"1,173.04",PHY LTS 65+,PAYMENTS TO CLIENTS (DIRECT PAYMENTS),2102571973
04.10.2016,ADULT SOCIAL CARE,REDACTED PERSONAL DATA,"1,521.16",PHY LTS 65+,SUPPORTED LIVING,2102571983
04.10.2016,ADULT SOCIAL CARE,PEOPLE PLUS,870.00,PHY LTS 65+,PAYMENTS TO CLIENTS (DIRECT PAYMENTS),2102571989
04.10.2016,ADULT SOCIAL CARE,REDACTED PERSONAL DATA,657.44,PHY LTS 65+,PAYMENTS TO CLIENTS (DIRECT PAYMENTS),2102571990
04.10.2016,ADULT SOCIAL CARE,AGE UK  LEWISHAM & SOUTHWARK,720.00,PHY LTS 65+,DAYCARE,2102571992
04.10.2016,ADULT SOCIAL CARE,CARE DIRECT UK LTD,655.20,PHY LTS 65+,HOMECARE - C&V,2102571995
04.10.2016,ADULT SOCIAL CARE,CAPITAL HOMECARE (UK) LTD,409.52,PHY LTS 65+,HOMECARE - C&V,2102572001
04.10.2016,ADULT SOCIAL CARE,ALLIED HEALTHCARE,"1,053.00",PHY LTS 65+,HOMECARE - SPOT,2102572002
04.10.2016,ADULT SOCIAL CARE,MEDACS HOMECARE,819.00,PHY LTS 65+,HOMECARE - C&V,2102572004
04.10.2016,ADULT SOCIAL CARE,F A ALBIN AND SONS,"1,589.00",PUBLIC FUNERALS S.46,MISCELLANEOUS EXPENSES,5902215789
04.10.2016,ADULT SOCIAL CARE,BRANDON TRUST,"1,601.04",PWLD DAYCARE,DAYCARE,2102571016
04.10.2016,ADULT SOCIAL CARE,REDACTED PERSONAL DATA,"1,430.00",PWLD DIRECT PAYMENTS,PERSONALISATION PAYMENTS,2102571033
04.10.2016,ADULT SOCIAL CARE,BRANDON TRUST,840.80,PWLD HOME CARE IND,EXTERNAL AGENCIES AND BODIES,2102571017
04.10.2016,ADULT SOCIAL CARE,VOICEABILITY ADVOCACY,805.00,SAFEGUARDING TEAM,EXTERNAL AGENCIES AND BODIES,5902215805
04.10.2016,ADULT SOCIAL CARE,PEOPLE PLUS,664.90,SOCIAL ISOLATION,PAYMENTS TO CLIENTS (DIRECT PAYMENTS),2102571050
04.10.2016,ADULT SOCIAL CARE,BUDDI LTD,"2,352.00",SOCIAL ISOLATION,EXTERNAL AGENCIES AND BODIES,2102571106
04.10.2016,ADULT SOCIAL CARE,PEOPLE PLUS,271.72,SOCIAL ISOLATION,PAYMENTS TO CLIENTS (DIRECT PAYMENTS),2102571155
04.10.2016,ADULT SOCIAL CARE,REDACTED PERSONAL DATA,"1,000.00",SOCIAL ISOLATION,PAYMENTS TO CLIENTS (DIRECT PAYMENTS),2102571177
04.10.2016,ADULT SOCIAL CARE,SOUTHWARK CYPRIOT DAY CENTRE LTD,272.00,SOCIAL ISOLATION,DAYCARE,2102571180
04.10.2016,ADULT SOCIAL CARE,SWK DISABLEMENT ASSN,"1,207.88",SOCIAL ISOLATION,HOMECARE - C&V,2102571181
04.10.2016,ADULT SOCIAL CARE,PEOPLE PLUS,534.64,SOCIAL ISOLATION,PAYMENTS TO CLIENTS (DIRECT PAYMENTS),2102571239
04.10.2016,ADULT SOCIAL CARE,AGE UK  LEWISHAM & SOUTHWARK,540.00,SOCIAL ISOLATION,DAYCARE,2102571259
04.10.2016,ADULT SOCIAL CARE,BLACK ELDER GROUP SWK,392.00,SOCIAL ISOLATION,DAYCARE,2102571275
04.10.2016,ADULT SOCIAL CARE,REDACTED PERSONAL DATA,738.40,SOCIAL ISOLATION,PAYMENTS TO CLIENTS (DIRECT PAYMENTS),2102571352
04.10.2016,ADULT SOCIAL CARE,REDACTED PERSONAL DATA,839.60,SOCIAL ISOLATION,PAYMENTS TO CLIENTS (DIRECT PAYMENTS),2102571358
04.10.2016,ADULT SOCIAL CARE,REDACTED PERSONAL DATA,614.40,SOCIAL ISOLATION,PAYMENTS TO CLIENTS (DIRECT PAYMENTS),2102571375
04.10.2016,ADULT SOCIAL CARE,AGE UK  LEWISHAM & SOUTHWARK,360.00,SOCIAL ISOLATION,DAYCARE,2102571414
04.10.2016,ADULT SOCIAL CARE,REDACTED PERSONAL DATA,307.20,SOCIAL ISOLATION,PAYMENTS TO CLIENTS (DIRECT PAYMENTS),2102571439
04.10.2016,ADULT SOCIAL CARE,AGE UK  LEWISHAM & SOUTHWARK,540.00,SOCIAL ISOLATION,DAYCARE,2102571460
04.10.2016,ADULT SOCIAL CARE,PEOPLE PLUS,546.04,SOCIAL ISOLATION,PAYMENTS TO CLIENTS (DIRECT PAYMENTS),2102571518
04.10.2016,ADULT SOCIAL CARE,AGE UK  LEWISHAM & SOUTHWARK,900.00,SOCIAL ISOLATION,DAYCARE,2102571585
04.10.2016,ADULT SOCIAL CARE,AGE UK  LEWISHAM & SOUTHWARK,540.00,SOCIAL ISOLATION,DAYCARE,2102571632
04.10.2016,ADULT SOCIAL CARE,BLACK ELDER GROUP SWK,368.00,SOCIAL ISOLATION,DAYCARE,2102571633
04.10.2016,ADULT SOCIAL CARE,AGE UK  LEWISHAM & SOUTHWARK,540.00,SOCIAL ISOLATION,DAYCARE,2102571680
04.10.2016,ADULT SOCIAL CARE,SOUTHWARK CYPRIOT DAY CENTRE LTD,405.60,SOCIAL ISOLATION,DAYCARE,2102571698
04.10.2016,ADULT SOCIAL CARE,AGE UK  LEWISHAM & SOUTHWARK,540.00,SOCIAL ISOLATION,DAYCARE,2102571699
04.10.2016,ADULT SOCIAL CARE,AGE UK  LEWISHAM & SOUTHWARK,360.00,SOCIAL ISOLATION,DAYCARE,2102571719
04.10.2016,ADULT SOCIAL CARE,FRESH IDEAS & SOLUTIONS SERVICES CIC,597.20,SOCIAL ISOLATION,HOMECARE - C&V,2102571727
04.10.2016,ADULT SOCIAL CARE,BUDDI LTD,"2,352.00",SOCIAL ISOLATION,EXTERNAL AGENCIES AND BODIES,2102571939
04.10.2016,ADULT SOCIAL CARE,PEOPLE PLUS,"3,159.20",SOCIAL ISOLATION,PAYMENTS TO CLIENTS (DIRECT PAYMENTS),2102571952
04.10.2016,ADULT SOCIAL CARE,SCHINDLER LTD,686.28,SOUTHWARK RESOURCE CENTRE,BUILDING R&M,5902215599
04.10.2016,ADULT SOCIAL CARE,HAVEN SOCIAL CARE LTD,560.00,SUB LTS 65+,HOMECARE - C&V,2102571426
04.10.2016,ASSET MANAGEMENT,D G SERVICING LIMITED,"2,808.95",ADAPTATIONS,BUILDING R&M,2102572021
04.10.2016,ASSET MANAGEMENT,STANDAGE & CO LTD,"1,907.51",ADAPTATIONS,BUILDING R&M,2102572022
04.10.2016,ASSET MANAGEMENT,STANDAGE & CO LTD,"3,542.48",ADAPTATIONS,BUILDING R&M,2102572027
04.10.2016,ASSET MANAGEMENT,EURO CONTRACTS (LONDON) LTD,"1,535.00",ADAPTATIONS,BUILDING R&M,2102572032
04.10.2016,ASSET MANAGEMENT,HANSEN PALOMARES SOLICITORS,"1,524.42",DISREPAIR,LEGAL FEES & COURT COSTS,5902215608
04.10.2016,ASSET MANAGEMENT,CLARKE BARNES SOLICITORS LLP,"2,125.00",DISREPAIR,LEGAL FEES & COURT COSTS,5902215610
04.10.2016,ASSET MANAGEMENT,SAMUEL ROSS SOLICITORS,"2,500.00",DISREPAIR,LEGAL FEES & COURT COSTS,5902215612
04.10.2016,ASSET MANAGEMENT,T BROWN & SONS (HEATING) LTD,"4,000.00",ENG CONTRACTS (NORTH),PLANNED MAINTENANCE,5902215850
04.10.2016,ASSET MANAGEMENT,GAS ADVISORY SERVICES LIMITED,"2,768.13",ENG CONTRACTS (SOUTH),HEATING -DISTRICT SERVICE (CONTRACT SUM),5902215816
04.10.2016,"BOROUGH, BANKSIDE AND WALWORTH COMMUNITY COUNCIL",SOUTHWARK TIGERS ,"3,000.00",TINY TIGERS ,GRANT,CHEQUE PAYMENT
04.10.2016,CENTRAL FUNCTIONS,STANDAGE & CO LTD,"18,514.44",GARAGE REPAIRS,BUILDING R&M,2102570992
04.10.2016,CENTRAL FUNCTIONS,KINLEIGH FOLKARD & HAYWARD LTD,"2,113.51",GARAGE REPAIRS,SERVICE CHARGES,5902215834
04.10.2016,CHIEF EXECUTIVE,KENT COUNTY COUNCIL - LASER,859.94,CAPITAL PS (REGEN),CONSTRUCTION MAIN CONTRACT -CERTIFICATED,5902215618
04.10.2016,CHILDREN AND ADULT,REDS10 LTD,"24,179.42",CAPITAL PS (EDUCATION),CONSTRUCTION FEES - ARCHITECT,2102572034
04.10.2016,CHILDREN AND ADULT,INTERSERVE (FACILITIES MANAGEMENT),"1,059.13",CAPITAL PS (SOC SERV),CONSTRUCTION MAIN CONTRACT -CERTIFICATED,2102570980
04.10.2016,CHILDREN AND ADULT,INTERSERVE (FACILITIES MANAGEMENT),"35,000.00",CAPITAL PS (SOC SERV),CONSTRUCTION MAIN CONTRACT -CERTIFICATED,2102570980
04.10.2016,CHILDREN AND ADULT,STANDAGE & CO LTD,740.00,CAPITAL PS (SOC SERV),CONSTRUCTION MAIN CONTRACT -CERTIFICATED,2102572023
04.10.2016,CHILDREN AND ADULT,STANDAGE & CO LTD,"6,650.35",CAPITAL PS (SOC SERV),CONSTRUCTION MAIN CONTRACT -CERTIFICATED,2102572023
04.10.2016,CHILDREN'S SERVICES,BRAKE BROS,275.56,CAMBERWELL GROVE EARLY YEARS CENTRE,CATERING MATERIALS & SUPPLIES,5902215815
04.10.2016,CHILDREN'S SERVICES,CAMBRIDGE HOUSE & TALBOT,"4,586.75",CAMBRIDGE HOUSE,EXTERNAL AGENCIES AND BODIES,5902215642
04.10.2016,CHILDREN'S SERVICES,TIME & TALENTS ASSOCIATION,"14,562.50",COMMISSIONING SUPPORT,EXTERNAL AGENCIES AND BODIES,5902215631
04.10.2016,CHILDREN'S SERVICES,LAMBETH MENCAP,"10,250.00",COMMISSIONING SUPPORT,EXTERNAL AGENCIES AND BODIES,5902215649
04.10.2016,CHILDREN'S SERVICES,SWK DISABLEMENT ASSN,"11,875.00",COMMISSIONING SUPPORT,EXTERNAL AGENCIES AND BODIES,5902215650
04.10.2016,CHILDREN'S SERVICES,SWK DISABLEMENT ASSN,"8,125.00",COMMISSIONING SUPPORT,EXTERNAL AGENCIES AND BODIES,5902215651
04.10.2016,CHILDREN'S SERVICES,SOUTHWARK PENSIONERS CENTRE,"12,500.00",COMMISSIONING SUPPORT,EXTERNAL AGENCIES AND BODIES,5902215655
04.10.2016,CHILDREN'S SERVICES,SOUTHWARK PENSIONERS CENTRE,"7,075.00",COMMISSIONING SUPPORT,EXTERNAL AGENCIES AND BODIES,5902215656
04.10.2016,CHILDREN'S SERVICES,LINK AGE SOUTHWARK,"29,125.00",COMMISSIONING SUPPORT,EXTERNAL AGENCIES AND BODIES,5902215658
04.10.2016,CHILDREN'S SERVICES,REDACTED PERSONAL DATA,"7,075.00",COMMISSIONING SUPPORT,EXTERNAL AGENCIES AND BODIES,5902215677
04.10.2016,CHILDREN'S SERVICES,REDACTED PERSONAL DATA,"7,562.50",COMMISSIONING SUPPORT,EXTERNAL AGENCIES AND BODIES,5902215678
04.10.2016,CHILDREN'S SERVICES,OFFICE DEPOT UK LTD,305.25,DIRECT DELIVERY,STATIONERY,5902215831
04.10.2016,CHILDREN'S SERVICES,EAST DULWICH COMMUNITY CENTRE,272.00,DISABILITY & HIV,EXTERNAL AGENCIES AND BODIES,5902215786
04.10.2016,CHILDREN'S SERVICES,INSPIRING CHILDHOOD LTD,"7,714.28",FAMILY ASSESSMENTS,RESIDENTIAL CARE,5902215861
04.10.2016,CHILDREN'S SERVICES,TY CONNECTIONS LTD,"14,614.02",FAMILY ASSESSMENTS,RESIDENTIAL CARE,5902215863
04.10.2016,CHILDREN'S SERVICES,TY CONNECTIONS LTD,480.00,FAMILY ASSESSMENTS,RESIDENTIAL CARE,5902215864
04.10.2016,CHILDREN'S SERVICES,TY CONNECTIONS LTD,606.00,FAMILY ASSESSMENTS,RESIDENTIAL CARE,5902215864
04.10.2016,CHILDREN'S SERVICES,DR ROGER KENNEDY,900.00,FAMILY ASSESSMENTS,RESIDENTIAL CARE,5902215865
04.10.2016,CHILDREN'S SERVICES,HEALTHCARE & TRANSPORT SERVICE,"49,497.75",HOME 2 SCHOOL TRANSPORT,CAB FARES,5902215757
04.10.2016,CHILDREN'S SERVICES,CAMBRIDGE HOUSE & TALBOT,"23,250.00",INDEPENDENT MC ADVOCACY,EXTERNAL AGENCIES AND BODIES,5902215623
04.10.2016,CHILDREN'S SERVICES,PEOPLE PLUS,"8,371.25",PLACEMENTS FOR CHILDREN WITH SPEC NEEDS,EXTERNAL AGENCIES AND BODIES,5902215682
04.10.2016,CHILDREN'S SERVICES,ALBION PRIMARY SCHOOL,"52,800.00",PUPIL PREMIUM,"SCHOOLS CAPITATION, STANDARDS FUND",5902215684
04.10.2016,CHILDREN'S SERVICES,ALFRED SALTER PRIMARY SCHOOL,"47,070.00",PUPIL PREMIUM,"SCHOOLS CAPITATION, STANDARDS FUND",5902215685
04.10.2016,CHILDREN'S SERVICES,BELLENDEN PRIMARY SCHOOL,"23,100.00",PUPIL PREMIUM,"SCHOOLS CAPITATION, STANDARDS FUND",5902215686
04.10.2016,CHILDREN'S SERVICES,BEORMUND PRIMARY SCHOOL,"9,570.00",PUPIL PREMIUM,"SCHOOLS CAPITATION, STANDARDS FUND",5902215687
04.10.2016,CHILDREN'S SERVICES,BESSEMER GRANGE PRIMARY SCHOOL,"47,190.00",PUPIL PREMIUM,"SCHOOLS CAPITATION, STANDARDS FUND",5902215688
04.10.2016,CHILDREN'S SERVICES,BETHLEM & MAUDSLEY HOSPITAL SCHOOL,"4,909.00",PUPIL PREMIUM,"SCHOOLS CAPITATION, STANDARDS FUND",5902215689
04.10.2016,CHILDREN'S SERVICES,BOUCHER C OF E PRIMARY SCHOOL,"19,800.00",PUPIL PREMIUM,"SCHOOLS CAPITATION, STANDARDS FUND",5902215690
04.10.2016,CHILDREN'S SERVICES,BRUNSWICK PARK PRIMARY SCHOOL,"89,390.00",PUPIL PREMIUM,"SCHOOLS CAPITATION, STANDARDS FUND",5902215691
04.10.2016,CHILDREN'S SERVICES,CAMELOT PRIMARY SCHOOL,"70,395.00",PUPIL PREMIUM,"SCHOOLS CAPITATION, STANDARDS FUND",5902215692
04.10.2016,CHILDREN'S SERVICES,CHARLES DICKENS PRIMARY SCHOOL,"53,855.00",PUPIL PREMIUM,"SCHOOLS CAPITATION, STANDARDS FUND",5902215693
04.10.2016,CHILDREN'S SERVICES,CHARLOTTE  SHARMAN PRIMARY SCHOOL,"47,670.00",PUPIL PREMIUM,"SCHOOLS CAPITATION, STANDARDS FUND",5902215694
04.10.2016,CHILDREN'S SERVICES,ST JOSEPHS RC JUNIOR  SCHOOL,"32,670.00",PUPIL PREMIUM,"SCHOOLS CAPITATION, STANDARDS FUND",5902215695
04.10.2016,CHILDREN'S SERVICES,ST JOSEPHS CATHOLIC INFANTS SCHOOL,"15,840.00",PUPIL PREMIUM,"SCHOOLS CAPITATION, STANDARDS FUND",5902215696
04.10.2016,CHILDREN'S SERVICES,ST JUDES CHURCH OF ENGLAND PRIMARY,"14,520.00",PUPIL PREMIUM,"SCHOOLS CAPITATION, STANDARDS FUND",5902215697
04.10.2016,CHILDREN'S SERVICES,CHERRY GARDEN SCHOOL,"10,890.00",PUPIL PREMIUM,"SCHOOLS CAPITATION, STANDARDS FUND",5902215698
04.10.2016,CHILDREN'S SERVICES,COBOURG PRIMARY SCHOOL,"58,885.00",PUPIL PREMIUM,"SCHOOLS CAPITATION, STANDARDS FUND",5902215699
04.10.2016,CHILDREN'S SERVICES,COMBER GROVE PRIMARY SCHOOL,"35,640.00",PUPIL PREMIUM,"SCHOOLS CAPITATION, STANDARDS FUND",5902215700
04.10.2016,CHILDREN'S SERVICES,CRAMPTON PRIMARY SCHOOL,"28,155.00",PUPIL PREMIUM,"SCHOOLS CAPITATION, STANDARDS FUND",5902215701
04.10.2016,CHILDREN'S SERVICES,CRAWFORD PRIMARY SCHOOL,"71,425.00",PUPIL PREMIUM,"SCHOOLS CAPITATION, STANDARDS FUND",5902215702
04.10.2016,CHILDREN'S SERVICES,DOG KENNEL HILL PRIMARY SCHOOL,"39,415.00",PUPIL PREMIUM,"SCHOOLS CAPITATION, STANDARDS FUND",5902215703
04.10.2016,CHILDREN'S SERVICES,DULWICH VILLAGE CE INFANTS SCHOOL,"6,440.00",PUPIL PREMIUM,"SCHOOLS CAPITATION, STANDARDS FUND",5902215704
04.10.2016,CHILDREN'S SERVICES,GOODRICH PRIMARY SCHOOL,"52,890.00",PUPIL PREMIUM,"SCHOOLS CAPITATION, STANDARDS FUND",5902215705
04.10.2016,CHILDREN'S SERVICES,GRANGE PRIMARY SCHOOL,"71,940.00",PUPIL PREMIUM,"SCHOOLS CAPITATION, STANDARDS FUND",5902215706
04.10.2016,CHILDREN'S SERVICES,ENGLISH MARTYRS RC PRIMARY SCHOOL,"45,870.00",PUPIL PREMIUM,"SCHOOLS CAPITATION, STANDARDS FUND",5902215707
04.10.2016,CHILDREN'S SERVICES,PHOENIX PRIMARY SCHOOL,"62,005.00",PUPIL PREMIUM,"SCHOOLS CAPITATION, STANDARDS FUND",5902215708
04.10.2016,CHILDREN'S SERVICES,FRIARS PRIMARY SCHOOL,"24,090.00",PUPIL PREMIUM,"SCHOOLS CAPITATION, STANDARDS FUND",5902215709
04.10.2016,CHILDREN'S SERVICES,HEBER PRIMARY SCHOOL,"24,090.00",PUPIL PREMIUM,"SCHOOLS CAPITATION, STANDARDS FUND",5902215710
04.10.2016,CHILDREN'S SERVICES,HOLLYDALE PRIMARY SCHOOL,"47,520.00",PUPIL PREMIUM,"SCHOOLS CAPITATION, STANDARDS FUND",5902215711
04.10.2016,CHILDREN'S SERVICES,ILDERTON PRIMARY SCHOOL,"54,780.00",PUPIL PREMIUM,"SCHOOLS CAPITATION, STANDARDS FUND",5902215712
04.10.2016,CHILDREN'S SERVICES,IVYDALE PRIMARY SCHOOL,"47,400.00",PUPIL PREMIUM,"SCHOOLS CAPITATION, STANDARDS FUND",5902215713
04.10.2016,CHILDREN'S SERVICES,JOHN RUSKIN PRIMARY SCHOOL,"66,660.00",PUPIL PREMIUM,"SCHOOLS CAPITATION, STANDARDS FUND",5902215714
04.10.2016,CHILDREN'S SERVICES,KEYWORTH PRIMARY SCHOOL,"58,740.00",PUPIL PREMIUM,"SCHOOLS CAPITATION, STANDARDS FUND",5902215715
04.10.2016,CHILDREN'S SERVICES,DULWICH WOOD PRIMARY SCHOOL,"33,000.00",PUPIL PREMIUM,"SCHOOLS CAPITATION, STANDARDS FUND",5902215716
04.10.2016,CHILDREN'S SERVICES,LYNDHURST PRIMARY SCHOOL,"41,210.00",PUPIL PREMIUM,"SCHOOLS CAPITATION, STANDARDS FUND",5902215717
04.10.2016,CHILDREN'S SERVICES,HAYMERLE SCHOOL,"21,120.00",PUPIL PREMIUM,"SCHOOLS CAPITATION, STANDARDS FUND",5902215718
04.10.2016,CHILDREN'S SERVICES,HIGHSHORE SCHOOL,"14,734.00",PUPIL PREMIUM,"SCHOOLS CAPITATION, STANDARDS FUND",5902215719
04.10.2016,CHILDREN'S SERVICES,MICHAEL FARADAY PRIMARY SCHOOL,"60,020.00",PUPIL PREMIUM,"SCHOOLS CAPITATION, STANDARDS FUND",5902215720
04.10.2016,CHILDREN'S SERVICES,NOTRE DAME RC GIRLS SCHOOL,"77,613.00",PUPIL PREMIUM,"SCHOOLS CAPITATION, STANDARDS FUND",5902215721
04.10.2016,CHILDREN'S SERVICES,OLIVER GOLDSMITH PRIMARY SCHOOL,"68,970.00",PUPIL PREMIUM,"SCHOOLS CAPITATION, STANDARDS FUND",5902215722
04.10.2016,CHILDREN'S SERVICES,PETER HILLS CE SCHOOL,"27,390.00",PUPIL PREMIUM,"SCHOOLS CAPITATION, STANDARDS FUND",5902215723
04.10.2016,CHILDREN'S SERVICES,PILGRIM'S WAY PRIMARY SCHOOL,"35,310.00",PUPIL PREMIUM,"SCHOOLS CAPITATION, STANDARDS FUND",5902215724
04.10.2016,CHILDREN'S SERVICES,RIVERSIDE PRIMARY SCHOOL,"65,340.00",PUPIL PREMIUM,"SCHOOLS CAPITATION, STANDARDS FUND",5902215725
04.10.2016,CHILDREN'S SERVICES,ROBERT BROWNING PRIMARY SCHOOL,"53,460.00",PUPIL PREMIUM,"SCHOOLS CAPITATION, STANDARDS FUND",5902215726
04.10.2016,CHILDREN'S SERVICES,ROTHERHITHE PRIMARY SCHOOL,"85,430.00",PUPIL PREMIUM,"SCHOOLS CAPITATION, STANDARDS FUND",5902215727
04.10.2016,CHILDREN'S SERVICES,RYE OAK PRIMARY SCHOOL,"67,795.00",PUPIL PREMIUM,"SCHOOLS CAPITATION, STANDARDS FUND",5902215728
04.10.2016,CHILDREN'S SERVICES,SNOWSFIELDS PRIMARY SCHOOL,"27,390.00",PUPIL PREMIUM,"SCHOOLS CAPITATION, STANDARDS FUND",5902215729
04.10.2016,CHILDREN'S SERVICES,SOUTHWARK PARK PRIMARY SCHOOL,"48,510.00",PUPIL PREMIUM,"SCHOOLS CAPITATION, STANDARDS FUND",5902215730
04.10.2016,CHILDREN'S SERVICES,SPA SCHOOL,"10,285.00",PUPIL PREMIUM,"SCHOOLS CAPITATION, STANDARDS FUND",5902215731
04.10.2016,CHILDREN'S SERVICES,ST ANTHONYS RC SCHOOL,"14,150.00",PUPIL PREMIUM,"SCHOOLS CAPITATION, STANDARDS FUND",5902215732
04.10.2016,CHILDREN'S SERVICES,ST FRANCESCA CABRINI PRIMARY SCHOOL,"44,880.00",PUPIL PREMIUM,"SCHOOLS CAPITATION, STANDARDS FUND",5902215733
04.10.2016,CHILDREN'S SERVICES,ST FRANCIS'S RC PRIMARY SCHOOL,"35,310.00",PUPIL PREMIUM,"SCHOOLS CAPITATION, STANDARDS FUND",5902215734
04.10.2016,CHILDREN'S SERVICES,ST GEORGES RC SCHOOL,"35,785.00",PUPIL PREMIUM,"SCHOOLS CAPITATION, STANDARDS FUND",5902215735
04.10.2016,CHILDREN'S SERVICES,ST GEORGES CE SCHOOL,"16,170.00",PUPIL PREMIUM,"SCHOOLS CAPITATION, STANDARDS FUND",5902215736
04.10.2016,CHILDREN'S SERVICES,ST JAMES CE SCHOOL,"85,760.00",PUPIL PREMIUM,"SCHOOLS CAPITATION, STANDARDS FUND",5902215737
04.10.2016,CHILDREN'S SERVICES,ST JAMES THE GREAT RC SCHOOL,"19,470.00",PUPIL PREMIUM,"SCHOOLS CAPITATION, STANDARDS FUND",5902215738
04.10.2016,CHILDREN'S SERVICES,ST JOHNS WALWORTH CE SCHOOL,"21,450.00",PUPIL PREMIUM,"SCHOOLS CAPITATION, STANDARDS FUND",5902215739
04.10.2016,CHILDREN'S SERVICES,ST JOHNS & ST CLEMENTS CE SCHOOL,"26,425.00",PUPIL PREMIUM,"SCHOOLS CAPITATION, STANDARDS FUND",5902215740
04.10.2016,CHILDREN'S SERVICES,THE ST THOMAS THE APOSTLE COLLEGE,"68,723.00",PUPIL PREMIUM,"SCHOOLS CAPITATION, STANDARDS FUND",5902215741
04.10.2016,CHILDREN'S SERVICES,ST JOHNS RC PRIMARY SCHOOL,"29,040.00",PUPIL PREMIUM,"SCHOOLS CAPITATION, STANDARDS FUND",5902215742
04.10.2016,CHILDREN'S SERVICES,ST JOSEPHS CATHOLIC SCHOOL,"23,100.00",PUPIL PREMIUM,"SCHOOLS CAPITATION, STANDARDS FUND",5902215743
04.10.2016,CHILDREN'S SERVICES,ST JOSEPHS RC PRIMARY SCHOOL,"27,390.00",PUPIL PREMIUM,"SCHOOLS CAPITATION, STANDARDS FUND",5902215744
04.10.2016,CHILDREN'S SERVICES,ST JOSEPHS CATHOLIC PRIMARY SCHOOL,"18,110.00",PUPIL PREMIUM,"SCHOOLS CAPITATION, STANDARDS FUND",5902215745
04.10.2016,CHILDREN'S SERVICES,ST MARY MAGDALENE CE SCHOOL,"28,155.00",PUPIL PREMIUM,"SCHOOLS CAPITATION, STANDARDS FUND",5902215746
04.10.2016,CHILDREN'S SERVICES,ST PAULS CE SCHOOL,"49,575.00",PUPIL PREMIUM,"SCHOOLS CAPITATION, STANDARDS FUND",5902215747
04.10.2016,CHILDREN'S SERVICES,ST PETERS CE SCHOOL,"24,750.00",PUPIL PREMIUM,"SCHOOLS CAPITATION, STANDARDS FUND",5902215748
04.10.2016,CHILDREN'S SERVICES,ST SAVIOURS & ST OLAVES SCHOOL,"71,995.00",PUPIL PREMIUM,"SCHOOLS CAPITATION, STANDARDS FUND",5902215749
04.10.2016,CHILDREN'S SERVICES,SURREY SQUARE JUNIOR SCHOOL,"60,720.00",PUPIL PREMIUM,"SCHOOLS CAPITATION, STANDARDS FUND",5902215750
04.10.2016,CHILDREN'S SERVICES,CATHEDRAL SCHOOL OF ST SAVIOUR & MARY,"13,530.00",PUPIL PREMIUM,"SCHOOLS CAPITATION, STANDARDS FUND",5902215751
04.10.2016,CHILDREN'S SERVICES,TOWER BRIDGE PRIMARY SCHOOL,"32,340.00",PUPIL PREMIUM,"SCHOOLS CAPITATION, STANDARDS FUND",5902215752
04.10.2016,CHILDREN'S SERVICES,TOWNSEND PRIMARY SCHOOL,"36,300.00",PUPIL PREMIUM,"SCHOOLS CAPITATION, STANDARDS FUND",5902215753
04.10.2016,CHILDREN'S SERVICES,TUKE SCHOOL,"7,831.00",PUPIL PREMIUM,"SCHOOLS CAPITATION, STANDARDS FUND",5902215754
04.10.2016,CHILDREN'S SERVICES,VICTORY SCHOOL,"26,730.00",PUPIL PREMIUM,"SCHOOLS CAPITATION, STANDARDS FUND",5902215755
04.10.2016,CHILDREN'S SERVICES,SOUTHWARK INCLUSIVE LEARNING SERVICE,"15,895.00",PUPIL PREMIUM,"SCHOOLS CAPITATION, STANDARDS FUND",5902215756
04.10.2016,CHILDREN'S SERVICES,ZENITH CARS LTD,375.00,S & FAM SUPP - PRAC GRP A SET 14-16,HIRED VEHICLES,5902215862
04.10.2016,CHILDREN'S SERVICES,THE PLAY SHELTER LTD,517.00,S & FAM SUPP - PRAC GRP B SET 17-19,OTHER PAYMENTS FOR CLIENTS,5902215866
04.10.2016,CHILDREN'S SERVICES,THE PLAY SHELTER LTD,-517.00,S & FAM SUPP - PRAC GRP B SET 17-19,OTHER PAYMENTS FOR CLIENTS,5902215870
04.10.2016,CHILDREN'S SERVICES,ZENITH CARS LTD,"1,054.00",S & FAM SUPP - PRAC GRP F SET 29-31,HIRED VEHICLES,5902215862
04.10.2016,CHILDREN'S SERVICES,THE SALMON YOUTH CENTRE,"19,343.25",SHORT BREAKS,EXTERNAL AGENCIES AND BODIES,5902215661
04.10.2016,CHILDREN'S SERVICES,BACONS COLLEGE EDUCATIONAL & COMMUNITY SERVICES LTD,"14,472.00",SHORT BREAKS,EXTERNAL AGENCIES AND BODIES,5902215663
04.10.2016,CHILDREN'S SERVICES,RESOURCES FOR AUTISM,"23,333.00",SHORT BREAKS,EXTERNAL AGENCIES AND BODIES,5902215669
04.10.2016,CHILDREN'S SERVICES,THE CAMDEN SOCIETY,"15,750.00",SHORT BREAKS,EXTERNAL AGENCIES AND BODIES,5902215680
04.10.2016,CHILDREN'S SERVICES,NATIONAL CHILDREN AND ADULT SERVICE,450.00,SOUTHWARK MANAGEMENT - 5015249,EXTERNAL AGENCIES AND BODIES,5902215783
04.10.2016,CHILDREN'S SERVICES,LOOK AHEAD CARE AND SUPPORT LTD,"55,750.00",SP PROVIDER PAYMENTS,EXTERNAL AGENCIES AND BODIES,5902215632
04.10.2016,CHILDREN'S SERVICES,LOOK AHEAD CARE AND SUPPORT LTD,"66,690.00",SP PROVIDER PAYMENTS,EXTERNAL AGENCIES AND BODIES,5902215633
04.10.2016,COMMUNITIES,SOUTHWARK GROUP OF TENANTS ORGANISATION,"62,417.50",TENANTS FUND,EXTERNAL AGENCIES AND BODIES,5902215624
04.10.2016,COMMUNITIES,CANON UK LTD,807.56,TENANTS FUND,OP LEASE/HIRE CHARGES:PLANT/EQUIP/FURNIT,5902215793
04.10.2016,COMMUNITIES,CANON UK LTD,716.07,TENANTS FUND,OP LEASE/HIRE CHARGES:PLANT/EQUIP/FURNIT,5902215799
04.10.2016,COMMUNITIES,CANON UK LTD,807.56,TENANTS FUND,OP LEASE/HIRE CHARGES:PLANT/EQUIP/FURNIT,5902215801
04.10.2016,COMMUNITIES,CANON UK LTD,716.07,TENANTS FUND,OP LEASE/HIRE CHARGES:PLANT/EQUIP/FURNIT,5902215806
04.10.2016,COMMUNITIES,ST FAITHS COMMUNITY CENTRE,"5,115.25",VCS GRANTS,GRANTS,5902215621
04.10.2016,COMMUNITIES,TIME & TALENTS ASSOCIATION,"3,475.50",VCS GRANTS,GRANTS,5902215629
04.10.2016,COMMUNITIES,TIME & TALENTS ASSOCIATION,"1,067.75",VCS GRANTS,GRANTS,5902215630
04.10.2016,COMMUNITIES,LONDON WILDLIFE TRUST,"7,968.75",VCS GRANTS,GRANTS,5902215634
04.10.2016,COMMUNITIES,SOUTHWARK CABX SERVICE,"5,600.00",VCS GRANTS,GRANTS,5902215635
04.10.2016,COMMUNITIES,EAST DULWICH COMMUNITY CENTRE,"1,740.00",VCS GRANTS,GRANTS,5902215636
04.10.2016,COMMUNITIES,SOUTHWARK SOMALI REFUGEE COUNCIL,"13,222.50",VCS GRANTS,GRANTS,5902215638
04.10.2016,COMMUNITIES,BEORMUND COMMUNITY CENTRE,"17,437.25",VCS GRANTS,GRANTS,5902215639
04.10.2016,COMMUNITIES,BEDE HSE,"3,475.50",VCS GRANTS,GRANTS,5902215640
04.10.2016,COMMUNITIES,CAMBRIDGE HOUSE & TALBOT,"3,475.50",VCS GRANTS,GRANTS,5902215641
04.10.2016,COMMUNITIES,PECAN LTD,"6,863.00",VCS GRANTS,GRANTS,5902215643
04.10.2016,COMMUNITIES,PECAN LTD,"6,429.00",VCS GRANTS,GRANTS,5902215644
04.10.2016,COMMUNITIES,SURREY DOCKS FARM PROVIDENT SOCIETY,"10,678.25",VCS GRANTS,GRANTS,5902215645
04.10.2016,COMMUNITIES,ORGANISATION OF BLIND AFRICANS & CARIBBEANS,"4,084.25",VCS GRANTS,GRANTS,5902215646
04.10.2016,COMMUNITIES,AAINA WOMEN GROUP,"8,018.25",VCS GRANTS,GRANTS,5902215647
04.10.2016,COMMUNITIES,COMMUNITY SOUTHWARK,"5,750.00",VCS GRANTS,GRANTS,5902215653
04.10.2016,COMMUNITIES,SOUTHWARK PENSIONERS CENTRE,"28,355.25",VCS GRANTS,GRANTS,5902215654
04.10.2016,COMMUNITIES,SWK DAY CTR FOR ASYLUM SEEKERS,"11,330.25",VCS GRANTS,GRANTS,5902215660
04.10.2016,COMMUNITIES,AYLESBURY EVERY WOMAN'S CENTRE,"3,600.00",VCS GRANTS,GRANTS,5902215662
04.10.2016,COMMUNITIES,WORKING WITH MEN,"3,600.00",VCS GRANTS,GRANTS,5902215664
04.10.2016,COMMUNITIES,COOLTAN ARTS,"3,187.50",VCS GRANTS,GRANTS,5902215665
04.10.2016,COMMUNITIES,MENTAL FIGHT CLUB,"1,870.00",VCS GRANTS,GRANTS,5902215666
04.10.2016,COMMUNITIES,CRYSTAL PALACE COMM DEV TRUST,"2,264.75",VCS GRANTS,GRANTS,5902215667
04.10.2016,COMMUNITIES,LATIN AMERICAN DISABLED PEOPLE PROJECT,"4,000.00",VCS GRANTS,GRANTS,5902215668
04.10.2016,COMMUNITIES,LATIN AMERICAN WOMEN'S RIGHTS SERVICES,"3,400.00",VCS GRANTS,GRANTS,5902215671
04.10.2016,COMMUNITIES,PAXTON GREEN TIME BANK,"3,600.00",VCS GRANTS,GRANTS,5902215675
04.10.2016,COMMUNITIES,REDACTED PERSONAL DATA,"5,574.75",VCS GRANTS,GRANTS,5902215676
04.10.2016,COMMUNITIES,BERMONDSEY COMMUNITY KITCHEN,"3,500.00",VCS GRANTS,GRANTS,5902215681
04.10.2016,COMMUNITIES,THE BIKE PROJECT,"3,750.00",VCS GRANTS,GRANTS,5902215683
04.10.2016,COMMUNITIES,WILLOWBROOK TENANT MANAGEMENT CO-OP LTD,"61,322.50",WILLOWBROOK CO-OP,M&M ALLOWANCE CO-OPS,5902215855
04.10.2016,CUSTOMER EXPERIENCE HGF,CIVIL CEREMONIES LTD,"1,750.00",CITIZENSHIP,OFFICE EXPENSES,5902215842
04.10.2016,CUSTOMER EXPERIENCE HGF,OFFICE DEPOT UK LTD,273.80,REGISTRARS,STATIONERY,5902215846
04.10.2016,CUSTOMER EXPERIENCE HGF,ANGEL SPRINGS LTD,915.00,REGISTRARS,OFFICE EXPENSES,5902215859
04.10.2016,ENVIRONMENT AND LEISURE,R HERRIDGE & PARTNERS,"1,290.00",CAPITAL PS (LEISURE),CONSTRUCTION FEES - INTERNAL,2102572035
04.10.2016,ENVIRONMENT AND LEISURE,AMETHYST HORTICULTURE LTD,282.35,CAPITAL PS (LEISURE),CONSTRUCTION SITE COSTS,5902215764
04.10.2016,ENVIRONMENT AND LEISURE,CONWAY AECOM LTD,"4,796.32",CAPITAL PS (LEISURE),CONSTRUCTION FEES  - EXTERNAL,5902215847
04.10.2016,ENVIRONMENT DIRECTORATE,CLOSE BROTHERS VEHICLE HIRE LTD,367.34,COMMERCIAL VEH CTRL A/C,HIRED VEHICLES,5902215781
04.10.2016,ENVIRONMENT DIRECTORATE,CLOSE BROTHERS VEHICLE HIRE LTD,494.56,COMMERCIAL VEH CTRL A/C,HIRED VEHICLES,5902215788
04.10.2016,ENVIRONMENT DIRECTORATE,CLOSE BROTHERS VEHICLE HIRE LTD,286.00,COMMERCIAL VEH CTRL A/C,HIRED VEHICLES,5902215791
04.10.2016,ENVIRONMENT DIRECTORATE,CLOSE BROTHERS VEHICLE HIRE LTD,286.00,COMMERCIAL VEH CTRL A/C,HIRED VEHICLES,5902215792
04.10.2016,ENVIRONMENT DIRECTORATE,CLOSE BROTHERS VEHICLE HIRE LTD,259.60,COMMERCIAL VEH CTRL A/C,HIRED VEHICLES,5902215795
04.10.2016,ENVIRONMENT DIRECTORATE,CLOSE BROTHERS VEHICLE HIRE LTD,268.40,COMMERCIAL VEH CTRL A/C,HIRED VEHICLES,5902215797
04.10.2016,ENVIRONMENT DIRECTORATE,CLOSE BROTHERS VEHICLE HIRE LTD,268.40,COMMERCIAL VEH CTRL A/C,HIRED VEHICLES,5902215798
04.10.2016,ENVIRONMENT DIRECTORATE,LONDON HIRE LIMITED,"29,116.45",COMMERCIAL VEH CTRL A/C,HIRED VEHICLES,5902215807
04.10.2016,ENVIRONMENT DIRECTORATE,LONDON HIRE LIMITED,"19,608.50",COMMERCIAL VEH CTRL A/C,HIRED VEHICLES,5902215810
04.10.2016,ENVIRONMENT DIRECTORATE,LONDON HIRE LIMITED,"6,231.50",COMMERCIAL VEH CTRL A/C,HIRED VEHICLES,5902215811
04.10.2016,ENVIRONMENT DIRECTORATE,LONDON HIRE LIMITED,"4,296.70",COMMERCIAL VEH CTRL A/C,HIRED VEHICLES,5902215812
04.10.2016,ENVIRONMENT DIRECTORATE,LONDON HIRE LIMITED,"1,910.00",COMMERCIAL VEH CTRL A/C,HIRED VEHICLES,5902215813
04.10.2016,ENVIRONMENT DIRECTORATE,LONDON HIRE LIMITED,"1,600.00",COMMERCIAL VEH CTRL A/C,HIRED VEHICLES,5902215814
04.10.2016,ENVIRONMENT DIRECTORATE,LONDON HIRE LIMITED,675.00,COMMERCIAL VEH CTRL A/C,HIRED VEHICLES,5902215817
04.10.2016,ENVIRONMENT DIRECTORATE,LONDON HIRE LIMITED,645.00,COMMERCIAL VEH CTRL A/C,HIRED VEHICLES,5902215818
04.10.2016,ENVIRONMENT DIRECTORATE,LONDON HIRE LIMITED,"1,120.00",COMMERCIAL VEH CTRL A/C,HIRED VEHICLES,5902215822
04.10.2016,ENVIRONMENT DIRECTORATE,LONDON HIRE LIMITED,679.00,COMMERCIAL VEH CTRL A/C,HIRED VEHICLES,5902215824
04.10.2016,ENVIRONMENT DIRECTORATE,LONDON HIRE LIMITED,292.00,COMMERCIAL VEH CTRL A/C,HIRED VEHICLES,5902215830
04.10.2016,ENVIRONMENT DIRECTORATE,LONDON HIRE LIMITED,580.00,COMMERCIAL VEH CTRL A/C,HIRED VEHICLES,5902215833
04.10.2016,ENVIRONMENT DIRECTORATE,LONDON HIRE LIMITED,822.00,COMMERCIAL VEH CTRL A/C,HIRED VEHICLES,5902215838
04.10.2016,ENVIRONMENT DIRECTORATE,LONDON HIRE LIMITED,"1,068.51",COMMERCIAL VEH CTRL A/C,HIRED VEHICLES,5902215840
04.10.2016,ENVIRONMENT DIRECTORATE,PUBLIC  ANALYST SCIENTIFIC SERVICES,500.00,FOOD SAFETY,PROFESSIONAL FEES,5902215836
04.10.2016,ENVIRONMENT DIRECTORATE,CONWAY AECOM LTD,"6,331.44",HIGHWAYS DEVELOPMENT,OTHER CONTRACTORS,5902215837
04.10.2016,ENVIRONMENT DIRECTORATE,CONWAY AECOM LTD,"5,468.24",HIGHWAYS DEVELOPMENT,OTHER CONTRACTORS,5902215851
04.10.2016,ENVIRONMENT DIRECTORATE,CONWAY AECOM LTD,"8,210.25",HIGHWAYS DEVELOPMENT,OTHER CONTRACTORS,5902215853
04.10.2016,ENVIRONMENT DIRECTORATE,SMI GROUP,336.00,MANAGEMENT TEAM,MATERIALS,5902215588
04.10.2016,F & C S EXCLUDING CORPORATE BUDGETS,DSI BILLING SERVICES LTD,"2,807.81",ADMINISTRATIVE SUPPORT,POSTAGES,5902215858
04.10.2016,F & C S EXCLUDING CORPORATE BUDGETS,SWISS POST SOLUTIONS LTD,273.65,CONSTITUTIONAL TEAM,PRINTING,5902215790
04.10.2016,F & C S EXCLUDING CORPORATE BUDGETS,ALLPAY NET LIMITED,"1,613.42",COUNCIL TAX,PAYMENTS FOR FINANCIAL SERVICES,5902215848
04.10.2016,HOUSING,BCS (ELECTRICAL & BUILDING) LTD,"149,818.49",BCS,MANUAL CREDITORS,5902215601
04.10.2016,HOUSING,KENT COUNTY COUNCIL,"40,153.56",SUPPLY OF ELECTRICITY,ELECTRICITY,DIRECT DEBIT PAYMENT
04.10.2016,HOUSING,KENT COUNTY COUNCIL,"3,706.36",SUPPLY OF ELECTRICITY,ELECTRICITY,DIRECT DEBIT PAYMENT
04.10.2016,HOUSING HRA,A & E ELKINS LTD,"12,908.80",CAPITAL PS (HRA),CONSTRUCTION MAIN CONTRACT -CERTIFICATED,2102570993
04.10.2016,HOUSING HRA,MICHAEL CONSTRUCTION LTD,"6,045.00",CAPITAL PS (HRA),CONST'N MAIN CONTRACT - NON CERTIFICATED,2102572013
04.10.2016,HOUSING HRA,MICHAEL CONSTRUCTION LTD,"5,655.00",CAPITAL PS (HRA),CONST'N MAIN CONTRACT - NON CERTIFICATED,2102572014
04.10.2016,HOUSING HRA,PARS LTD,"1,876.00",CAPITAL PS (HRA),CONST'N MAIN CONTRACT - NON CERTIFICATED,2102572015
04.10.2016,HOUSING HRA,L H BRIDGE LTD,"7,020.00",CAPITAL PS (HRA),CONST'N MAIN CONTRACT - NON CERTIFICATED,2102572016
04.10.2016,HOUSING HRA,L H BRIDGE LTD,"7,475.00",CAPITAL PS (HRA),CONST'N MAIN CONTRACT - NON CERTIFICATED,2102572017
04.10.2016,HOUSING HRA,P D CONSTRUCTION LTD,"10,000.00",CAPITAL PS (HRA),CONST'N MAIN CONTRACT - NON CERTIFICATED,2102572018
04.10.2016,HOUSING HRA,PARS LTD,"1,716.00",CAPITAL PS (HRA),CONST'N MAIN CONTRACT - NON CERTIFICATED,2102572019
04.10.2016,HOUSING HRA,FREEWAY LIFTS SERVICES LTD,"9,983.00",CAPITAL PS (HRA),CONST'N MAIN CONTRACT - NON CERTIFICATED,2102572020
04.10.2016,HOUSING HRA,KEEPMOAT REGENERATION (APOLLO) LTD,"123,688.35",CAPITAL PS (HRA),CONSTRUCTION MAIN CONTRACT -CERTIFICATED,2102572024
04.10.2016,HOUSING HRA,KEEPMOAT REGENERATION (APOLLO) LTD,"87,179.62",CAPITAL PS (HRA),CONSTRUCTION MAIN CONTRACT -CERTIFICATED,2102572025
04.10.2016,HOUSING HRA,KEEPMOAT REGENERATION (APOLLO) LTD,"112,577.59",CAPITAL PS (HRA),CONSTRUCTION MAIN CONTRACT -CERTIFICATED,2102572026
04.10.2016,HOUSING HRA,RUSSELL GILES PARTNERSHIP LTD,400.00,CAPITAL PS (HRA),CONSTRUCTION FEES  - EXTERNAL,5902215603
04.10.2016,HOUSING HRA,RUSSELL GILES PARTNERSHIP LTD,"2,400.00",CAPITAL PS (HRA),CONSTRUCTION FEES  - EXTERNAL,5902215603
04.10.2016,HOUSING HRA,CALFORD SEADEN LLP,"4,480.21",CAPITAL PS (HRA),CONSTRUCTION FEES  - EXTERNAL,5902215605
04.10.2016,HOUSING HRA,CALFORD SEADEN LLP,"6,004.62",CAPITAL PS (HRA),CONSTRUCTION FEES  - EXTERNAL,5902215760
04.10.2016,HOUSING HRA,SPOKEMEAD MAINTENANCE LTD,818.22,CAPITAL PS (HRA),CONST'N MAIN CONTRACT - NON CERTIFICATED,5902215778
04.10.2016,LEISURE DIRECTORATE,THEATRE PECKHAM LTD,"10,733.00",ARTS GRANTS,GRANTS,5902215622
04.10.2016,LEISURE DIRECTORATE,LONDON BUBBLE THEATRE COMPANY,"8,633.00",ARTS GRANTS,GRANTS,5902215637
04.10.2016,LEISURE DIRECTORATE,BERMONDSEY ARTIST`S GROUP,"7,170.75",ARTS GRANTS,GRANTS,5902215648
04.10.2016,LEISURE DIRECTORATE,BLUE ELEPHANT THEATRE LTD,"6,480.50",ARTS GRANTS,GRANTS,5902215652
04.10.2016,LEISURE DIRECTORATE,KINETIKA BLOCO LIMITED,"3,194.00",ARTS GRANTS,GRANTS,5902215659
04.10.2016,LEISURE DIRECTORATE,HOTEL ELEPHANT LTD,"7,898.00",ARTS GRANTS,GRANTS,5902215679
04.10.2016,LEISURE DIRECTORATE,GLS EDUCATIONAL SUPPLIES LTD,693.69,BURGESS PARK COMMUNITY SPORTS CENTRE,OTHER CLEANING,5902215770
04.10.2016,MODERNISATION,STANBURY & SWK BLDG SVCS LTD,"7,150.00",COMMERCIAL PROPERTIES,BUILDING R&M,2102570979
04.10.2016,MODERNISATION,CHANDLERS LIMITED CERTIFIED BAILIFF,330.00,COMMERCIAL PROPERTIES,PROFESSIONAL FEES,5902215808
04.10.2016,MODERNISATION HGF,THAMES WATER UTILITIES LTD,"3,273.89",160 TOOLEY ST.,WATER,5902215597
04.10.2016,MODERNISATION HGF,THAMES WATER UTILITIES LTD,"4,842.53",160 TOOLEY ST.,WATER,5902215597
04.10.2016,MODERNISATION HGF,WYNNE BIER CONSULTANCY LTD,650.00,CORP. TRAINING BUDGETS,TRAINING,5902215852
04.10.2016,MODERNISATION HGF,ST JOHNS AMBULANCE,"1,150.00",CORP. TRAINING BUDGETS,TRAINING,5902215856
04.10.2016,MODERNISATION HGF,ST JOHNS AMBULANCE,"1,650.00",CORP. TRAINING BUDGETS,TRAINING,5902215856
04.10.2016,MODERNISATION HGF,JOHN STATTERS ASSOCIATES,"2,137.50",OCCUPATIONAL ASSESSMENT,CONSULTANTS SERVICES,5902214932
04.10.2016,MODERNISATION HGF,SHL UK LTD,"1,280.00",OCCUPATIONAL ASSESSMENT,EQUIPMENT PURCHASE & REPAIR,5902215800
04.10.2016,MODERNISATION HGF,SHL UK LTD,512.50,OCCUPATIONAL ASSESSMENT,EQUIPMENT PURCHASE & REPAIR,5902215802
04.10.2016,MODERNISATION HGF,SHERRIDAN HUGHES,"1,075.00",OCCUPATIONAL ASSESSMENT,CONSULTANTS SERVICES,5902215820
04.10.2016,MODERNISATION HGF,ROSEMARY POTTS,"1,185.00",OCCUPATIONAL ASSESSMENT,CONSULTANTS SERVICES,5902215827
04.10.2016,PUBLIC HEALTH,BARTS HEALTH NHS TRUST,"18,958.66",SEXUAL HEALTH - STI,EXTERNAL AGENCIES AND BODIES,5902215845
04.10.2016,REGENERATION,ARTWORKS ELEPHANT LLP,680.00,E & C ARTS,FREELANCE SPECIALISTS,5902215804
04.10.2016,REGENERATION,AXIS SECURITY SERVICES LTD,365.00,KENNINGTON WORKSHOPS,SECURITY SERVICES,5902215809
04.10.2016,REGENERATION,AXIS SECURITY SERVICES LTD,365.00,KENNINGTON WORKSHOPS,SECURITY SERVICES,5902215823
04.10.2016,REGENERATION,AXIS SECURITY SERVICES LTD,365.00,KENNINGTON WORKSHOPS,SECURITY SERVICES,5902215828
04.10.2016,REGENERATION,AXIS SECURITY SERVICES LTD,365.00,KENNINGTON WORKSHOPS,SECURITY SERVICES,5902215835
04.10.2016,REGENERATION,RICS BUSINESS SERVICES LTD,350.00,PROPERTY TEAM,SUBSCRIPTIONS,5902215774
04.10.2016,REGENERATION,GROUND ENGINEERING LTD,"19,724.00",SOUTHWARK REGEN IN PARTNERSHIP PROGRAMME,PROFESSIONAL FEES,5902215595
04.10.2016,REGENERATION,ASH SAKULA ARCHITECTS,"10,000.00",SOUTHWARK REGEN IN PARTNERSHIP PROGRAMME,PROFESSIONAL FEES,5902215762
04.10.2016,REGENERATION,KENT COUNTY COUNCIL - LASER,912.94,TOWER WORKSHOPS,ELECTRICITY,5902215821
04.10.2016,RESIDENT SERVICES,SETFORDS SOLICITORS,"3,000.00",OPERATIONS/OFFICES ACCOMMODATION,LEGAL FEES & COURT COSTS,5902215611
04.10.2016,RESIDENT SERVICES,CAMBRIDGE HOUSE & TALBOT,346.13,OPERATIONS/OFFICES ACCOMMODATION,LEGAL FEES & COURT COSTS,5902215613
04.10.2016,RESIDENT SERVICES,ANTHONY GOLD SOLICITORS,300.00,OPERATIONS/OFFICES ACCOMMODATION,LEGAL FEES & COURT COSTS,5902215615
04.10.2016,RESIDENT SERVICES,ANTHONY GOLD SOLICITORS,"1,000.00",OPERATIONS/OFFICES ACCOMMODATION,LEGAL FEES & COURT COSTS,5902215619
04.10.2016,RESIDENT SERVICES,PRB ESTATES LTD,"370,855.10",SHELTERED WARDENS,PLANNED MAINTENANCE,2102572033
04.10.2016,SOUTHWARK BUILDING SERVICES,DIAMOND SCAFFOLDING (SOUTH EAST),"20,235.81",BUSINESS SUPPORT,OTHER CONTRACTORS,2102570981
04.10.2016,SOUTHWARK BUILDING SERVICES,A & E ELKINS LTD,"40,414.30",BUSINESS SUPPORT,OTHER CONTRACTORS,2102570982
04.10.2016,SOUTHWARK BUILDING SERVICES,CRATUS BUILDING SERVICES LIMITED,"22,272.30",BUSINESS SUPPORT,OTHER CONTRACTORS,2102570984
04.10.2016,SOUTHWARK BUILDING SERVICES,DEREK BUILDING SERVICES LTD,"8,157.13",BUSINESS SUPPORT,OTHER CONTRACTORS,2102570985
04.10.2016,SOUTHWARK BUILDING SERVICES,FRANKLYN SHAW ASSOCIATES LTD,"22,051.69",BUSINESS SUPPORT,OTHER CONTRACTORS,2102570986
04.10.2016,SOUTHWARK BUILDING SERVICES,BRIDGEWATER ROOFING CONTRACTORS LTD,"14,702.13",BUSINESS SUPPORT,OTHER CONTRACTORS,2102570987
04.10.2016,SOUTHWARK BUILDING SERVICES,NEW IMAGE WINDOWS LTD,"3,637.21",BUSINESS SUPPORT,OTHER CONTRACTORS,2102570988
04.10.2016,SOUTHWARK BUILDING SERVICES,NEW IMAGE WINDOWS LTD,"14,016.86",BUSINESS SUPPORT,OTHER CONTRACTORS,2102570989
04.10.2016,SOUTHWARK BUILDING SERVICES,THE WINDOW COMPANY (PVCU) LTD,"1,808.02",BUSINESS SUPPORT,OTHER CONTRACTORS,2102570990
04.10.2016,SOUTHWARK BUILDING SERVICES,EMPIRE BUILDERS,"19,290.18",BUSINESS SUPPORT,OTHER CONTRACTORS,2102570991
05.10.2016,ADULT SOCIAL CARE,DIAGRAMA HEALTH CARE,"2,023.80",APPOINTEESHIPS,OTHER PAYMENTS FOR CLIENTS,2102572488
05.10.2016,ADULT SOCIAL CARE,DIAGRAMA HEALTH CARE,672.30,APPOINTEESHIPS,OTHER PAYMENTS FOR CLIENTS,2102572489
05.10.2016,ADULT SOCIAL CARE,GLEN CARE GROUP,900.00,APPOINTEESHIPS,OTHER PAYMENTS FOR CLIENTS,2102572490
05.10.2016,ADULT SOCIAL CARE,REDACTED PERSONAL DATA,460.00,APPOINTEESHIPS,OTHER PAYMENTS FOR CLIENTS,2102572491
05.10.2016,ADULT SOCIAL CARE,REDACTED PERSONAL DATA,360.00,APPOINTEESHIPS,OTHER PAYMENTS FOR CLIENTS,2102572493
05.10.2016,ADULT SOCIAL CARE,REDACTED PERSONAL DATA,340.00,APPOINTEESHIPS,OTHER PAYMENTS FOR CLIENTS,2102572494
05.10.2016,ADULT SOCIAL CARE,REDACTED PERSONAL DATA,320.00,APPOINTEESHIPS,OTHER PAYMENTS FOR CLIENTS,2102572495
05.10.2016,ADULT SOCIAL CARE,HAVELOCK COURT NURSING HOME,320.00,APPOINTEESHIPS,OTHER PAYMENTS FOR CLIENTS,2102572497
05.10.2016,ADULT SOCIAL CARE,HEXAGON HOUSING ASSOCIATION LTD,537.08,APPOINTEESHIPS,OTHER PAYMENTS FOR CLIENTS,2102572498
05.10.2016,ADULT SOCIAL CARE,REDACTED PERSONAL DATA,300.00,APPOINTEESHIPS,OTHER PAYMENTS FOR CLIENTS,2102572500
05.10.2016,ADULT SOCIAL CARE,HEXAGON HOUSING ASSOCIATION LTD,988.60,APPOINTEESHIPS,OTHER PAYMENTS FOR CLIENTS,2102572501
05.10.2016,ADULT SOCIAL CARE,PEABODY TRUST,364.80,APPOINTEESHIPS,OTHER PAYMENTS FOR CLIENTS,2102572510
05.10.2016,ADULT SOCIAL CARE,PEABODY TRUST,384.08,APPOINTEESHIPS,OTHER PAYMENTS FOR CLIENTS,2102572511
05.10.2016,ADULT SOCIAL CARE,REDACTED PERSONAL DATA,260.00,APPOINTEESHIPS,OTHER PAYMENTS FOR CLIENTS,2102572512
05.10.2016,ADULT SOCIAL CARE,REDACTED PERSONAL DATA,259.20,APPOINTEESHIPS,OTHER PAYMENTS FOR CLIENTS,2102572513
05.10.2016,ADULT SOCIAL CARE,RIGHT SUPPORT MANAGEMENT LTD,500.00,APPOINTEESHIPS,OTHER PAYMENTS FOR CLIENTS,2102572514
05.10.2016,ADULT SOCIAL CARE,ZETETICK HOUSING,"3,354.64",APPOINTEESHIPS,OTHER PAYMENTS FOR CLIENTS,2102572516
05.10.2016,ADULT SOCIAL CARE,EQUINOX CARE,"1,090.20",APPOINTEESHIPS,OTHER PAYMENTS FOR CLIENTS,2102572520
05.10.2016,ADULT SOCIAL CARE,EQUINOX CARE,"1,090.20",APPOINTEESHIPS,OTHER PAYMENTS FOR CLIENTS,2102572521
05.10.2016,ADULT SOCIAL CARE,GS LAUNDRIES,305.00,COMMUNITY LAUNDRY SERVICES,"""CLOTHING, UNIFORMS & LAUNDRY""",5902215944
05.10.2016,ADULT SOCIAL CARE,REDACTED PERSONAL DATA,580.00,PERSONAL BUDGET - SOCIAL CARE,PERSONALISATION PAYMENTS,2102560664
05.10.2016,ADULT SOCIAL CARE,REDACTED PERSONAL DATA,-580.00,PERSONAL BUDGET - SOCIAL CARE,PERSONALISATION PAYMENTS,2102572850
05.10.2016,ADULT SOCIAL CARE,F A ALBIN AND SONS,814.00,PUBLIC FUNERALS S.46,MISCELLANEOUS EXPENSES,5902215881
05.10.2016,ADULT SOCIAL CARE,F A ALBIN AND SONS,814.00,PUBLIC FUNERALS S.46,MISCELLANEOUS EXPENSES,5902215884
05.10.2016,ADULT SOCIAL CARE,CARE O LINE,892.50,TRANSITION 14YRS TO 18YRS,SECTION 17 PAYMENTS TO AGENCIES/CARERS,2102572236
05.10.2016,ASSET MANAGEMENT,RICS BUSINESS SERVICES LTD,664.50,DISREPAIR,BUILDING R&M,5902215929
05.10.2016,ASSET MANAGEMENT HGF,FAYERS PLUMBING & BUILDING SUPPLIES,303.80,HANDY PERSONS,MATERIALS,5902216033
05.10.2016,CENTRAL FUNCTIONS,HMCTS,335.00,HOME OWNERSHIP,LEGAL FEES & COURT COSTS,5902215919
05.10.2016,CHIEF EXECUTIVE,BLAKEDOWN LANDSCAPES,"83,959.44",CAPITAL PS (REGEN),CONSTRUCTION FEES,2102572481
05.10.2016,CHILDREN AND ADULT,LIBRA CONSTRUCTION SERVICES LTD,"98,468.58",CAPITAL PS (EDUCATION),CONSTRUCTION MAIN CONTRACT -CERTIFICATED,2102572480
05.10.2016,CHILDREN'S SERVICES,JULIET OGBECHIE LTD,"1,500.00",COMMISSIONING ESTABLISHMENT,CONSULTANTS SERVICES,5902215942
05.10.2016,CHILDREN'S SERVICES,GE CAPITAL EQUIPMENT FINANCE LTD,"1,293.00",DAMILOLA TAYLOR CENTRE,OP LEASE/HIRE CHARGES:PLANT/EQUIP/FURNIT,5902216027
05.10.2016,CHILDREN'S SERVICES,REDACTED PERSONAL DATA,858.12,DISABILITY & HIV,PAYMENTS TO CARERS,2102572413
05.10.2016,CHILDREN'S SERVICES,REDACTED PERSONAL DATA,518.19,DISABILITY & HIV,PAYMENTS TO CARERS,2102572414
05.10.2016,CHILDREN'S SERVICES,REDACTED PERSONAL DATA,"1,425.73",DISABILITY & HIV,PAYMENTS TO CARERS,2102572415
05.10.2016,CHILDREN'S SERVICES,REDACTED PERSONAL DATA,"2,632.00",DISABILITY & HIV,ADDITIONAL PAYMENTS TO AGENCIES/CARERS,2102572418
05.10.2016,CHILDREN'S SERVICES,REDACTED PERSONAL DATA,570.93,DISABILITY & HIV,PAYMENTS TO CARERS,2102572420
05.10.2016,CHILDREN'S SERVICES,REDACTED PERSONAL DATA,"2,632.00",DISABILITY & HIV,ADDITIONAL PAYMENTS TO AGENCIES/CARERS,2102572422
05.10.2016,CHILDREN'S SERVICES,REDACTED PERSONAL DATA,564.50,DISABILITY & HIV,PAYMENTS TO CARERS,2102572425
05.10.2016,CHILDREN'S SERVICES,REDACTED PERSONAL DATA,400.00,DISABILITY & HIV,PAYMENTS TO CARERS,2102572426
05.10.2016,CHILDREN'S SERVICES,REDACTED PERSONAL DATA,537.60,DISABILITY & HIV,PAYMENTS TO CARERS,2102572427
05.10.2016,CHILDREN'S SERVICES,REDACTED PERSONAL DATA,"1,330.41",DISABILITY & HIV,PAYMENTS TO CARERS,2102572431
05.10.2016,CHILDREN'S SERVICES,REDACTED PERSONAL DATA,400.00,DISABILITY & HIV,ADDITIONAL PAYMENTS TO AGENCIES/CARERS,2102572436
05.10.2016,CHILDREN'S SERVICES,DULWICH WOOD PRIMARY SCHOOL,700.00,INTERVENTION FUND,CONSULTANTS SERVICES,5902216031
05.10.2016,CHILDREN'S SERVICES,REDACTED PERSONAL DATA,"1,906.34",LEAVING CARE GRANT,OTHER PAYMENTS FOR CLIENTS,2102572446
05.10.2016,CHILDREN'S SERVICES,BETHWIN ROAD ADVENTURE PLAYGROUND,"10,000.00",PLAY GRANTS - EDUCATION,EXTERNAL AGENCIES AND BODIES,5902215898
05.10.2016,CHILDREN'S SERVICES,TEENS CRISIS UK,820.00,PUPIL PREMIUM CURRENT YEAR,EXTERNAL AGENCIES AND BODIES,5902215926
05.10.2016,CHILDREN'S SERVICES,REDACTED PERSONAL DATA,264.16,RESIDENCE ORDERS,PAYMENTS TO CARERS,2102572050
05.10.2016,CHILDREN'S SERVICES,UNIVERSITY OF BRISTOL,"9,000.00",SCHOLARSHIP SCHEME,EXTERNAL AGENCIES AND BODIES,5902215923
05.10.2016,CHILDREN'S SERVICES,REDACTED PERSONAL DATA,-780.22,SPECIAL GUARDIANSHIP,PAYMENTS TO CARERS,2102572151
05.10.2016,CHILDREN'S SERVICES,REDACTED PERSONAL DATA,"1,095.26",SPECIAL GUARDIANSHIP,PAYMENTS TO CARERS,2102572223
05.10.2016,CHILDREN'S SERVICES,REDACTED PERSONAL DATA,-712.62,SPECIAL GUARDIANSHIP,PAYMENTS TO CARERS,2102572230
05.10.2016,CHILDREN'S SERVICES,REDACTED PERSONAL DATA,525.00,SPECIAL GUARDIANSHIP,PAYMENTS TO CARERS,2102572246
05.10.2016,CHILDREN'S SERVICES,REDACTED PERSONAL DATA,400.00,SPECIAL GUARDIANSHIP,PAYMENTS TO CARERS,2102572287
05.10.2016,CHILDREN'S SERVICES,REDACTED PERSONAL DATA,"1,118.42",SPECIAL GUARDIANSHIP,PAYMENTS TO CARERS,2102572290
05.10.2016,CHILDREN'S SERVICES,REDACTED PERSONAL DATA,633.48,SPECIAL GUARDIANSHIP,EXTERNAL AGENCIES AND BODIES,2102572291
05.10.2016,CHILDREN'S SERVICES,REDACTED PERSONAL DATA,525.00,SPECIAL GUARDIANSHIP,PAYMENTS TO CARERS,2102572310
05.10.2016,CHILDREN'S SERVICES,REDACTED PERSONAL DATA,933.94,SPECIAL GUARDIANSHIP,PAYMENTS TO CARERS,2102572327
05.10.2016,CHILDREN'S SERVICES,REDACTED PERSONAL DATA,354.59,SPECIAL GUARDIANSHIP,PAYMENTS TO CARERS,2102572340
05.10.2016,CHILDREN'S SERVICES,REDACTED PERSONAL DATA,263.71,SPECIAL GUARDIANSHIP,PAYMENTS TO CARERS,2102572354
05.10.2016,CHILDREN'S SERVICES,REDACTED PERSONAL DATA,400.00,SPECIAL GUARDIANSHIP,OTHER PAYMENTS FOR CLIENTS,2102572377
05.10.2016,CHILDREN'S SERVICES,REDACTED PERSONAL DATA,317.67,SPECIAL GUARDIANSHIP,PAYMENTS TO CARERS,2102572387
05.10.2016,CHILDREN'S SERVICES,REDACTED PERSONAL DATA,525.00,SPECIAL GUARDIANSHIP,PAYMENTS TO CARERS,2102572388
05.10.2016,CHILDREN'S SERVICES,REDACTED PERSONAL DATA,350.00,SPECIAL GUARDIANSHIP,PAYMENTS TO CARERS,2102572410
05.10.2016,CHILDREN'S SERVICES,REDACTED PERSONAL DATA,285.72,STAYING PUT,PAYMENTS TO CARERS,2102572412
05.10.2016,CHILDREN'S SERVICES,REDACTED PERSONAL DATA,285.72,STAYING PUT,PAYMENTS TO CARERS,2102572430
05.10.2016,CHILDREN'S SERVICES,REDACTED PERSONAL DATA,300.00,UNIVERSITY SUPPORT,CLIENT TRANSPORT,2102572454
05.10.2016,CHILDREN'S SERVICES,REDACTED PERSONAL DATA,650.00,UNIVERSITY SUPPORT,OTHER PAYMENTS FOR CLIENTS,2102572455
05.10.2016,CHILDREN'S SERVICES,REDACTED PERSONAL DATA,300.00,UNIVERSITY SUPPORT,CLIENT TRANSPORT,2102572476
05.10.2016,CHILDREN'S SERVICES,REDACTED PERSONAL DATA,"2,550.00",UNIVERSITY SUPPORT,OTHER PAYMENTS FOR CLIENTS,2102572477
05.10.2016,COMMUNITIES,COOPER CLOSE CO-OPERATIVE LTD,700.00,COOPERS CLOSE CO-OP,M&M ALLOWANCE CO-OPS,5902216057
05.10.2016,COMMUNITIES,FAIR COMMUNITY HSG SERVICES LTD,"180,086.00",FAIR CHS TMO,M&M ALLOWANCE CO-OPS,5902215882
05.10.2016,COMMUNITIES,SOUTHWARK CABX SERVICE,"96,550.00",LEGAL GRANTS,EXTERNAL AGENCIES AND BODIES,5902216038
05.10.2016,CUSTOMER EXPERIENCE HGF,ACCESS INDEPENDENT LTD,644.75,BLUE BADGES,PROFESSIONAL FEES,5902216002
05.10.2016,CUSTOMER EXPERIENCE HGF,TLK PROPERTY & INVESTMENT LTD,"16,815.00",NIGHTLY TA (NSC),EXTERNAL AGENCIES AND BODIES,5902215983
05.10.2016,CUSTOMER EXPERIENCE HGF,STENFORD PROPERTY LTD,"37,530.00",NIGHTLY TA (NSC),EXTERNAL AGENCIES AND BODIES,5902215988
05.10.2016,CUSTOMER EXPERIENCE HGF,NATIONWIDE ACCOMMODATION,"1,085.00",NIGHTLY TA (NSC),EXTERNAL AGENCIES AND BODIES,5902215999
05.10.2016,CUSTOMER EXPERIENCE HGF,NATIONWIDE ACCOMMODATION,"27,126.71",NIGHTLY TA (NSC),EXTERNAL AGENCIES AND BODIES,5902216075
05.10.2016,CUSTOMER EXPERIENCE HGF,AMITY ESTATES LTD,"1,224.48",TEMP ACCOM - MNGMT,GRANTS,5902216059
05.10.2016,ENVIRONMENT AND LEISURE,4 GLOBAL CONSULTING LTD,"3,721.00",CAPITAL PS (LEISURE),"PLANT, MACHINERY & EQUIPMENT ACQUISITION",5902215903
05.10.2016,ENVIRONMENT AND LEISURE,RYAN BUNCE & COMPANY LTD,500.00,CAPITAL PS (LEISURE),CONST'N MAIN CONTRACT - NON CERTIFICATED,5902215931
05.10.2016,ENVIRONMENT AND LEISURE,GLASDON UK LIMITED,"1,487.50",CAPITAL PS (LEISURE),CONSTRUCTION FEES  - EXTERNAL,5902215938
05.10.2016,ENVIRONMENT AND LEISURE,DAVIES WHITE LTD,"1,900.00",CAPITAL PS (LEISURE),CONSTRUCTION SITE COSTS,5902216026
05.10.2016,ENVIRONMENT DIRECTORATE,R J MOTORS LIMITED,590.99,COMMERCIAL VEH CTRL A/C,VEHICLE REPAIRS & MAINTENANCE,5902215989
05.10.2016,ENVIRONMENT DIRECTORATE,R J MOTORS LIMITED,292.81,COMMERCIAL VEH CTRL A/C,VEHICLE REPAIRS & MAINTENANCE,5902215995
05.10.2016,ENVIRONMENT DIRECTORATE,RYGOR COMMERCIALS LIMITED,"2,308.00",COMMERCIAL VEH CTRL A/C,HIRED VEHICLES,5902216037
05.10.2016,ENVIRONMENT DIRECTORATE,RYGOR COMMERCIALS LIMITED,"1,116.00",COMMERCIAL VEH CTRL A/C,HIRED VEHICLES,5902216039
05.10.2016,ENVIRONMENT DIRECTORATE,RYGOR COMMERCIALS LIMITED,"26,320.00",COMMERCIAL VEH CTRL A/C,HIRED VEHICLES,5902216040
05.10.2016,ENVIRONMENT DIRECTORATE,RYGOR COMMERCIALS LIMITED,"6,213.00",COMMERCIAL VEH CTRL A/C,HIRED VEHICLES,5902216042
05.10.2016,ENVIRONMENT DIRECTORATE,ENTERPRISE FLEX E RENT,"1,992.70",COMMERCIAL VEH CTRL A/C,HIRED VEHICLES,5902216049
05.10.2016,ENVIRONMENT DIRECTORATE,TIPPERHIRE LTD,506.00,COMMERCIAL VEH CTRL A/C,HIRED VEHICLES,5902216060
05.10.2016,ENVIRONMENT DIRECTORATE,TIPPERHIRE LTD,506.00,COMMERCIAL VEH CTRL A/C,HIRED VEHICLES,5902216062
05.10.2016,ENVIRONMENT DIRECTORATE,TIPPERHIRE LTD,506.00,COMMERCIAL VEH CTRL A/C,HIRED VEHICLES,5902216063
05.10.2016,ENVIRONMENT DIRECTORATE,TIPPERHIRE LTD,506.00,COMMERCIAL VEH CTRL A/C,HIRED VEHICLES,5902216065
05.10.2016,ENVIRONMENT DIRECTORATE,DAWSON RENTALS SWEEPERS,"2,200.00",COMMERCIAL VEH CTRL A/C,HIRED VEHICLES,5902216090
05.10.2016,ENVIRONMENT DIRECTORATE,DAWSON RENTALS SWEEPERS,"2,200.00",COMMERCIAL VEH CTRL A/C,HIRED VEHICLES,5902216091
05.10.2016,ENVIRONMENT DIRECTORATE,DAWSON RENTALS SWEEPERS,"2,200.00",COMMERCIAL VEH CTRL A/C,HIRED VEHICLES,5902216092
05.10.2016,ENVIRONMENT DIRECTORATE,DAWSON RENTALS SWEEPERS,"2,200.00",COMMERCIAL VEH CTRL A/C,HIRED VEHICLES,5902216093
05.10.2016,ENVIRONMENT DIRECTORATE,DAWSON RENTALS SWEEPERS,"2,389.89",COMMERCIAL VEH CTRL A/C,HIRED VEHICLES,5902216094
05.10.2016,ENVIRONMENT DIRECTORATE,RICS BOOKS,555.00,HEAD OF SERVICE,SUBSCRIPTIONS,5902215900
05.10.2016,ENVIRONMENT DIRECTORATE,SOUTHWARK NEWSPAPER LTD,456.00,HIGHWAYS DEVELOPMENT,MARKETING & PUBLICITY SERVICES,5902215951
05.10.2016,ENVIRONMENT DIRECTORATE,SOUTHWARK NEWSPAPER LTD,492.00,HIGHWAYS DEVELOPMENT,MARKETING & PUBLICITY SERVICES,5902215952
05.10.2016,ENVIRONMENT DIRECTORATE,DANARM MACHINERY LIMITED,350.65,ICC SPECIAL TEAMS,EQUIPMENT PURCHASE & REPAIR,5902215891
05.10.2016,ENVIRONMENT DIRECTORATE,AGENTIS WORKWEAR LTD,469.00,MANAGEMENT TEAM,"""CLOTHING, UNIFORMS & LAUNDRY""",5902215913
05.10.2016,ENVIRONMENT DIRECTORATE,BELL BRUSH CO LTD,361.70,MANAGEMENT TEAM,MATERIALS,5902215932
05.10.2016,ENVIRONMENT DIRECTORATE,BAKER ENGINEERING,414.39,STREET CLEANING-GENERAL,EQUIPMENT PURCHASE & REPAIR,5902215915
05.10.2016,ENVIRONMENT DIRECTORATE,BAKER ENGINEERING,350.25,STREET CLEANING-GENERAL,EQUIPMENT PURCHASE & REPAIR,5902215993
05.10.2016,ENVIRONMENT DIRECTORATE,ELLIOT ENVIRONMENTAL LTD,400.00,STREET CLEANING-GENERAL,OTHER CONTRACTORS,5902216015
05.10.2016,ENVIRONMENT DIRECTORATE,ECOLAB LTD,"3,508.63",STRUCTURES RECOVERABLE WORKS,OTHER CONTRACTORS,5902216068
05.10.2016,F & C S EXCLUDING CORPORATE BUDGETS,THAMES REACH EMPOLYMENT ACADEMY,405.00,COMMUNITY COUNCILS,HIRE OF ROOMS/HALLS,5902216018
05.10.2016,F & C S EXCLUDING CORPORATE BUDGETS,MAGNET SOLUTIONS LTD,"7,388.00",COUNCIL TAX,SOFTWARE,5902215930
05.10.2016,HOUSING,BCS (ELECTRICAL & BUILDING) LTD,"147,659.89",BCS,MANUAL CREDITORS,5902215894
05.10.2016,HOUSING,SPOKEMEAD MAINTENANCE LTD,"192,855.79",PAYMENTS CONTROL ACCOUNT - SPOKEMEAD,MANUAL CREDITORS,5902215959
05.10.2016,HOUSING,SCCI ALPHATRACK LTD,"70,145.18",SCCI ALPHATRACK,MANUAL CREDITORS,5902215968
05.10.2016,HOUSING,N & C BUILDING MATERIALS,357.00,STORES,CREDITORS -GR/IR CLEARING ACCOUNT,5902215934
05.10.2016,HOUSING,N & C BUILDING MATERIALS,"5,692.60",STORES,CREDITORS -GR/IR CLEARING ACCOUNT,5902215937
05.10.2016,HOUSING,CROSSFOLD ELECTRICAL WHOLESALERS,525.00,STORES,CREDITORS -GR/IR CLEARING ACCOUNT,5902215947
05.10.2016,HOUSING,CROSSFOLD ELECTRICAL WHOLESALERS,443.40,STORES,CREDITORS -GR/IR CLEARING ACCOUNT,5902215948
05.10.2016,HOUSING,FAYERS PLUMBING & BUILDING SUPPLIES,850.00,STORES,CREDITORS -GR/IR CLEARING ACCOUNT,5902215997
05.10.2016,HOUSING,FAYERS PLUMBING & BUILDING SUPPLIES,808.60,STORES,CREDITORS -GR/IR CLEARING ACCOUNT,5902216001
05.10.2016,HOUSING,FAYERS PLUMBING & BUILDING SUPPLIES,355.20,STORES,CREDITORS -GR/IR CLEARING ACCOUNT,5902216025
05.10.2016,HOUSING,FAYERS PLUMBING & BUILDING SUPPLIES,721.71,STORES,CREDITORS -GR/IR CLEARING ACCOUNT,5902216025
05.10.2016,HOUSING HRA,HOBART PAVING COMPANY LTD,"3,597.57",CAPITAL PS (HRA),CONSTRUCTION MAIN CONTRACT -CERTIFICATED,2102572482
05.10.2016,HOUSING HRA,KEEPMOAT REGENERATION (APOLLO) LTD,"122,200.66",CAPITAL PS (HRA),CONSTRUCTION MAIN CONTRACT -CERTIFICATED,2102572483
05.10.2016,HOUSING HRA,KEEPMOAT REGENERATION (APOLLO) LTD,"310,199.95",CAPITAL PS (HRA),CONSTRUCTION MAIN CONTRACT -CERTIFICATED,2102572484
05.10.2016,HOUSING HRA,KEEPMOAT REGENERATION (APOLLO) LTD,"288,843.01",CAPITAL PS (HRA),CONSTRUCTION MAIN CONTRACT -CERTIFICATED,2102572525
05.10.2016,HOUSING HRA,BLAKENEY LEIGH LTD,"3,444.08",CAPITAL PS (HRA),CONSTRUCTION FEES  - EXTERNAL,5902215925
05.10.2016,HOUSING HRA,CALFORD SEADEN LLP,973.35,CAPITAL PS (HRA),CONSTRUCTION FEES  - EXTERNAL,5902216005
05.10.2016,HOUSING HRA,CALFORD SEADEN LLP,"3,378.85",CAPITAL PS (HRA),CONSTRUCTION FEES  - EXTERNAL,5902216008
05.10.2016,HOUSING HRA,CALFORD SEADEN LLP,"7,654.48",CAPITAL PS (HRA),CONSTRUCTION FEES  - EXTERNAL,5902216014
05.10.2016,HOUSING HRA,CALFORD SEADEN LLP,"5,993.76",CAPITAL PS (HRA),CONSTRUCTION FEES  - EXTERNAL,5902216017
05.10.2016,HOUSING HRA,CALFORD SEADEN LLP,"3,496.55",CAPITAL PS (HRA),CONSTRUCTION FEES  - EXTERNAL,5902216019
05.10.2016,HOUSING HRA,DAVID MILES & PARTNERS,"2,363.92",CAPITAL PS (HRA),CONSTRUCTION FEES  - EXTERNAL,5902216056
05.10.2016,HOUSING HRA,DAVID MILES & PARTNERS,"2,363.92",CAPITAL PS (HRA),CONSTRUCTION FEES  - EXTERNAL,5902216066
05.10.2016,HOUSING HRA,PROJECT CENTRE LTD,"1,275.00",CAPITAL PS (REGEN),CONSTRUCTION FEES,5902215880
05.10.2016,HOUSING HRA,PROJECT CENTRE LTD,"1,563.00",CAPITAL PS (REGEN),CONSTRUCTION FEES,5902215880
05.10.2016,HOUSING HRA,PROJECT CENTRE LTD,"6,500.00",CAPITAL PS (REGEN),CONSTRUCTION FEES,5902215880
05.10.2016,LEISURE DIRECTORATE,RACHEL ATTFIELD,800.00,ARTS SERVICES,PROFESSIONAL FEES,5902215916
05.10.2016,LEISURE DIRECTORATE,MARK HARROD LTD,"2,800.00",HOMERSTALL ROAD SPORTS GROUND,PROFESSIONAL FEES,5902215879
05.10.2016,MODERNISATION,CBS MAINTENANCE SERVICES LTD,"3,707.75",COMMERCIAL PROPERTIES,BUILDING R&M,2102572485
05.10.2016,MODERNISATION,A N CONTRACT SERVICES LTD,"4,987.00",COMMERCIAL PROPERTIES,BUILDING R&M,2102572486
05.10.2016,MODERNISATION HGF,ESSENTRA SECURITY LTD,610.00,160 TOOLEY ST.,HARDWARE,5902215886
05.10.2016,MODERNISATION HGF,AMAS LTD,"3,307.86",47B EAST DULWICH ROAD,PROPERTY INSURANCE COSTS,2102550459
05.10.2016,MODERNISATION HGF,AMAS LTD,"32,750.00",47B EAST DULWICH ROAD,RENTS,2102561315
05.10.2016,MODERNISATION HGF,AMAS LTD,"-32,750.00",47B EAST DULWICH ROAD,RENTS,2102572848
05.10.2016,MODERNISATION HGF,AMAS LTD,"-3,307.86",47B EAST DULWICH ROAD,PROPERTY INSURANCE COSTS,2102572849
05.10.2016,MODERNISATION HGF,ALAN PALMER,675.00,CHILDREN'S & ADULTS' TRAINING,FREELANCE SPECIALISTS,5902215888
05.10.2016,MODERNISATION HGF,INTERSERVE (FACILITIES MANAGEMENT),"25,931.62",FM SERVICES BY INTERSERVE,BUILDING R&M,5902215893
05.10.2016,MODERNISATION HGF,INTERSERVE (FACILITIES MANAGEMENT),"435,416.37",FM SERVICES BY INTERSERVE,BUILDING R&M,5902215895
05.10.2016,MODERNISATION HGF,INTERSERVE (FACILITIES MANAGEMENT),"446,160.71",FM SERVICES BY INTERSERVE,BUILDING R&M,5902215896
05.10.2016,MODERNISATION HGF,DRAMATIC SOLUTIONS,"1,792.50",MEMBER DEVELOPMENT,TRAINING,5902215486
05.10.2016,PLANNING AND TRANSPORT,ADLER MANUFACTURING LTD,622.50,BUILDING CONTROL,OFFICE EXPENSES,5902216053
05.10.2016,PUBLIC HEALTH,THE ROYAL BOURNEMOUTH & CHRISTCHURCH HOSPITALS NHS TRUST,391.80,SEXUAL HEALTH - STI,EXTERNAL AGENCIES AND BODIES,5902215927
05.10.2016,PUBLIC HEALTH,WEST HERTFORDSHIRE HOSPITALS,444.00,SEXUAL HEALTH - STI,EXTERNAL AGENCIES AND BODIES,5902216013
05.10.2016,PUBLIC HEALTH,ROYAL FREE LONDON NHS FOUNDATION TRUST,"2,522.00",SEXUAL HEALTH - STI,EXTERNAL AGENCIES AND BODIES,5902216029
05.10.2016,PUBLIC HEALTH,ROYAL FREE LONDON NHS FOUNDATION TRUST,"-1,635.00",SEXUAL HEALTH - STI,EXTERNAL AGENCIES AND BODIES,5902216030
05.10.2016,PUBLIC HEALTH,ROYAL FREE LONDON NHS FOUNDATION TRUST,"2,521.00",SEXUAL HEALTH - STI,EXTERNAL AGENCIES AND BODIES,5902216032
05.10.2016,PUBLIC HEALTH,ROYAL FREE LONDON NHS FOUNDATION TRUST,"2,522.00",SEXUAL HEALTH - STI,EXTERNAL AGENCIES AND BODIES,5902216034
05.10.2016,REGENERATION,BUREAU OF SILLY IDEAS LTD,"7,500.00",MASTER PLAN-H/WAY & TRANS INTERCHANGE,MARKETING & PUBLICITY SERVICES,5902215977
05.10.2016,RESIDENT SERVICES,EDF ENERGY PLC,"1,231.12",PECKHAM,ELECTRICITY,5902216073
05.10.2016,SOUTHWARK BUILDING SERVICES,N & C BUILDING MATERIALS,359.89,BERMONDSEY DAY TO DAY - ELECTRICIAN,MATERIALS,5902215935
05.10.2016,SOUTHWARK BUILDING SERVICES,MASHER BROTHERS,"2,888.75",BUSINESS SUPPORT,OTHER CONTRACTORS,2102572038
05.10.2016,SOUTHWARK BUILDING SERVICES,OFFICE DEPOT UK LTD,640.00,BUSINESS SUPPORT,STATIONERY,5902216083
05.10.2016,SOUTHWARK BUILDING SERVICES,EDF ENERGY PLC,611.40,DEPOT COSTS,CATERING MATERIALS & SUPPLIES,5902216055
06.10.2016,ADULT SOCIAL CARE,REDACTED PERSONAL DATA,264.80,APPOINTEESHIPS,OTHER PAYMENTS FOR CLIENTS,5902216213
06.10.2016,ADULT SOCIAL CARE,LONDON CARE PLC,732.68,HOME CARE C&V,HOMECARE - C&V,2102572597
06.10.2016,ADULT SOCIAL CARE,MIHOMECARE LTD,306.36,HOME CARE C&V,HOMECARE - C&V,2102572599
06.10.2016,ADULT SOCIAL CARE,AURORA OPTIONS,"4,390.07",LD HOME CARE,SUPPORTED LIVING,5902216113
06.10.2016,ADULT SOCIAL CARE,AURORA OPTIONS,"6,268.51",LD HOME CARE,SUPPORTED LIVING,5902216113
06.10.2016,ADULT SOCIAL CARE,AURORA OPTIONS,"2,325.49",LD HOME CARE,SUPPORTED LIVING,5902216117
06.10.2016,ADULT SOCIAL CARE,AURORA OPTIONS,"4,390.07",LD HOME CARE,SUPPORTED LIVING,5902216117
06.10.2016,ADULT SOCIAL CARE,AURORA OPTIONS,"6,268.51",LD HOME CARE,SUPPORTED LIVING,5902216117
06.10.2016,ADULT SOCIAL CARE,REDACTED PERSONAL DATA,"1,456.00",LD LTS 18-64,PAYMENTS TO CLIENTS (DIRECT PAYMENTS),2102572970
06.10.2016,ADULT SOCIAL CARE,REDACTED PERSONAL DATA,"-1,456.00",LD LTS 18-64,DISCRETIONARY FLEXIBLE FEES & INCOME,2102572971
06.10.2016,ADULT SOCIAL CARE,REDACTED PERSONAL DATA,624.00,LD LTS 18-64,PAYMENTS TO CLIENTS (DIRECT PAYMENTS),2102572976
06.10.2016,ADULT SOCIAL CARE,REDACTED PERSONAL DATA,-624.00,LD LTS 18-64,DISCRETIONARY FLEXIBLE FEES & INCOME,2102572977
06.10.2016,ADULT SOCIAL CARE,REDACTED PERSONAL DATA,300.00,LD LTS 18-64,PAYMENTS TO CLIENTS (DIRECT PAYMENTS),2102572986
06.10.2016,ADULT SOCIAL CARE,REDACTED PERSONAL DATA,-300.00,LD LTS 18-64,DISCRETIONARY FLEXIBLE FEES & INCOME,2102572987
06.10.2016,ADULT SOCIAL CARE,REDACTED PERSONAL DATA,875.00,LD LTS 18-64,PAYMENTS TO CLIENTS (DIRECT PAYMENTS),2102573060
06.10.2016,ADULT SOCIAL CARE,REDACTED PERSONAL DATA,-875.00,LD LTS 18-64,DISCRETIONARY FLEXIBLE FEES & INCOME,2102573061
06.10.2016,ADULT SOCIAL CARE,CHRISTINE COOPER,450.00,LEARNING DISABIITIES SOCIAL WORKER,LEGAL FEES & COURT COSTS,2102572687
06.10.2016,ADULT SOCIAL CARE,RHYS HADDEN,"1,406.25",LEARNING DISABIITIES SOCIAL WORKER,LEGAL FEES & COURT COSTS,2102572738
06.10.2016,ADULT SOCIAL CARE,S LONDON CHURCH FUND & SWK DIOCESAN BOARD OF FINANCE,350.77,LEARNING DISABIITIES SOCIAL WORKER,TRAINING,5902216199
06.10.2016,ADULT SOCIAL CARE,MIHOMECARE LTD,524.79,OP - HOMECARE,HOMECARE - C&V,2102572598
06.10.2016,ADULT SOCIAL CARE,YOUTH GRACES (UK) LTD,256.42,OP - HOMECARE,HOMECARE - SPOT,2102572607
06.10.2016,ADULT SOCIAL CARE,YOUTH GRACES (UK) LTD,543.06,OP - HOMECARE,HOMECARE - SPOT,2102572608
06.10.2016,ADULT SOCIAL CARE,YOUTH GRACES (UK) LTD,377.86,OP - HOMECARE,HOMECARE - SPOT,2102572611
06.10.2016,ADULT SOCIAL CARE,YOUTH GRACES (UK) LTD,276.58,OP - HOMECARE,HOMECARE - SPOT,2102572615
06.10.2016,ADULT SOCIAL CARE,YOUTH GRACES (UK) LTD,256.35,OP - HOMECARE,HOMECARE - SPOT,2102572616
06.10.2016,ADULT SOCIAL CARE,YOUTH GRACES (UK) LTD,256.42,OP - HOMECARE,HOMECARE - SPOT,2102572617
06.10.2016,ADULT SOCIAL CARE,YOUTH GRACES (UK) LTD,377.93,OP - HOMECARE,HOMECARE - SPOT,2102572623
06.10.2016,ADULT SOCIAL CARE,YOUTH GRACES (UK) LTD,253.02,OP - HOMECARE,HOMECARE - SPOT,2102572628
06.10.2016,ADULT SOCIAL CARE,YOUTH GRACES (UK) LTD,364.29,OP - HOMECARE,HOMECARE - SPOT,2102572629
06.10.2016,ADULT SOCIAL CARE,YOUTH GRACES (UK) LTD,256.35,OP - HOMECARE,HOMECARE - SPOT,2102572636
06.10.2016,ADULT SOCIAL CARE,YOUTH GRACES (UK) LTD,256.35,OP - HOMECARE,HOMECARE - SPOT,2102572642
06.10.2016,ADULT SOCIAL CARE,YOUTH GRACES (UK) LTD,344.06,OP - HOMECARE,HOMECARE - SPOT,2102572645
06.10.2016,ADULT SOCIAL CARE,YOUTH GRACES (UK) LTD,711.60,OP CARE PACKAGES,HOMECARE - SPOT,2102572620
06.10.2016,ADULT SOCIAL CARE,REDACTED PERSONAL DATA,"-2,048.00",PHY LTS 18-64,DISCRETIONARY FLEXIBLE FEES & INCOME,2102573001
06.10.2016,ADULT SOCIAL CARE,REDACTED PERSONAL DATA,"2,048.00",PHY LTS 18-64,PAYMENTS TO CLIENTS (DIRECT PAYMENTS),2102573002
06.10.2016,ADULT SOCIAL CARE,MIHOMECARE LTD,816.96,PWLD HOME CARE IND,HOMECARE - C&V,2102572603
06.10.2016,ADULT SOCIAL CARE,BEATRICE COLLIER,750.00,QUALITY AND PERF,LEGAL FEES & COURT COSTS,2102572674
06.10.2016,ADULT SOCIAL CARE,M C TECHNICIANS LTD,360.00,SOUTHWARK RESOURCE CENTRE,PUBLIC TRANSPORT,5902216240
06.10.2016,ASSET MANAGEMENT,M E HORSTEAD,870.00,ADAPTATIONS,BUILDING R&M,5902216152
06.10.2016,ASSET MANAGEMENT,STEPHEN EVANS,"1,250.00",DISREPAIR,LEGAL FEES & COURT COSTS,2102572751
06.10.2016,ASSET MANAGEMENT,STEPHEN EVANS,400.00,DISREPAIR,LEGAL FEES & COURT COSTS,2102572753
06.10.2016,ASSET MANAGEMENT,STEPHEN EVANS,300.00,DISREPAIR,LEGAL FEES & COURT COSTS,2102572757
06.10.2016,ASSET MANAGEMENT,A & E ELKINS LTD,"13,887.96",FRA WORKS,ESTATE LIGHTING R&M,2102572828
06.10.2016,CENTRAL FUNCTIONS,LONDON MAINTENANCE CO LTD,"3,189.45",GARAGE REPAIRS,BUILDING R&M,2102572529
06.10.2016,CENTRAL FUNCTIONS,STANDAGE & CO LTD,650.00,GARAGE REPAIRS,BUILDING R&M,2102572530
06.10.2016,CENTRAL FUNCTIONS,STANDAGE & CO LTD,650.00,GARAGE REPAIRS,BUILDING R&M,2102572530
06.10.2016,CENTRAL FUNCTIONS,ALLPAY NET LIMITED,"1,000.00",GARAGE REPAIRS,EQUIPMENT PURCHASE & REPAIR,5902216229
06.10.2016,CENTRAL FUNCTIONS,KENT COUNTY COUNCIL - LASER,724.48,HEATING ACCOUNT,GAS,2102572795
06.10.2016,CENTRAL FUNCTIONS,KENT COUNTY COUNCIL - LASER,"1,498.06",HEATING ACCOUNT,ELECTRICITY,2102572796
06.10.2016,CENTRAL FUNCTIONS,KENT COUNTY COUNCIL - LASER,"1,687.42",HEATING ACCOUNT,ELECTRICITY,2102572797
06.10.2016,CENTRAL FUNCTIONS,KENT COUNTY COUNCIL - LASER,796.74,HEATING ACCOUNT,ELECTRICITY,2102572798
06.10.2016,CENTRAL FUNCTIONS,KENT COUNTY COUNCIL - LASER,"1,317.69",HEATING ACCOUNT,ELECTRICITY,2102572799
06.10.2016,CENTRAL FUNCTIONS,KENT COUNTY COUNCIL - LASER,654.45,HEATING ACCOUNT,ELECTRICITY,2102572800
06.10.2016,CENTRAL FUNCTIONS,EDF ENERGY PLC,294.14,HEATING ACCOUNT,ELECTRICITY,5902216219
06.10.2016,CENTRAL FUNCTIONS,EDF ENERGY PLC,"1,339.15",HEATING ACCOUNT,ELECTRICITY,5902216343
06.10.2016,CENTRAL FUNCTIONS,STEPHANIE SMITH,"1,250.00",HOME OWNERSHIP,LEGAL FEES & COURT COSTS,2102572750
06.10.2016,CENTRAL FUNCTIONS,UBIQUS UK LTD,474.88,HOME OWNERSHIP,LEGAL FEES & COURT COSTS,2102572767
06.10.2016,CENTRAL FUNCTIONS,UBIQUS UK LTD,479.64,HOME OWNERSHIP,LEGAL FEES & COURT COSTS,2102572768
06.10.2016,CENTRAL FUNCTIONS,HAMMICKS,"1,472.00",HOME OWNERSHIP,BOOKS & PUBLICATIONS,5902216265
06.10.2016,CENTRAL FUNCTIONS,FLUID I.T. LTD,"5,610.00",TENANTS FUND,COMPUTER CONSUMABLES,5902216294
06.10.2016,CENTRAL FUNCTIONS,THAMES WATER UTILITIES LTD,"36,876.96",TWA,WATER,5902216129
06.10.2016,CENTRAL FUNCTIONS,THAMES WATER UTILITIES LTD,"1,298,575.37",TWA,WATER,5902216129
06.10.2016,CHIEF EXECUTIVE,AGB ENVIRONMENTAL LTD,"1,525.00",CAPITAL PS (REGEN),CONSTRUCTION FEES,5902216128
06.10.2016,CHIEF EXECUTIVE,APPLEYARD & TREW,"2,000.00",CAPITAL PS (REGEN),CONSTRUCTION FEES  - EXTERNAL,5902216290
06.10.2016,CHILDREN'S SERVICES,ST MICHAELS CATHOLIC COLLEGE,"53,075.40",ACADEMIES SECONDARY,HIGH NEEDS - TOP UP FUNDING,2102572775
06.10.2016,CHILDREN'S SERVICES,DULWICH HAMLET EDUCATIONAL TRUST,"34,418.22",ACADEMIES SECONDARY,HIGH NEEDS - TOP UP FUNDING,2102572780
06.10.2016,CHILDREN'S SERVICES,ARK ALL SAINTS ACADEMY,"27,985.80",ACADEMIES SECONDARY,HIGH NEEDS - TOP UP FUNDING,2102572783
06.10.2016,CHILDREN'S SERVICES,ARK ALL SAINTS ACADEMY,"8,434.07",ACADEMIES SECONDARY,HIGH NEEDS - TOP UP FUNDING,2102572785
06.10.2016,CHILDREN'S SERVICES,HARRIS ACADEMY BERMONDSEY,"9,328.60",ACADEMIES SECONDARY,HIGH NEEDS - TOP UP FUNDING,2102572801
06.10.2016,CHILDREN'S SERVICES,THE ACADEMY @ PECKHAM,"55,971.60",ACADEMIES SECONDARY,HIGH NEEDS - TOP UP FUNDING,2102572802
06.10.2016,CHILDREN'S SERVICES,HARRIS PRIMARY FREE SCHOOL PECKHAM,"19,541.27",ACADEMIES SECONDARY,HIGH NEEDS - TOP UP FUNDING,2102572803
06.10.2016,CHILDREN'S SERVICES,HARRIS PRIMARY ACADEMY PECKHAM PARK,"1,251.74",ACADEMIES SECONDARY,HIGH NEEDS - TOP UP FUNDING,2102572804
06.10.2016,CHILDREN'S SERVICES,HARRIS PRIMARY ACADEMY PECKHAM PARK,"43,746.81",ACADEMIES SECONDARY,HIGH NEEDS - TOP UP FUNDING,2102572805
06.10.2016,CHILDREN'S SERVICES,ARK SCHOOLS T/A GLOBE ACADEMY,"79,293.04",ACADEMIES SECONDARY,HIGH NEEDS - TOP UP FUNDING,2102572813
06.10.2016,CHILDREN'S SERVICES,FLUX STUDIOS,"2,000.00",COMMUNITY LEARNING 15/16,GRANTS,5902216119
06.10.2016,CHILDREN'S SERVICES,HERMAN WHYTE T/A LITTLE CLIMBERS DAYCARE PROJECT,"3,329.02",EARLY YEARS,STATEMENTED FEES,2102572791
06.10.2016,CHILDREN'S SERVICES,TREASURE HOUSE (LONDON) CIC,"1,995.00",EDUCATION OTHERWISE,EXTERNAL AGENCIES AND BODIES,5902216159
06.10.2016,CHILDREN'S SERVICES,TREASURE HOUSE (LONDON) CIC,"4,484.00",FE & SIXTH FORM COLLEGES,STATEMENTED FEES,2102572781
06.10.2016,CHILDREN'S SERVICES,PHOENIXPLACE,"3,072.00",FE & SIXTH FORM COLLEGES,STATEMENTED FEES,2102572782
06.10.2016,CHILDREN'S SERVICES,ARK ALL SAINTS ACADEMY,"25,089.64",FE & SIXTH FORM COLLEGES,HIGH NEEDS - TOP UP FUNDING,2102572784
06.10.2016,CHILDREN'S SERVICES,THE COMPLETE WORKS INDEPENDENT SCHOOL,"4,200.00",FE & SIXTH FORM COLLEGES,STATEMENTED FEES,2102572789
06.10.2016,CHILDREN'S SERVICES,THE HOLMEWOOD SCHOOL LONDON,"18,160.00",FE & SIXTH FORM COLLEGES,STATEMENTED FEES,2102572811
06.10.2016,CHILDREN'S SERVICES,RIVERSTON SCHOOL,"10,794.20",FE & SIXTH FORM COLLEGES,STATEMENTED FEES,2102572814
06.10.2016,CHILDREN'S SERVICES,RIVERSTON SCHOOL,"9,283.75",FE & SIXTH FORM COLLEGES,STATEMENTED FEES,2102572815
06.10.2016,CHILDREN'S SERVICES,RIVERSTON SCHOOL,"9,161.00",FE & SIXTH FORM COLLEGES,STATEMENTED FEES,2102572816
06.10.2016,CHILDREN'S SERVICES,RIVERSTON SCHOOL,"10,809.70",FE & SIXTH FORM COLLEGES,STATEMENTED FEES,2102572817
06.10.2016,CHILDREN'S SERVICES,RIVERSTON SCHOOL,"11,151.00",FE & SIXTH FORM COLLEGES,STATEMENTED FEES,2102572818
06.10.2016,CHILDREN'S SERVICES,RIVERSTON SCHOOL,"10,824.20",FE & SIXTH FORM COLLEGES,STATEMENTED FEES,2102572819
06.10.2016,CHILDREN'S SERVICES,RIVERSTON SCHOOL,"10,924.20",FE & SIXTH FORM COLLEGES,STATEMENTED FEES,2102572820
06.10.2016,CHILDREN'S SERVICES,RIVERSTON SCHOOL,"11,151.00",FE & SIXTH FORM COLLEGES,STATEMENTED FEES,2102572821
06.10.2016,CHILDREN'S SERVICES,RIVERSTON SCHOOL,"5,661.00",FE & SIXTH FORM COLLEGES,STATEMENTED FEES,2102572822
06.10.2016,CHILDREN'S SERVICES,CHERRY GARDEN SCHOOL,"7,465.00",HEARING AND VISUAL IMPAIRMENT TEAM,STATEMENTED FEES,2102572777
06.10.2016,CHILDREN'S SERVICES,CHERRY GARDEN SCHOOL,"7,360.00",HEARING AND VISUAL IMPAIRMENT TEAM,STATEMENTED FEES,2102572778
06.10.2016,CHILDREN'S SERVICES,CHERRY GARDEN SCHOOL,"9,362.00",HEARING AND VISUAL IMPAIRMENT TEAM,EXTERNAL AGENCIES AND BODIES,2102572807
06.10.2016,CHILDREN'S SERVICES,CHERRY GARDEN SCHOOL,"9,362.00",HEARING AND VISUAL IMPAIRMENT TEAM,EXTERNAL AGENCIES AND BODIES,2102572808
06.10.2016,CHILDREN'S SERVICES,CHERRY GARDEN SCHOOL,"4,686.00",HEARING AND VISUAL IMPAIRMENT TEAM,EXTERNAL AGENCIES AND BODIES,2102572809
06.10.2016,CHILDREN'S SERVICES,CHERRY GARDEN SCHOOL,"4,686.00",HEARING AND VISUAL IMPAIRMENT TEAM,EXTERNAL AGENCIES AND BODIES,2102572810
06.10.2016,CHILDREN'S SERVICES,ANNE SPRATLING,625.00,LEGAL,LEGAL FEES & COURT COSTS,2102572672
06.10.2016,CHILDREN'S SERVICES,BEVERLEY F NUNNERY & CO,334.35,LEGAL,LEGAL FEES & COURT COSTS,2102572675
06.10.2016,CHILDREN'S SERVICES,CHRISTINE COOPER,"1,312.50",LEGAL,LEGAL FEES & COURT COSTS,2102572686
06.10.2016,CHILDREN'S SERVICES,DAMIAN WOODWARD-CARLTON,300.00,LEGAL,LEGAL FEES & COURT COSTS,2102572690
06.10.2016,CHILDREN'S SERVICES,DAMIAN WOODWARD-CARLTON,"1,500.00",LEGAL,LEGAL FEES & COURT COSTS,2102572691
06.10.2016,CHILDREN'S SERVICES,DAMIAN WOODWARD-CARLTON,500.00,LEGAL,LEGAL FEES & COURT COSTS,2102572692
06.10.2016,CHILDREN'S SERVICES,DAMIAN WOODWARD-CARLTON,350.00,LEGAL,LEGAL FEES & COURT COSTS,2102572693
06.10.2016,CHILDREN'S SERVICES,DAMIAN WOODWARD-CARLTON,500.00,LEGAL,LEGAL FEES & COURT COSTS,2102572694
06.10.2016,CHILDREN'S SERVICES,DAVID FOWLER,425.00,LEGAL,LEGAL FEES & COURT COSTS,2102572695
06.10.2016,CHILDREN'S SERVICES,ESTHER MACLACHLAN,275.00,LEGAL,LEGAL FEES & COURT COSTS,2102572702
06.10.2016,CHILDREN'S SERVICES,ESTHER MACLACHLAN,350.00,LEGAL,LEGAL FEES & COURT COSTS,2102572703
06.10.2016,CHILDREN'S SERVICES,EXPERT WITNESS,579.25,LEGAL,LEGAL FEES & COURT COSTS,2102572705
06.10.2016,CHILDREN'S SERVICES,EXPERT WITNESS,251.80,LEGAL,LEGAL FEES & COURT COSTS,2102572706
06.10.2016,CHILDREN'S SERVICES,FRANCIS WILKINSON,958.50,LEGAL,LEGAL FEES & COURT COSTS,2102572707
06.10.2016,CHILDREN'S SERVICES,KIERAN COLEMAN,300.00,LEGAL,LEGAL FEES & COURT COSTS,2102572717
06.10.2016,CHILDREN'S SERVICES,LAURA BUMPUS,600.00,LEGAL,LEGAL FEES & COURT COSTS,2102572720
06.10.2016,CHILDREN'S SERVICES,LAURA HIBBERD,350.00,LEGAL,LEGAL FEES & COURT COSTS,2102572721
06.10.2016,CHILDREN'S SERVICES,LAURA HIBBERD,400.00,LEGAL,LEGAL FEES & COURT COSTS,2102572722
06.10.2016,CHILDREN'S SERVICES,NEIL FRY,500.00,LEGAL,LEGAL FEES & COURT COSTS,2102572729
06.10.2016,CHILDREN'S SERVICES,NICHOLAS O'BRIEN,975.00,LEGAL,LEGAL FEES & COURT COSTS,2102572730
06.10.2016,CHILDREN'S SERVICES,NICHOLAS O'BRIEN,800.00,LEGAL,LEGAL FEES & COURT COSTS,2102572731
06.10.2016,CHILDREN'S SERVICES,NICHOLAS O'BRIEN,600.00,LEGAL,LEGAL FEES & COURT COSTS,2102572732
06.10.2016,CHILDREN'S SERVICES,OLIVER MILLINGTON,260.00,LEGAL,LEGAL FEES & COURT COSTS,2102572733
06.10.2016,CHILDREN'S SERVICES,OLIVER MILLINGTON,260.00,LEGAL,LEGAL FEES & COURT COSTS,2102572734
06.10.2016,CHILDREN'S SERVICES,OLIVER MILLINGTON,300.00,LEGAL,LEGAL FEES & COURT COSTS,2102572735
06.10.2016,CHILDREN'S SERVICES,PAULA DIAZ,427.50,LEGAL,LEGAL FEES & COURT COSTS,2102572736
06.10.2016,CHILDREN'S SERVICES,RICHARD BEDDOE,625.00,LEGAL,LEGAL FEES & COURT COSTS,2102572740
06.10.2016,CHILDREN'S SERVICES,TABITHA BARRAN,575.00,LEGAL,LEGAL FEES & COURT COSTS,2102572760
06.10.2016,CHILDREN'S SERVICES,TABITHA BARRAN,300.00,LEGAL,LEGAL FEES & COURT COSTS,2102572761
06.10.2016,CHILDREN'S SERVICES,TABITHA BARRAN,275.00,LEGAL,LEGAL FEES & COURT COSTS,2102572762
06.10.2016,CHILDREN'S SERVICES,TABITHA BARRAN,750.00,LEGAL,LEGAL FEES & COURT COSTS,2102572763
06.10.2016,CHILDREN'S SERVICES,TOM RESTALL,300.00,LEGAL,LEGAL FEES & COURT COSTS,2102572765
06.10.2016,CHILDREN'S SERVICES,TOM RESTALL,750.00,LEGAL,LEGAL FEES & COURT COSTS,2102572766
06.10.2016,CHILDREN'S SERVICES,VIVIEN KENLEY,"4,174.17",LEGAL,LEGAL FEES & COURT COSTS,2102572769
06.10.2016,CHILDREN'S SERVICES,WILLIAM DEAN,600.00,LEGAL,LEGAL FEES & COURT COSTS,2102572771
06.10.2016,CHILDREN'S SERVICES,WILLIAM DEAN,300.00,LEGAL,LEGAL FEES & COURT COSTS,2102572772
06.10.2016,CHILDREN'S SERVICES,WILLISPALMER,725.80,LEGAL,LEGAL FEES & COURT COSTS,2102572773
06.10.2016,CHILDREN'S SERVICES,DARRICK WOOD SCHOOL,"2,463.29",OLA - EY AND PRIMARY,STATEMENTED FEES,2102572812
06.10.2016,CHILDREN'S SERVICES,LONDON BOROUGH OF TOWER HAMLETS,"26,502.31",OLA - SPECIAL,STATEMENTED FEES,2102572806
06.10.2016,CHILDREN'S SERVICES,S G A SYSTEMS LTD,"3,666.00",PRIMARY ACHIEVEMENT,SUBSCRIPTIONS,5902216262
06.10.2016,CHILDREN'S SERVICES,CHERRY GARDEN SCHOOL,672.50,SEN HOME TUITION,EXTERNAL AGENCIES AND BODIES,2102572776
06.10.2016,CHILDREN'S SERVICES,THE COMPLETE WORKS INDEPENDENT SCHOOL,"9,537.50",SEN HOME TUITION,STATEMENTED FEES,2102572786
06.10.2016,CHILDREN'S SERVICES,THE COMPLETE WORKS INDEPENDENT SCHOOL,"13,195.00",SEN HOME TUITION,STATEMENTED FEES,2102572787
06.10.2016,CHILDREN'S SERVICES,THE COMPLETE WORKS INDEPENDENT SCHOOL,"13,701.50",SEN HOME TUITION,STATEMENTED FEES,2102572788
06.10.2016,CHILDREN'S SERVICES,THE COMPLETE WORKS INDEPENDENT SCHOOL,"11,025.00",SEN HOME TUITION,STATEMENTED FEES,2102572790
06.10.2016,CHILDREN'S SERVICES,TUKE SCHOOL,"2,485.00",SEN TRANSPORT,STATEMENTED FEES,2102572774
06.10.2016,CHILDREN'S SERVICES,HARBOTTLE ASSOCIATES,400.00,SOUTHWARK MANAGEMENT - 5015249,LEGAL FEES & COURT COSTS,2102572708
06.10.2016,CHILDREN'S SERVICES,REDACTED PERSONAL DATA,278.00,UASC FURTHER EDUCATION SUPPORT,CLIENT TRANSPORT,5902214965
06.10.2016,CHILDREN'S SERVICES,REDACTED PERSONAL DATA,400.00,UASC FURTHER EDUCATION SUPPORT,OTHER PAYMENTS FOR CLIENTS,5902214965
06.10.2016,CHILDREN'S SERVICES,APETITO LTD,"4,879.01",WELFARE CATERING,OTHER CONTRACTORS,5902216122
06.10.2016,CHILDREN'S SERVICES,APETITO LTD,-446.50,WELFARE CATERING,OTHER CONTRACTORS,5902216131
06.10.2016,CHILDREN'S SERVICES,APETITO LTD,"5,237.98",WELFARE CATERING,OTHER CONTRACTORS,5902216135
06.10.2016,CHILDREN'S SERVICES,APETITO LTD,"26,594.88",WELFARE CATERING,OTHER CONTRACTORS,5902216135
06.10.2016,CHILDREN'S SERVICES,APETITO LTD,"5,517.12",WELFARE CATERING,OTHER CONTRACTORS,5902216140
06.10.2016,CHILDREN'S SERVICES,APETITO LTD,"27,368.64",WELFARE CATERING,OTHER CONTRACTORS,5902216140
06.10.2016,CHILDREN'S SERVICES,APETITO LTD,-500.41,WELFARE CATERING,OTHER CONTRACTORS,5902216143
06.10.2016,CHILDREN'S SERVICES,APETITO LTD,"5,443.94",WELFARE CATERING,OTHER CONTRACTORS,5902216154
06.10.2016,CHILDREN'S SERVICES,APETITO LTD,-426.50,WELFARE CATERING,OTHER CONTRACTORS,5902216157
06.10.2016,COMMUNITIES,LEATHERMARKET JMB HOUSING,300.00,FAIR CHS TMO,M&M ALLOWANCE CO-OPS,5902215885
06.10.2016,CUSTOMER EXPERIENCE HGF,ACCESS INDEPENDENT LTD,"1,013.25",BLUE BADGES,PROFESSIONAL FEES,5902215245
06.10.2016,CUSTOMER EXPERIENCE HGF,DR J R SALISBURY,507.20,CORONER'S,PROFESSIONAL FEES,5902216108
06.10.2016,CUSTOMER EXPERIENCE HGF,DR J R SALISBURY,341.80,CORONER'S,PROFESSIONAL FEES,5902216111
06.10.2016,CUSTOMER EXPERIENCE HGF,IC CONSULTANTS LTD,312.00,CORONER'S,PROFESSIONAL FEES,5902216180
06.10.2016,CUSTOMER EXPERIENCE HGF,IC CONSULTANTS LTD,364.00,CORONER'S,PROFESSIONAL FEES,5902216185
06.10.2016,CUSTOMER EXPERIENCE HGF,IC CONSULTANTS LTD,424.00,CORONER'S,PROFESSIONAL FEES,5902216187
06.10.2016,CUSTOMER EXPERIENCE HGF,IC CONSULTANTS LTD,460.00,CORONER'S,PROFESSIONAL FEES,5902216189
06.10.2016,CUSTOMER EXPERIENCE HGF,IC CONSULTANTS LTD,368.00,CORONER'S,PROFESSIONAL FEES,5902216190
06.10.2016,CUSTOMER EXPERIENCE HGF,ANNETTE CAFFERKEY,"1,550.00",HOMELESS & HOUSING OPTIONS MGT,LEGAL FEES & COURT COSTS,2102572673
06.10.2016,CUSTOMER EXPERIENCE HGF,CATHERINE ROWLANDS,680.00,HOMELESS & HOUSING OPTIONS MGT,LEGAL FEES & COURT COSTS,2102572684
06.10.2016,CUSTOMER EXPERIENCE HGF,CHRISTOPHER BAKER,"1,750.00",HOMELESS & HOUSING OPTIONS MGT,LEGAL FEES & COURT COSTS,2102572688
06.10.2016,CUSTOMER EXPERIENCE HGF,CHRISTOPHER BAKER,500.00,HOMELESS & HOUSING OPTIONS MGT,LEGAL FEES & COURT COSTS,2102572689
06.10.2016,CUSTOMER EXPERIENCE HGF,DAVID LINTOTT,"3,760.00",HOMELESS & HOUSING OPTIONS MGT,LEGAL FEES & COURT COSTS,2102572698
06.10.2016,CUSTOMER EXPERIENCE HGF,DONALD BROATCH,600.00,HOMELESS & HOUSING OPTIONS MGT,LEGAL FEES & COURT COSTS,2102572699
06.10.2016,CUSTOMER EXPERIENCE HGF,DONALD BROATCH,650.00,HOMELESS & HOUSING OPTIONS MGT,LEGAL FEES & COURT COSTS,2102572701
06.10.2016,CUSTOMER EXPERIENCE HGF,JONATHAN MANNING,"1,750.00",HOMELESS & HOUSING OPTIONS MGT,LEGAL FEES & COURT COSTS,2102572715
06.10.2016,CUSTOMER EXPERIENCE HGF,JONATHAN MANNING,"1,040.00",HOMELESS & HOUSING OPTIONS MGT,LEGAL FEES & COURT COSTS,2102572716
06.10.2016,CUSTOMER EXPERIENCE HGF,TOBY VANHEGAN,350.00,HOMELESS & HOUSING OPTIONS MGT,LEGAL FEES & COURT COSTS,2102572764
06.10.2016,CUSTOMER EXPERIENCE HGF,OFFICE DEPOT UK LTD,271.80,HOMELESS & HOUSING OPTIONS MGT,STATIONERY,5902216133
06.10.2016,CUSTOMER EXPERIENCE HGF,CROWN HOUSING LTD,"5,355.00",NIGHTLY TA (NSC),EXTERNAL AGENCIES AND BODIES,5902216181
06.10.2016,CUSTOMER EXPERIENCE HGF,UXBRIDGE ESTATE AGENTS LTD,"3,304.50",NIGHTLY TA (NSC),EXTERNAL AGENCIES AND BODIES,5902216275
06.10.2016,CUSTOMER EXPERIENCE HGF,EDF ENERGY PLC,751.24,WALWORTH MSSP,ELECTRICITY,5902216256
06.10.2016,CUSTOMER EXPERIENCE HGF,EDF ENERGY PLC,759.31,WALWORTH MSSP,ELECTRICITY,5902216261
06.10.2016,ENVIRONMENT AND LEISURE,INTO SERVICES LONDON LTD,"2,267.00",CAPITAL PS (LEISURE),CONST'N MAIN CONTRACT - NON CERTIFICATED,5902214808
06.10.2016,ENVIRONMENT AND LEISURE,INTO SERVICES LONDON LTD,710.00,CAPITAL PS (LEISURE),CONSTRUCTION MAIN CONTRACT -CERTIFICATED,5902214815
06.10.2016,ENVIRONMENT AND LEISURE,INTO SERVICES LONDON LTD,450.00,CAPITAL PS (LEISURE),CONSTRUCTION FEES - INTERNAL,5902215014
06.10.2016,ENVIRONMENT AND LEISURE,INTO SERVICES LONDON LTD,"1,070.00",CAPITAL PS (LEISURE),CONSTRUCTION FEES - INTERNAL,5902215014
06.10.2016,ENVIRONMENT DIRECTORATE,DAWSON RENTALS SWEEPERS,"2,389.89",COMMERCIAL VEH CTRL A/C,HIRED VEHICLES,5902216095
06.10.2016,ENVIRONMENT DIRECTORATE,ENTERPRISE FLEX E RENT,"1,139.75",COMMERCIAL VEH CTRL A/C,HIRED VEHICLES,5902216285
06.10.2016,ENVIRONMENT DIRECTORATE,ENTERPRISE FLEX E RENT,"1,353.38",COMMERCIAL VEH CTRL A/C,HIRED VEHICLES,5902216287
06.10.2016,ENVIRONMENT DIRECTORATE,F R JONES & SON,335.50,GROUNDS MAINTENANCE - GENERAL,EQUIPMENT PURCHASE & REPAIR,5902216173
06.10.2016,ENVIRONMENT DIRECTORATE,F R JONES & SON,535.60,GROUNDS MAINTENANCE - GENERAL,EQUIPMENT PURCHASE & REPAIR,5902216176
06.10.2016,ENVIRONMENT DIRECTORATE,DRAIN SCAN,260.00,GULLY MAINT NON PINC RD,OTHER CONTRACTORS,5902216115
06.10.2016,ENVIRONMENT DIRECTORATE,DRAIN SCAN,260.00,GULLY MAINT NON PINC RD,OTHER CONTRACTORS,5902216116
06.10.2016,ENVIRONMENT DIRECTORATE,DRAIN SCAN,260.00,GULLY MAINT NON PINC RD,OTHER CONTRACTORS,5902216299
06.10.2016,ENVIRONMENT DIRECTORATE,DRAIN SCAN,260.00,GULLY MAINT NON PINC RD,OTHER CONTRACTORS,5902216305
06.10.2016,ENVIRONMENT DIRECTORATE,EXPERIAN LTD,262.50,RESIDENTIAL SERVICES,PROFESSIONAL FEES,5902216195
06.10.2016,ENVIRONMENT DIRECTORATE,EXPERIAN LTD,262.50,RESIDENTIAL SERVICES,PROFESSIONAL FEES,5902216195
06.10.2016,ENVIRONMENT DIRECTORATE,EXPERIAN LTD,262.50,RESIDENTIAL SERVICES,PROFESSIONAL FEES,5902216195
06.10.2016,ENVIRONMENT DIRECTORATE,EXPERIAN LTD,262.50,RESIDENTIAL SERVICES,PROFESSIONAL FEES,5902216195
06.10.2016,ENVIRONMENT DIRECTORATE,KENT COUNTY COUNCIL - LASER,682.74,SANDGATE STREET,ELECTRICITY,5902216303
06.10.2016,ENVIRONMENT DIRECTORATE,ELECTRICAL SAFETY ASSESSMENTS LTD,602.00,TRADING STANDARDS,CONSULTANTS SERVICES,5902216309
06.10.2016,F & C S EXCLUDING CORPORATE BUDGETS,DSI BILLING SERVICES LTD,"3,286.84",ADMINISTRATIVE SUPPORT,POSTAGES,5902216182
06.10.2016,F & C S EXCLUDING CORPORATE BUDGETS,RSP ENVELOPES,379.30,ADMINISTRATIVE SUPPORT,POSTAGES,5902216216
06.10.2016,F & C S EXCLUDING CORPORATE BUDGETS,MATTHEW HUTCHINGS,595.00,FINANCE DIRECTOR,LEGAL FEES & COURT COSTS,2102572726
06.10.2016,F & C S EXCLUDING CORPORATE BUDGETS,JC APPLICATIONS DEVELOPMENT LTD,"4,748.00",INSURANCE ADMIN,SOFTWARE,5902216269
06.10.2016,F & C S EXCLUDING CORPORATE BUDGETS,KENNEDY CATER LTD,825.00,LEGAL SVCES MANAGEMENT,PROFESSIONAL FEES,5902216322
06.10.2016,F & C S EXCLUDING CORPORATE BUDGETS,THAMES WATER UTILITIES LTD,-592.32,PAYMENTS CONTROL,OFFICE EXPENSES,2102572535
06.10.2016,F & C S EXCLUDING CORPORATE BUDGETS,THAMES WATER UTILITIES LTD,-936.65,PAYMENTS CONTROL,OFFICE EXPENSES,2102572536
06.10.2016,HOUSING,H E OLBY & CO LTD,280.80,,BSU STORES AUTO POSTINGS,5902216337
06.10.2016,HOUSING,LOCKESLEYS LTD,"69,975.39",LOCKESLEYS,MANUAL CREDITORS,5902216099
06.10.2016,HOUSING,THURROCK BOROUGH COUNCIL,379.92,STORES,PAYROLL CREDITORS - COURT ORDERS,2102567386
06.10.2016,HOUSING,TOUCAN TOOL CO LTD,345.00,STORES,CREDITORS -GR/IR CLEARING ACCOUNT,5902216134
06.10.2016,HOUSING,TOUCAN TOOL CO LTD,384.00,STORES,CREDITORS -GR/IR CLEARING ACCOUNT,5902216136
06.10.2016,HOUSING,H E OLBY & CO LTD,"1,140.00",STORES,CREDITORS -GR/IR CLEARING ACCOUNT,5902216155
06.10.2016,HOUSING,EDWARDES BROS (DULWICH) LTD,672.50,STORES,CREDITORS -GR/IR CLEARING ACCOUNT,5902216198
06.10.2016,HOUSING,CROSSFOLD ELECTRICAL WHOLESALERS,333.00,STORES,CREDITORS -GR/IR CLEARING ACCOUNT,5902216205
06.10.2016,HOUSING,CROSSFOLD ELECTRICAL WHOLESALERS,350.00,STORES,CREDITORS -GR/IR CLEARING ACCOUNT,5902216206
06.10.2016,HOUSING,CROSSFOLD ELECTRICAL WHOLESALERS,507.50,STORES,CREDITORS -GR/IR CLEARING ACCOUNT,5902216206
06.10.2016,HOUSING,GRAFTON MERCHANTING GB LTD,291.20,STORES,CREDITORS -GR/IR CLEARING ACCOUNT,5902216293
06.10.2016,HOUSING,MARTIN VITERA LTD,303.20,STORES,CREDITORS -GR/IR CLEARING ACCOUNT,5902216325
06.10.2016,HOUSING,MARTIN VITERA LTD,918.00,STORES,CREDITORS -GR/IR CLEARING ACCOUNT,5902216327
06.10.2016,HOUSING,H E OLBY & CO LTD,"1,134.00",STORES,CREDITORS -GR/IR CLEARING ACCOUNT,5902216337
06.10.2016,HOUSING HRA,KEEPMOAT REGENERATION (APOLLO) LTD,"85,954.59",CAPITAL PS (HRA),CONSTRUCTION MAIN CONTRACT -CERTIFICATED,2102572527
06.10.2016,HOUSING HRA,A & E ELKINS LTD,"41,655.72",CAPITAL PS (HRA),CONSTRUCTION MAIN CONTRACT -CERTIFICATED,2102572532
06.10.2016,HOUSING HRA,KEEPMOAT REGENERATION (APOLLO) LTD,"98,454.78",CAPITAL PS (HRA),CONSTRUCTION MAIN CONTRACT -CERTIFICATED,2102572533
06.10.2016,HOUSING HRA,M E HORSTEAD,"4,760.00",CAPITAL PS (HRA),CONST'N MAIN CONTRACT - NON CERTIFICATED,2102572659
06.10.2016,HOUSING HRA,M E HORSTEAD,"5,010.00",CAPITAL PS (HRA),CONST'N MAIN CONTRACT - NON CERTIFICATED,2102572660
06.10.2016,HOUSING HRA,L H BRIDGE LTD,"4,180.00",CAPITAL PS (HRA),CONST'N MAIN CONTRACT - NON CERTIFICATED,2102572661
06.10.2016,HOUSING HRA,PARS LTD,"1,068.00",CAPITAL PS (HRA),CONST'N MAIN CONTRACT - NON CERTIFICATED,2102572662
06.10.2016,HOUSING HRA,L H BRIDGE LTD,"8,710.00",CAPITAL PS (HRA),CONST'N MAIN CONTRACT - NON CERTIFICATED,2102572663
06.10.2016,HOUSING HRA,L H BRIDGE LTD,"6,680.00",CAPITAL PS (HRA),CONST'N MAIN CONTRACT - NON CERTIFICATED,2102572664
06.10.2016,HOUSING HRA,M E HORSTEAD,"5,660.00",CAPITAL PS (HRA),CONST'N MAIN CONTRACT - NON CERTIFICATED,2102572665
06.10.2016,HOUSING HRA,PARS LTD,"3,826.00",CAPITAL PS (HRA),CONST'N MAIN CONTRACT - NON CERTIFICATED,2102572666
06.10.2016,HOUSING HRA,ACCESSIBLE SOLUTIONS LTD,"10,000.00",CAPITAL PS (HRA),CONST'N MAIN CONTRACT - NON CERTIFICATED,2102572667
06.10.2016,HOUSING HRA,L H BRIDGE LTD,"6,360.00",CAPITAL PS (HRA),CONST'N MAIN CONTRACT - NON CERTIFICATED,2102572668
06.10.2016,HOUSING HRA,L H BRIDGE LTD,"6,200.00",CAPITAL PS (HRA),CONST'N MAIN CONTRACT - NON CERTIFICATED,2102572669
06.10.2016,HOUSING HRA,M E HORSTEAD,"6,250.00",CAPITAL PS (HRA),CONST'N MAIN CONTRACT - NON CERTIFICATED,2102572823
06.10.2016,HOUSING HRA,L H BRIDGE LTD,"5,845.00",CAPITAL PS (HRA),CONST'N MAIN CONTRACT - NON CERTIFICATED,2102572824
06.10.2016,HOUSING HRA,L H BRIDGE LTD,"6,525.00",CAPITAL PS (HRA),CONST'N MAIN CONTRACT - NON CERTIFICATED,2102572825
06.10.2016,HOUSING HRA,L H BRIDGE LTD,"6,375.00",CAPITAL PS (HRA),CONST'N MAIN CONTRACT - NON CERTIFICATED,2102572826
06.10.2016,HOUSING HRA,ACCESSIBLE SOLUTIONS LTD,"6,275.00",CAPITAL PS (HRA),CONST'N MAIN CONTRACT - NON CERTIFICATED,2102572827
06.10.2016,HOUSING HRA,P K PROPERTIES,"6,895.00",CAPITAL PS (HRA),CONST'N MAIN CONTRACT - NON CERTIFICATED,2102572829
06.10.2016,HOUSING HRA,FREEWAY LIFTS SERVICES LTD,"4,115.00",CAPITAL PS (HRA),CONST'N MAIN CONTRACT - NON CERTIFICATED,2102572830
06.10.2016,HOUSING HRA,PJS BUILDING SERVICES,"6,879.61",CAPITAL PS (HRA),CONST'N MAIN CONTRACT - NON CERTIFICATED,2102572831
06.10.2016,HOUSING HRA,P D CONSTRUCTION LTD,"10,765.00",CAPITAL PS (HRA),CONST'N MAIN CONTRACT - NON CERTIFICATED,2102572833
06.10.2016,HOUSING HRA,CALFORD SEADEN LLP,654.14,CAPITAL PS (HRA),CONSTRUCTION FEES  - EXTERNAL,5902216242
06.10.2016,HOUSING HRA,CALFORD SEADEN LLP,529.20,CAPITAL PS (HRA),CONSTRUCTION FEES  - EXTERNAL,5902216249
06.10.2016,HOUSING HRA,MLM CONSULTING ENGINEERS LTD,850.00,CAPITAL PS (REGEN),CONSTRUCTION FEES,5902216342
06.10.2016,HOUSING HRA,MLM CONSULTING ENGINEERS LTD,850.00,CAPITAL PS (REGEN),CONSTRUCTION FEES,5902216342
06.10.2016,HOUSING HRA,MLM CONSULTING ENGINEERS LTD,"2,350.00",CAPITAL PS (REGEN),CONSTRUCTION FEES,5902216342
06.10.2016,HOUSING HRA,MLM CONSULTING ENGINEERS LTD,"2,350.00",CAPITAL PS (REGEN),CONSTRUCTION FEES,5902216342
06.10.2016,LEISURE DIRECTORATE,QUADRON SERVICES LIMITED,336.00,BURGESS AREA TEAM,GROUNDS MAINTENANCE,5902216120
06.10.2016,LEISURE DIRECTORATE,SIEMENS FINANCIAL SERVICES LIMITED,269.88,BURGESS PARK COMMUNITY SPORTS CENTRE,OTHER R&M,5902216105
06.10.2016,LEISURE DIRECTORATE,KENT COUNTY COUNCIL - LASER,"1,296.74",DULWICH AREA TEAM,ELECTRICITY,5902216221
06.10.2016,LEISURE DIRECTORATE,KENT COUNTY COUNCIL - LASER,"1,171.30",DULWICH AREA TEAM,ELECTRICITY,5902216222
06.10.2016,LEISURE DIRECTORATE,KENT COUNTY COUNCIL - LASER,"1,296.50",DULWICH AREA TEAM,ELECTRICITY,5902216227
06.10.2016,LEISURE DIRECTORATE,SIMPLY HIRE LTD,"1,068.00",FACILITIES MAINTENANCE,BUILDING R&M,5902216183
06.10.2016,LEISURE DIRECTORATE,RICHARD HONEY,"1,575.00",PARKS SERVICES DEVELOPMENT,LEGAL FEES & COURT COSTS,2102572744
06.10.2016,LEISURE DIRECTORATE,QUADRON SERVICES LIMITED,385.76,SOUTHWARK AREA TEAM,GROUNDS MAINTENANCE,5902216215
06.10.2016,LEISURE DIRECTORATE,ASKEWS & HOLTS LIBRARY SERVICES LTD,"6,914.59",STOCK SERVICES,BOOKS & PUBLICATIONS,5902216177
06.10.2016,LEISURE DIRECTORATE,INCENTIVE QAS LTD,"1,330.17",TEMPORARY NEWINGTON,PREMISES CLEANING,5902216258
06.10.2016,MODERNISATION,JOHN  MCCAFFERTY,350.00,COMMERCIAL PROPERTIES,LEGAL FEES & COURT COSTS,2102572713
06.10.2016,MODERNISATION,SALLY BLACKMORE,"3,100.00",COMMERCIAL PROPERTIES,LEGAL FEES & COURT COSTS,2102572745
06.10.2016,MODERNISATION HGF,ROYAL MAIL GROUP LTD,"1,481.01",160 TOOLEY ST.,POSTAGES,5902215922
06.10.2016,MODERNISATION HGF,KENT COUNTY COUNCIL - LASER,595.47,47B EAST DULWICH ROAD,GAS,5902216264
06.10.2016,MODERNISATION HGF,KENT COUNTY COUNCIL - LASER,575.89,7 TALFOURD ROAD,ELECTRICITY,5902216138
06.10.2016,MODERNISATION HGF,KENT COUNTY COUNCIL - LASER,902.34,BOURNEMOUTH GROVE,ELECTRICITY,5902216104
06.10.2016,MODERNISATION HGF,KENT COUNTY COUNCIL - LASER,750.09,BOURNEMOUTH GROVE,ELECTRICITY,5902216186
06.10.2016,MODERNISATION HGF,COMENSURA LTD,"3,439.83",MONTHLY ADMIN FEE,AGENCY STAFF,5902216217
06.10.2016,MODERNISATION HGF,DISABLED ENABLED LTD,"2,150.00",REPAIR AND MAINTENANCE SERVICES,BUILDING R&M,5902216246
06.10.2016,MODERNISATION HGF,BOKELL ASSOCIATES LTD,"3,000.00",SOCIAL WORK TRANSITION GRANT,AGENCY STAFF,5902216171
06.10.2016,MODERNISATION HGF,COMENSURA LTD,"490,889.84",WEEKLY PAYMENTS,AGENCY STAFF,5902216217
06.10.2016,PLANNING AND TRANSPORT,MATTHEW HUTCHINGS,450.00,S106 & CIL ADMINISTRATION,LEGAL FEES & COURT COSTS,2102572727
06.10.2016,REGENERATION,BNP PARIBAS REAL ESTATE ADVISORY & PROPERTY MANAGEMENT,"5,167.50",2 DOCKLEY RD INDUSTRIAL ESTATE,PROFESSIONAL FEES,5902216297
06.10.2016,REGENERATION,CHANDLERS LIMITED CERTIFIED BAILIFF,339.99,LBS SOJOURNER TRUTH COMMUNITY CENTRE,PROFESSIONAL FEES,5902216132
06.10.2016,REGENERATION,UKDN WATERFLOW (LG) LTD,"1,640.00",SOUTHWARK REGEN IN PARTNERSHIP PROGRAMME,PROFESSIONAL FEES,5902215897
06.10.2016,RESIDENT SERVICES,EXTREME ENVIRONMENTAL SERVICES LTD,360.00,5 ESTATES,PREMISES CLEANING,5902216314
06.10.2016,RESIDENT SERVICES,JON HOLBROOK,"1,105.00",OPERATIONS/OFFICES ACCOMMODATION,LEGAL FEES & COURT COSTS,2102572714
06.10.2016,RESIDENT SERVICES,LAURA ROBINSON,"2,445.00",OPERATIONS/OFFICES ACCOMMODATION,LEGAL FEES & COURT COSTS,2102572723
06.10.2016,RESIDENT SERVICES,LAURA ROBINSON,910.00,OPERATIONS/OFFICES ACCOMMODATION,LEGAL FEES & COURT COSTS,2102572724
06.10.2016,RESIDENT SERVICES,MARTINA MURPHY,"2,425.00",OPERATIONS/OFFICES ACCOMMODATION,LEGAL FEES & COURT COSTS,2102572725
06.10.2016,RESIDENT SERVICES,RICHARD GRANBY,450.00,OPERATIONS/OFFICES ACCOMMODATION,LEGAL FEES & COURT COSTS,2102572742
06.10.2016,RESIDENT SERVICES,EDF ENERGY PLC,811.91,TA HOSTELS,ELECTRICITY,5902216118
06.10.2016,RESIDENT SERVICES,EDF ENERGY PLC,-811.91,TA HOSTELS,ELECTRICITY,5902216121
06.10.2016,RESIDENT SERVICES,EDF ENERGY PLC,811.91,TA HOSTELS,ELECTRICITY,5902216239
06.10.2016,RESIDENT SERVICES,EDF ENERGY PLC,-811.91,TA HOSTELS,ELECTRICITY,5902216339
06.10.2016,SOUTHWARK BUILDING SERVICES,1st ACTIVE PROPERTY SERVICES LTD,"23,939.30",BUSINESS SUPPORT,OTHER CONTRACTORS,2102572528
06.10.2016,SOUTHWARK BUILDING SERVICES,EDF ENERGY PLC,717.80,DEPOT COSTS,ELECTRICITY,5902216197
06.10.2016,SOUTHWARK BUILDING SERVICES,MH TECHNICAL SERVICES,269.99,EMERGENCY - MISCELLEANEOUS,MATERIALS,5902216109
06.10.2016,SOUTHWARK BUILDING SERVICES,PITNEY BOWES PURCHASE POWER,"1,040.00",R & M OVERHEADS,POSTAGES,5902216194
06.10.2016,SOUTHWARK BUILDING SERVICES,FAYERS PLUMBING & BUILDING SUPPLIES,381.37,ROTHERHITHE DAY TO DAY - PLUMBER,MATERIALS,5902216313
06.10.2016,SOUTHWARK BUILDING SERVICES,ACCLAIM HANDLING PLC,346.66,STORES/LOGISTICS,OP LEASE/HIRE CHARGES:PLANT/EQUIP/FURNIT,5902216320
06.10.2016,SOUTHWARK BUILDING SERVICES,LOXAL SECURITY LTD,"1,478.40",VOIDS OVERHEADS,OTHER CONTRACTORS,5902216330
06.10.2016,SOUTHWARK BUILDING SERVICES,LOXAL SECURITY LTD,"1,478.40",VOIDS OVERHEADS,OTHER CONTRACTORS,5902216331
06.10.2016,SOUTHWARK BUILDING SERVICES,LOXAL SECURITY LTD,"1,848.00",VOIDS OVERHEADS,OTHER CONTRACTORS,5902216334
06.10.2016,STRATEGIC FINANCING BUDGETS,GALLAGHER BASSETT INTERNATIONAL LTD,"200,000.00",LIABILITY RELATED INSURANCE,COMPENSATION,5902216272
06.10.2016,STRATEGIC FINANCING BUDGETS,JOHNSON AUSTIN PARTNERSHIP LLP,"1,270.00",PROPERTY RELATED INSURANCE,PROFESSIONAL FEES,5902216277
07.10.2016,ADULT SOCIAL CARE,REDACTED PERSONAL DATA,500.00,APPOINTEESHIPS,OTHER PAYMENTS FOR CLIENTS,5902216424
07.10.2016,ADULT SOCIAL CARE,HMCTS,400.00,DEPUTYSHIPS,OTHER PAYMENTS FOR CLIENTS,5902216374
07.10.2016,ADULT SOCIAL CARE,HMCTS,400.00,DEPUTYSHIPS,OTHER PAYMENTS FOR CLIENTS,5902216375
07.10.2016,ADULT SOCIAL CARE,HMCTS,400.00,DEPUTYSHIPS,OTHER PAYMENTS FOR CLIENTS,5902216376
07.10.2016,ADULT SOCIAL CARE,REDACTED PERSONAL DATA,"-1,996.64",LD HOME CARE,RESIDENTIAL CARE,2102181763
07.10.2016,ADULT SOCIAL CARE,HEALTHCARE & TRANSPORT SERVICE,650.00,LD LTS 18-64,CLIENT TRANSPORT,2102572932
07.10.2016,ADULT SOCIAL CARE,HEALTHCARE & TRANSPORT SERVICE,395.00,LD LTS 18-64,CLIENT TRANSPORT,2102572937
07.10.2016,ADULT SOCIAL CARE,HEALTHCARE & TRANSPORT SERVICE,270.00,LD LTS 18-64,CLIENT TRANSPORT,2102572938
07.10.2016,ADULT SOCIAL CARE,HEALTHCARE & TRANSPORT SERVICE,450.00,LD LTS 18-64,CLIENT TRANSPORT,2102572939
07.10.2016,ADULT SOCIAL CARE,HEALTHCARE & TRANSPORT SERVICE,650.00,LD LTS 18-64,CLIENT TRANSPORT,2102572941
07.10.2016,ADULT SOCIAL CARE,HEALTHCARE & TRANSPORT SERVICE,711.00,LD LTS 18-64,CLIENT TRANSPORT,2102572943
07.10.2016,ADULT SOCIAL CARE,REDACTED PERSONAL DATA,"2,839.00",LD LTS 18-64,SUPPORTED LIVING,2102572948
07.10.2016,ADULT SOCIAL CARE,REDACTED PERSONAL DATA,"1,461.84",LD LTS 18-64,PAYMENTS TO CLIENTS (DIRECT PAYMENTS),2102572959
07.10.2016,ADULT SOCIAL CARE,REDACTED PERSONAL DATA,-334.72,LD LTS 18-64,DISCRETIONARY FLEXIBLE FEES & INCOME,2102572964
07.10.2016,ADULT SOCIAL CARE,REDACTED PERSONAL DATA,522.60,LD LTS 18-64,PAYMENTS TO CLIENTS (DIRECT PAYMENTS),2102572968
07.10.2016,ADULT SOCIAL CARE,REDACTED PERSONAL DATA,"1,443.00",LD LTS 18-64,PAYMENTS TO CLIENTS (DIRECT PAYMENTS),2102572974
07.10.2016,ADULT SOCIAL CARE,REDACTED PERSONAL DATA,-650.32,LD LTS 18-64,DISCRETIONARY FLEXIBLE FEES & INCOME,2102572983
07.10.2016,ADULT SOCIAL CARE,REDACTED PERSONAL DATA,"4,870.60",LD LTS 18-64,PAYMENTS TO CLIENTS (DIRECT PAYMENTS),2102572984
07.10.2016,ADULT SOCIAL CARE,REDACTED PERSONAL DATA,"1,338.04",LD LTS 18-64,PAYMENTS TO CLIENTS (DIRECT PAYMENTS),2102572989
07.10.2016,ADULT SOCIAL CARE,PEOPLE PLUS,"1,635.44",LD LTS 18-64,PAYMENTS TO CLIENTS (DIRECT PAYMENTS),2102573010
07.10.2016,ADULT SOCIAL CARE,REDACTED PERSONAL DATA,"3,773.60",LD LTS 18-64,PAYMENTS TO CLIENTS (DIRECT PAYMENTS),2102573016
07.10.2016,ADULT SOCIAL CARE,FRESH IDEAS & SOLUTIONS SERVICES CIC,"2,048.68",LD LTS 18-64,PAYMENTS TO CLIENTS (DIRECT PAYMENTS),2102573021
07.10.2016,ADULT SOCIAL CARE,FRESH IDEAS & SOLUTIONS SERVICES CIC,"-2,035.46",LD LTS 18-64,DISCRETIONARY FLEXIBLE FEES & INCOME,2102573022
07.10.2016,ADULT SOCIAL CARE,REDACTED PERSONAL DATA,"4,348.00",LD LTS 18-64,PAYMENTS TO CLIENTS (DIRECT PAYMENTS),2102573026
07.10.2016,ADULT SOCIAL CARE,PEOPLE PLUS,613.52,LD LTS 18-64,PAYMENTS TO CLIENTS (DIRECT PAYMENTS),2102573035
07.10.2016,ADULT SOCIAL CARE,FRESH IDEAS & SOLUTIONS SERVICES CIC,"1,480.96",LD LTS 18-64,HOMECARE - SPOT,2102573043
07.10.2016,ADULT SOCIAL CARE,FRESH IDEAS & SOLUTIONS SERVICES CIC,"-1,514.96",LD LTS 18-64,DISCRETIONARY FLEXIBLE FEES & INCOME,2102573045
07.10.2016,ADULT SOCIAL CARE,REDACTED PERSONAL DATA,331.08,LD LTS 18-64,PAYMENTS TO CLIENTS (DIRECT PAYMENTS),2102573049
07.10.2016,ADULT SOCIAL CARE,REDACTED PERSONAL DATA,338.16,MEM LTS 65+,HOMECARE - C&V,2102572981
07.10.2016,ADULT SOCIAL CARE,REDACTED PERSONAL DATA,"1,476.16",MEM LTS 65+,PAYMENTS TO CLIENTS (DIRECT PAYMENTS),2102572995
07.10.2016,ADULT SOCIAL CARE,REDACTED PERSONAL DATA,"2,410.76",MEM LTS 65+,PAYMENTS TO CLIENTS (DIRECT PAYMENTS),2102573000
07.10.2016,ADULT SOCIAL CARE,AGE UK  LEWISHAM & SOUTHWARK,720.00,MEM LTS 65+,DAYCARE,2102573024
07.10.2016,ADULT SOCIAL CARE,WESTMINSTER HOMECARE LTD,279.60,MH LTS 18-64,HOMECARE - C&V,2102572966
07.10.2016,ADULT SOCIAL CARE,REDACTED PERSONAL DATA,355.60,MH LTS 18-64,HOMECARE - SPOT,2102573005
07.10.2016,ADULT SOCIAL CARE,REDACTED PERSONAL DATA,314.00,MH LTS 18-64,DISCRETIONARY FLEXIBLE FEES & INCOME,2102573036
07.10.2016,ADULT SOCIAL CARE,PEOPLE PLUS,-903.51,MH LTS 18-64,PAYMENTS TO CLIENTS (DIRECT PAYMENTS),2102573065
07.10.2016,ADULT SOCIAL CARE,PEOPLE PLUS,"1,104.71",MH LTS 18-64,DISCRETIONARY FLEXIBLE FEES & INCOME,2102573066
07.10.2016,ADULT SOCIAL CARE,WESTMINSTER HOMECARE LTD,391.44,MH LTS 65+,HOMECARE - C&V,2102573046
07.10.2016,ADULT SOCIAL CARE,WESTMINSTER HOMECARE LTD,936.68,PHY LTS 18-64,HOMECARE - C&V,2102572945
07.10.2016,ADULT SOCIAL CARE,WESTMINSTER HOMECARE LTD,936.68,PHY LTS 18-64,HOMECARE - C&V,2102572947
07.10.2016,ADULT SOCIAL CARE,ALLIED HEALTHCARE,491.40,PHY LTS 18-64,HOMECARE - SPOT,2102572953
07.10.2016,ADULT SOCIAL CARE,WESTMINSTER HOMECARE LTD,933.88,PHY LTS 18-64,HOMECARE - C&V,2102572955
07.10.2016,ADULT SOCIAL CARE,REDACTED PERSONAL DATA,856.00,PHY LTS 18-64,PAYMENTS TO CLIENTS (DIRECT PAYMENTS),2102572956
07.10.2016,ADULT SOCIAL CARE,WESTMINSTER HOMECARE LTD,"1,006.56",PHY LTS 18-64,HOMECARE - C&V,2102572967
07.10.2016,ADULT SOCIAL CARE,WESTMINSTER HOMECARE LTD,866.76,PHY LTS 18-64,HOMECARE - C&V,2102572992
07.10.2016,ADULT SOCIAL CARE,WESTMINSTER HOMECARE LTD,335.52,PHY LTS 18-64,HOMECARE - SPOT,2102573012
07.10.2016,ADULT SOCIAL CARE,FRESH IDEAS & SOLUTIONS SERVICES CIC,347.52,PHY LTS 18-64,HOMECARE - C&V,2102573013
07.10.2016,ADULT SOCIAL CARE,PEOPLE PLUS,"1,037.20",PHY LTS 18-64,PAYMENTS TO CLIENTS (DIRECT PAYMENTS),2102573014
07.10.2016,ADULT SOCIAL CARE,PENDERELS TRUST LTD,"1,590.40",PHY LTS 18-64,SUPPORTED LIVING,2102573015
07.10.2016,ADULT SOCIAL CARE,WESTMINSTER HOMECARE LTD,"1,412.00",PHY LTS 18-64,HOMECARE - C&V,2102573017
07.10.2016,ADULT SOCIAL CARE,WESTMINSTER HOMECARE LTD,279.60,PHY LTS 18-64,HOMECARE - C&V,2102573018
07.10.2016,ADULT SOCIAL CARE,WESTMINSTER HOMECARE LTD,433.40,PHY LTS 18-64,HOMECARE - C&V,2102573040
07.10.2016,ADULT SOCIAL CARE,WESTMINSTER HOMECARE LTD,251.64,PHY LTS 18-64,HOMECARE - C&V,2102573047
07.10.2016,ADULT SOCIAL CARE,PEOPLE PLUS,585.20,PHY LTS 18-64,PAYMENTS TO CLIENTS (DIRECT PAYMENTS),2102573048
07.10.2016,ADULT SOCIAL CARE,WESTMINSTER HOMECARE LTD,"1,174.32",PHY LTS 18-64,HOMECARE - C&V,2102573051
07.10.2016,ADULT SOCIAL CARE,PEOPLE PLUS,-277.24,PHY LTS 18-64,DISCRETIONARY FLEXIBLE FEES & INCOME,2102573054
07.10.2016,ADULT SOCIAL CARE,PEOPLE PLUS,"1,998.60",PHY LTS 18-64,PAYMENTS TO CLIENTS (DIRECT PAYMENTS),2102573055
07.10.2016,ADULT SOCIAL CARE,WESTMINSTER HOMECARE LTD,"1,342.08",PHY LTS 18-64,HOMECARE - C&V,2102573062
07.10.2016,ADULT SOCIAL CARE,WESTMINSTER HOMECARE LTD,"1,999.16",PHY LTS 18-64,HOMECARE - C&V,2102573063
07.10.2016,ADULT SOCIAL CARE,PEOPLE PLUS,"3,934.60",PHY LTS 18-64,PAYMENTS TO CLIENTS (DIRECT PAYMENTS),2102573064
07.10.2016,ADULT SOCIAL CARE,WESTMINSTER HOMECARE LTD,643.08,PHY LTS 65+,HOMECARE - C&V,2102572946
07.10.2016,ADULT SOCIAL CARE,FRESH IDEAS & SOLUTIONS SERVICES CIC,585.20,PHY LTS 65+,HOMECARE - C&V,2102572950
07.10.2016,ADULT SOCIAL CARE,WESTMINSTER HOMECARE LTD,321.56,PHY LTS 65+,HOMECARE - C&V,2102572969
07.10.2016,ADULT SOCIAL CARE,PEOPLE PLUS,775.96,PHY LTS 65+,PAYMENTS TO CLIENTS (DIRECT PAYMENTS),2102572972
07.10.2016,ADULT SOCIAL CARE,REDACTED PERSONAL DATA,764.00,PHY LTS 65+,PAYMENTS TO CLIENTS (DIRECT PAYMENTS),2102572978
07.10.2016,ADULT SOCIAL CARE,REDACTED PERSONAL DATA,-276.40,PHY LTS 65+,DISCRETIONARY FLEXIBLE FEES & INCOME,2102572979
07.10.2016,ADULT SOCIAL CARE,WESTMINSTER HOMECARE LTD,"4,397.60",PHY LTS 65+,HOMECARE - C&V,2102572982
07.10.2016,ADULT SOCIAL CARE,FRESH IDEAS & SOLUTIONS SERVICES CIC,"1,413.40",PHY LTS 65+,HOMECARE - C&V,2102572988
07.10.2016,ADULT SOCIAL CARE,REDACTED PERSONAL DATA,"-2,274.76",PHY LTS 65+,DISCRETIONARY FLEXIBLE FEES & INCOME,2102572991
07.10.2016,ADULT SOCIAL CARE,SWK AFRICAN FAMILY SUPPORT SVCS,292.52,PHY LTS 65+,HOMECARE - C&V,2102572997
07.10.2016,ADULT SOCIAL CARE,REDACTED PERSONAL DATA,"2,274.76",PHY LTS 65+,HOMECARE - C&V,2102572998
07.10.2016,ADULT SOCIAL CARE,MEDACS HOMECARE,-254.68,PHY LTS 65+,DISCRETIONARY FLEXIBLE FEES & INCOME,2102573006
07.10.2016,ADULT SOCIAL CARE,MEDACS HOMECARE,327.60,PHY LTS 65+,HOMECARE - SPOT,2102573007
07.10.2016,ADULT SOCIAL CARE,REDACTED PERSONAL DATA,"-1,068.04",PHY LTS 65+,DISCRETIONARY FLEXIBLE FEES & INCOME,2102573008
07.10.2016,ADULT SOCIAL CARE,WESTMINSTER HOMECARE LTD,377.48,PHY LTS 65+,HOMECARE - C&V,2102573019
07.10.2016,ADULT SOCIAL CARE,WESTMINSTER HOMECARE LTD,"1,286.16",PHY LTS 65+,HOMECARE - C&V,2102573020
07.10.2016,ADULT SOCIAL CARE,WESTMINSTER HOMECARE LTD,"1,202.28",PHY LTS 65+,HOMECARE - C&V,2102573025
07.10.2016,ADULT SOCIAL CARE,REDACTED PERSONAL DATA,-282.08,PHY LTS 65+,DISCRETIONARY FLEXIBLE FEES & INCOME,2102573027
07.10.2016,ADULT SOCIAL CARE,WESTMINSTER HOMECARE LTD,559.20,PHY LTS 65+,HOMECARE - C&V,2102573028
07.10.2016,ADULT SOCIAL CARE,REDACTED PERSONAL DATA,"1,274.00",PHY LTS 65+,PAYMENTS TO CLIENTS (DIRECT PAYMENTS),2102573029
07.10.2016,ADULT SOCIAL CARE,REDACTED PERSONAL DATA,"1,106.80",PHY LTS 65+,PAYMENTS TO CLIENTS (DIRECT PAYMENTS),2102573032
07.10.2016,ADULT SOCIAL CARE,WESTMINSTER HOMECARE LTD,754.92,PHY LTS 65+,HOMECARE - C&V,2102573037
07.10.2016,ADULT SOCIAL CARE,WESTMINSTER HOMECARE LTD,503.28,PHY LTS 65+,HOMECARE - C&V,2102573038
07.10.2016,ADULT SOCIAL CARE,CARE DIRECT UK LTD,"1,699.76",PHY LTS 65+,HOMECARE - SPOT,2102573039
07.10.2016,ADULT SOCIAL CARE,WESTMINSTER HOMECARE LTD,"2,208.84",PHY LTS 65+,HOMECARE - C&V,2102573041
07.10.2016,ADULT SOCIAL CARE,WESTMINSTER HOMECARE LTD,671.04,PHY LTS 65+,HOMECARE - C&V,2102573042
07.10.2016,ADULT SOCIAL CARE,REDACTED PERSONAL DATA,927.64,PHY LTS 65+,DISCRETIONARY FLEXIBLE FEES & INCOME,2102573050
07.10.2016,ADULT SOCIAL CARE,CAPITAL HOMECARE (UK) LTD,339.32,PHY LTS 65+,HOMECARE - C&V,2102573053
07.10.2016,ADULT SOCIAL CARE,WESTMINSTER HOMECARE LTD,"2,013.12",SOCIAL ISOLATION,HOMECARE - C&V,2102572944
07.10.2016,ASSET MANAGEMENT,M C TECHNICIANS LTD,450.00,ADAPTATIONS,BUILDING R&M,5902216414
07.10.2016,ASSET MANAGEMENT,M C TECHNICIANS LTD,480.00,ADAPTATIONS,BUILDING R&M,5902216415
07.10.2016,ASSET MANAGEMENT,STANDAGE & CO LTD,690.00,ADAPTATIONS,BUILDING R&M,5902216418
07.10.2016,ASSET MANAGEMENT,MAYBO LIMITED,790.00,COMMERCIAL (QS),TRAINING,5902215246
07.10.2016,ASSET MANAGEMENT,ANTHONY GOLD SOLICITORS,"6,422.00",DISREPAIR,BUILDING R&M,5902216477
07.10.2016,CENTRAL FUNCTIONS,INTERSERVE (FACILITIES MANAGEMENT),"6,365.25",MSHO,BUILDING R&M,2102572838
07.10.2016,CHILDREN AND ADULT,MORGAN SINDALL PLC,"52,287.03",CAPITAL PS (EDUCATION),CONST'N MAIN CONTRACT - NON CERTIFICATED,2102572847
07.10.2016,CHILDREN AND ADULT,FEILDEN CLEGG BRADLEY STUDIOS LLP,"80,288.36",CAPITAL PS (EDUCATION),CONSTRUCTION FEES - ARCHITECT,5902216353
07.10.2016,CHILDREN'S SERVICES,REDACTED PERSONAL DATA,490.00,DISABILITY & HIV,PAYMENTS TO CARERS,2102573069
07.10.2016,CHILDREN'S SERVICES,REDACTED PERSONAL DATA,380.00,DISABILITY & HIV,PAYMENTS TO CARERS,2102573070
07.10.2016,CHILDREN'S SERVICES,REDACTED PERSONAL DATA,286.00,DISABILITY & HIV,PAYMENTS TO CARERS,2102573071
07.10.2016,CHILDREN'S SERVICES,REDACTED PERSONAL DATA,400.00,DISABILITY & HIV,PAYMENTS TO CARERS,2102573077
07.10.2016,CHILDREN'S SERVICES,REDACTED PERSONAL DATA,400.00,DISABILITY & HIV,PAYMENTS TO CARERS,2102573081
07.10.2016,CHILDREN'S SERVICES,REDACTED PERSONAL DATA,360.00,DISABILITY & HIV,PAYMENTS TO CARERS,2102573085
07.10.2016,CHILDREN'S SERVICES,TAVISTOCK & PORTMAN NHS FT,"64,300.00",FDAC,EXTERNAL AGENCIES AND BODIES,5902216373
07.10.2016,CHILDREN'S SERVICES,HILLCREST AUTISM SERVICES LTD,"14,553.00",FE & SIXTH FORM COLLEGES,STATEMENTED FEES,5902216383
07.10.2016,CHILDREN'S SERVICES,HILLCREST AUTISM SERVICES LTD,"14,844.00",FE & SIXTH FORM COLLEGES,STATEMENTED FEES,5902216385
07.10.2016,CHILDREN'S SERVICES,INTERSERVE HEALTHCARE,534.50,HOME 2 SCHOOL TRANSPORT,AGENCY STAFF,5902216446
07.10.2016,CHILDREN'S SERVICES,THAMES WATER UTILITIES LTD,"2,378.55",PLAY SERVICE MANAGEMENT & ADMIN,WATER,5902216441
07.10.2016,CHILDREN'S SERVICES,THAMES WATER UTILITIES LTD,"1,348.86",PLAY SERVICE MANAGEMENT & ADMIN,WATER,5902216442
07.10.2016,CHILDREN'S SERVICES,HILLCREST AUTISM SERVICES LTD,"14,844.00",SEN TRANSPORT,STATEMENTED FEES,5902216401
07.10.2016,CHILDREN'S SERVICES,SINEAD JOYCE,"1,440.00",SUMMERHOUSE - EX416 - 5015232,CONSULTANTS SERVICES,5902216423
07.10.2016,COMMUNITIES,KINGSWOOD ESTATE T&RA,"5,000.00",JOINT SECURITY INITIATIVES,GRANTS,5902216396
07.10.2016,COMMUNITIES,SOUTHWARK LAW CENTRE,"92,400.00",LEGAL GRANTS,EXTERNAL AGENCIES AND BODIES,5902216455
07.10.2016,COMMUNITIES,EURO HOTELS (THORNTON HEATH) LTD,"1,610.00",NO RECOURSE TO PUBLIC FUNDS,SECTION 17 PAYMENTS TO AGENCIES/CARERS,5902216351
07.10.2016,COMMUNITIES,EURO HOTELS (THORNTON HEATH) LTD,"2,100.00",NO RECOURSE TO PUBLIC FUNDS,SECTION 17 PAYMENTS TO AGENCIES/CARERS,5902216355
07.10.2016,COMMUNITIES,EURO HOTELS (THORNTON HEATH) LTD,"2,170.00",NO RECOURSE TO PUBLIC FUNDS,SECTION 17 PAYMENTS TO AGENCIES/CARERS,5902216357
07.10.2016,CUSTOMER EXPERIENCE HGF,RS REAL ESTATE LTD,"14,430.00",NIGHTLY TA (NSC),EXTERNAL AGENCIES AND BODIES,5902216348
07.10.2016,CUSTOMER EXPERIENCE HGF,J & M OASIS LTD,"33,165.00",NIGHTLY TA (NSC),EXTERNAL AGENCIES AND BODIES,5902216354
07.10.2016,CUSTOMER EXPERIENCE HGF,PPROPERTYPLACEBOOK LTD,"1,050.00",NIGHTLY TA (NSC),EXTERNAL AGENCIES AND BODIES,5902216358
07.10.2016,CUSTOMER EXPERIENCE HGF,LIVING ACCOMODATION LTD,"28,966.00",NIGHTLY TA (NSC),EXTERNAL AGENCIES AND BODIES,5902216468
07.10.2016,CUSTOMER EXPERIENCE HGF,LIVING ACCOMODATION LTD,360.00,NIGHTLY TA (NSC),EXTERNAL AGENCIES AND BODIES,5902216469
07.10.2016,CUSTOMER EXPERIENCE HGF,LIVING ACCOMODATION LTD,"1,530.00",NIGHTLY TA (NSC),EXTERNAL AGENCIES AND BODIES,5902216471
07.10.2016,CUSTOMER EXPERIENCE HGF,TRADE  IN OPTIONS LTD,"3,450.00",NIGHTLY TA (NSC),EXTERNAL AGENCIES AND BODIES,5902216478
07.10.2016,CUSTOMER EXPERIENCE HGF,POSTURITE (UK) LTD,576.62,SYSTEMS,FURNITURE PURCHASE & REPAIR,5902216379
07.10.2016,CUSTOMER EXPERIENCE HGF,SABIO NETWORK SERVICES LTD,"2,375.16",SYSTEMS,TELEPHONES (LAND LINES),5902216435
07.10.2016,CUSTOMER EXPERIENCE HGF,SABIO NETWORK SERVICES LTD,"6,969.00",SYSTEMS,TELEPHONES (LAND LINES),5902216435
07.10.2016,ELECTORAL SVCES,DX NETWORK SERVICES LTD,"2,562.50",LOCAL LAND CHARGES,POSTAGES,5902216463
07.10.2016,ENVIRONMENT AND LEISURE,BELL PHILLIPS ARCHITECTS LTD,"16,600.00",CAPITAL PS (LEISURE),CONSTRUCTION FEES  - EXTERNAL,5902215341
07.10.2016,ENVIRONMENT AND LEISURE,ARIEN DESIGNS LTD,474.00,CAPITAL PS (LEISURE),CONSTRUCTION SITE COSTS,5902216464
07.10.2016,ENVIRONMENT DIRECTORATE,LCV HIRE SOLUTIONS LTD,272.80,COMMERCIAL VEH CTRL A/C,HIRED VEHICLES,5902216398
07.10.2016,ENVIRONMENT DIRECTORATE,LCV HIRE SOLUTIONS LTD,321.30,COMMERCIAL VEH CTRL A/C,HIRED VEHICLES,5902216400
07.10.2016,ENVIRONMENT DIRECTORATE,LCV HIRE SOLUTIONS LTD,321.30,COMMERCIAL VEH CTRL A/C,HIRED VEHICLES,5902216403
07.10.2016,ENVIRONMENT DIRECTORATE,HUNTER APPAREL SOLUTIONS LTD,"18,226.10",MANAGEMENT TEAM,"""CLOTHING, UNIFORMS & LAUNDRY""",5902216479
07.10.2016,ENVIRONMENT DIRECTORATE,COMMUNITY CYCLEWORKS,"1,930.00",STP MONITORING AND INITIATIVES,PROFESSIONAL FEES,5902216391
07.10.2016,ENVIRONMENT DIRECTORATE,SOUTHWARK NEWSPAPER LTD,276.00,STREET WORKS OVERHEADS,MARKETING & PUBLICITY SERVICES,5902216384
07.10.2016,ENVIRONMENT DIRECTORATE,SOUTHWARK NEWSPAPER LTD,288.00,STREET WORKS OVERHEADS,MARKETING & PUBLICITY SERVICES,5902216392
07.10.2016,ENVIRONMENT DIRECTORATE,SOUTHWARK NEWSPAPER LTD,288.00,STREET WORKS OVERHEADS,MARKETING & PUBLICITY SERVICES,5902216394
07.10.2016,ENVIRONMENT DIRECTORATE,AGENTIS WORKWEAR LTD,253.50,STREETS  (NORTH WEST),"""CLOTHING, UNIFORMS & LAUNDRY""",5902216466
07.10.2016,F & C S EXCLUDING CORPORATE BUDGETS,TELSOLUTIONS LTD,876.68,ADMINISTRATIVE SUPPORT,TELEPHONES (MOBILES),5902216475
07.10.2016,F & C S EXCLUDING CORPORATE BUDGETS,BETTER BANKSIDE,"54,160.78",BETTER BANKSIDE,EXTERNAL AGENCIES AND BODIES,5902216433
07.10.2016,HOUSING,LONDON TOOLS LIMITED,700.00,STORES,CREDITORS -GR/IR CLEARING ACCOUNT,5902216347
07.10.2016,HOUSING HRA,SALTASH ENTERPRISES LTD,"22,519.39",CAPITAL PS (HRA),CONSTRUCTION MAIN CONTRACT -CERTIFICATED,2102572839
07.10.2016,HOUSING HRA,GEOFFREY OSBORNE LIMITED,"146,399.93",CAPITAL PS (HRA),CONSTRUCTION MAIN CONTRACT -CERTIFICATED,2102572844
07.10.2016,HOUSING HRA,MALTBY LAND SURVEYS LTD,"6,350.00",CAPITAL PS (HRA),CONSTRUCTION FEES  - EXTERNAL,5902216390
07.10.2016,HOUSING HRA,CALFORD SEADEN LLP,"18,323.02",CAPITAL PS (HRA),CONSTRUCTION FEES  - EXTERNAL,5902216434
07.10.2016,HOUSING HRA,GEOFFREY OSBORNE LIMITED,"142,445.85",CAPITAL PS (REGEN),CONSTRUCTION MAIN CONTRACT -CERTIFICATED,2102572841
07.10.2016,HOUSING HRA,MLM CONSULTING ENGINEERS LTD,600.00,CAPITAL PS (REGEN),CONSTRUCTION FEES,5902216393
07.10.2016,HOUSING HRA,MLM CONSULTING ENGINEERS LTD,"2,250.00",CAPITAL PS (REGEN),CONSTRUCTION FEES,5902216395
07.10.2016,HOUSING HRA,D F CLARK BIONOMIQUE LTD,625.00,CAPITAL PS (REGEN),CONSTRUCTION FEES,5902216451
07.10.2016,LEISURE DIRECTORATE,KENT COUNTY COUNCIL - LASER,381.53,BURGESS AREA TEAM,ELECTRICITY,5902216461
07.10.2016,LEISURE DIRECTORATE,KENT COUNTY COUNCIL - LASER,"4,692.23",CANADA WATER LIBRARY,ELECTRICITY,5902216360
07.10.2016,LEISURE DIRECTORATE,CONSTANTINE LIMITED,"2,360.79",HERITAGE,REMOVAL EXPENSES,5902216457
07.10.2016,LEISURE DIRECTORATE,CONSTANTINE LIMITED,369.50,HERITAGE,REMOVAL EXPENSES,5902216458
07.10.2016,LEISURE DIRECTORATE,CLASSIC NEWS,461.88,JOHN HARVARD LIBRARY,BOOKS & PUBLICATIONS,5902216473
07.10.2016,LEISURE DIRECTORATE,CLASSIC NEWS,412.23,JOHN HARVARD LIBRARY,BOOKS & PUBLICATIONS,5902216476
07.10.2016,LEISURE DIRECTORATE,ISUBSCRIBE LIMITED,996.35,LIBARIES DEVELOPMENT,SUBSCRIPTIONS,5902215139
07.10.2016,LEISURE DIRECTORATE,CITY SUBURBAN TREE SURGEONS LIMITED,"1,000.00",TREE PLANTING,OTHER CONTRACTORS,5902216404
07.10.2016,MODERNISATION HGF,DFH ERGONOMICS LTD,700.00,CHILDREN'S & ADULTS' TRAINING,TRAINING,5902216453
07.10.2016,MODERNISATION HGF,KIER FACILITIES SERVICES LTD,"33,294.62",PLANNED FM SERVICES BY KIER,BUILDING R&M,5902216362
07.10.2016,MODERNISATION HGF,KIER FACILITIES SERVICES LTD,"-4,400.73",PLANNED FM SERVICES BY KIER,BUILDING R&M,5902216363
07.10.2016,MODERNISATION HGF,KIER FACILITIES SERVICES LTD,"54,679.96",PLANNED FM SERVICES BY KIER,BUILDING R&M,5902216389
07.10.2016,MODERNISATION HGF,KENT COUNTY COUNCIL - LASER,352.63,SUMNER HOUSE,GAS,5902216368
07.10.2016,PLANNING AND TRANSPORT,TRANSPORT FOR LONDON GROUP PLANNING,"2,689,969.64",MAYORAL CIL,LEVIES,5902216459
07.10.2016,PUBLIC HEALTH,NHS SOUTHWARK CCG,"96,250.00",ADULT TREATMENT,EXTERNAL AGENCIES AND BODIES,5902216437
07.10.2016,PUBLIC HEALTH,NHS SOUTHWARK CCG,"61,875.00",NHS HEALTH CHECK,EXTERNAL AGENCIES AND BODIES,5902216437
07.10.2016,PUBLIC HEALTH,NHS SOUTHWARK CCG,"101,220.40",PH SMOKING CESSATION,EXTERNAL AGENCIES AND BODIES,5902216437
07.10.2016,PUBLIC HEALTH,NHS SOUTHWARK CCG,"65,953.88",SEXUAL HEALTH - CONTRACEPTION,EXTERNAL AGENCIES AND BODIES,5902216437
07.10.2016,PUBLIC HEALTH,LEWISHAM AND GREENWICH NHS TRUST,"5,231.89",SEXUAL HEALTH - STI,EXTERNAL AGENCIES AND BODIES,5902205541
07.10.2016,PUBLIC HEALTH,LEWISHAM AND GREENWICH NHS TRUST,"4,600.91",SEXUAL HEALTH - STI,EXTERNAL AGENCIES AND BODIES,5902205543
07.10.2016,PUBLIC HEALTH,LEWISHAM AND GREENWICH NHS TRUST,"-5,231.89",SEXUAL HEALTH - STI,EXTERNAL AGENCIES AND BODIES,5902205554
07.10.2016,PUBLIC HEALTH,LEWISHAM AND GREENWICH NHS TRUST,"-4,600.91",SEXUAL HEALTH - STI,EXTERNAL AGENCIES AND BODIES,5902205554
07.10.2016,PUBLIC HEALTH,LEWISHAM AND GREENWICH NHS TRUST,"-4,322.00",SEXUAL HEALTH - STI,EXTERNAL AGENCIES AND BODIES,5902205554
07.10.2016,PUBLIC HEALTH,LEWISHAM AND GREENWICH NHS TRUST,"-2,390.20",SEXUAL HEALTH - STI,EXTERNAL AGENCIES AND BODIES,5902205554
07.10.2016,PUBLIC HEALTH,LEWISHAM AND GREENWICH NHS TRUST,"-1,738.20",SEXUAL HEALTH - STI,EXTERNAL AGENCIES AND BODIES,5902205560
07.10.2016,PUBLIC HEALTH,LEWISHAM AND GREENWICH NHS TRUST,"-4,887.00",SEXUAL HEALTH - STI,EXTERNAL AGENCIES AND BODIES,5902205566
07.10.2016,PUBLIC HEALTH,LEWISHAM AND GREENWICH NHS TRUST,"-8,875.73",SEXUAL HEALTH - STI,EXTERNAL AGENCIES AND BODIES,5902205586
07.10.2016,PUBLIC HEALTH,LEWISHAM AND GREENWICH NHS TRUST,"-4,205.00",SEXUAL HEALTH - STI,EXTERNAL AGENCIES AND BODIES,5902205586
07.10.2016,PUBLIC HEALTH,LEWISHAM AND GREENWICH NHS TRUST,"-2,350.87",SEXUAL HEALTH - STI,EXTERNAL AGENCIES AND BODIES,5902205586
07.10.2016,PUBLIC HEALTH,LEWISHAM AND GREENWICH NHS TRUST,"-1,113.40",SEXUAL HEALTH - STI,EXTERNAL AGENCIES AND BODIES,5902205586
07.10.2016,PUBLIC HEALTH,LEWISHAM AND GREENWICH NHS TRUST,"4,924.20",SEXUAL HEALTH - STI,EXTERNAL AGENCIES AND BODIES,5902207452
07.10.2016,PUBLIC HEALTH,LEWISHAM AND GREENWICH NHS TRUST,"1,058.00",SEXUAL HEALTH - STI,EXTERNAL AGENCIES AND BODIES,5902210131
07.10.2016,PUBLIC HEALTH,LEWISHAM AND GREENWICH NHS TRUST,"16,545.00",SEXUAL HEALTH - STI,EXTERNAL AGENCIES AND BODIES,5902211315
07.10.2016,PUBLIC HEALTH,LEWISHAM AND GREENWICH NHS TRUST,"1,265.00",SEXUAL HEALTH - STI,EXTERNAL AGENCIES AND BODIES,5902212479
07.10.2016,PUBLIC HEALTH,LEWISHAM AND GREENWICH NHS TRUST,"2,207.60",SEXUAL HEALTH - STI,EXTERNAL AGENCIES AND BODIES,5902212481
07.10.2016,PUBLIC HEALTH,LEWISHAM AND GREENWICH NHS TRUST,"2,259.56",SEXUAL HEALTH - STI,EXTERNAL AGENCIES AND BODIES,5902214768
07.10.2016,PUBLIC HEALTH,LEWISHAM AND GREENWICH NHS TRUST,"-2,100.82",SEXUAL HEALTH - STI,EXTERNAL AGENCIES AND BODIES,5902214769
07.10.2016,PUBLIC HEALTH,LEWISHAM AND GREENWICH NHS TRUST,"3,676.51",SEXUAL HEALTH - STI,EXTERNAL AGENCIES AND BODIES,5902214774
07.10.2016,PUBLIC HEALTH,LEWISHAM AND GREENWICH NHS TRUST,"-4,411.81",SEXUAL HEALTH - STI,EXTERNAL AGENCIES AND BODIES,5902214777
07.10.2016,PUBLIC HEALTH,LEWISHAM AND GREENWICH NHS TRUST,"2,906.38",SEXUAL HEALTH - STI,EXTERNAL AGENCIES AND BODIES,5902214786
07.10.2016,PUBLIC HEALTH,LEWISHAM AND GREENWICH NHS TRUST,"-2,778.59",SEXUAL HEALTH - STI,EXTERNAL AGENCIES AND BODIES,5902214789
07.10.2016,PUBLIC HEALTH,LEWISHAM AND GREENWICH NHS TRUST,"1,275.00",SEXUAL HEALTH - STI,EXTERNAL AGENCIES AND BODIES,5902214796
07.10.2016,PUBLIC HEALTH,LEWISHAM AND GREENWICH NHS TRUST,-408.52,SEXUAL HEALTH - STI,EXTERNAL AGENCIES AND BODIES,5902214801
07.10.2016,PUBLIC HEALTH,LEWISHAM AND GREENWICH NHS TRUST,-580.44,SEXUAL HEALTH - STI,EXTERNAL AGENCIES AND BODIES,5902214803
07.10.2016,PUBLIC HEALTH,LEWISHAM AND GREENWICH NHS TRUST,"1,513.00",SEXUAL HEALTH - STI,EXTERNAL AGENCIES AND BODIES,5902214818
07.10.2016,PUBLIC HEALTH,LEWISHAM AND GREENWICH NHS TRUST,"-1,033.09",SEXUAL HEALTH - STI,EXTERNAL AGENCIES AND BODIES,5902214823
07.10.2016,PUBLIC HEALTH,LEWISHAM AND GREENWICH NHS TRUST,"2,771.00",SEXUAL HEALTH - STI,EXTERNAL AGENCIES AND BODIES,5902214835
07.10.2016,PUBLIC HEALTH,LEWISHAM AND GREENWICH NHS TRUST,"-2,170.10",SEXUAL HEALTH - STI,EXTERNAL AGENCIES AND BODIES,5902214838
07.10.2016,PUBLIC HEALTH,LEWISHAM AND GREENWICH NHS TRUST,"-2,802.46",SEXUAL HEALTH - STI,EXTERNAL AGENCIES AND BODIES,5902214902
07.10.2016,PUBLIC HEALTH,LEWISHAM AND GREENWICH NHS TRUST,"3,255.11",SEXUAL HEALTH - STI,EXTERNAL AGENCIES AND BODIES,5902214912
07.10.2016,PUBLIC HEALTH,LEWISHAM AND GREENWICH NHS TRUST,"-3,679.71",SEXUAL HEALTH - STI,EXTERNAL AGENCIES AND BODIES,5902214919
07.10.2016,PUBLIC HEALTH,LEWISHAM AND GREENWICH NHS TRUST,"3,842.14",SEXUAL HEALTH - STI,EXTERNAL AGENCIES AND BODIES,5902214926
07.10.2016,PUBLIC HEALTH,LEWISHAM AND GREENWICH NHS TRUST,"1,377.83",SEXUAL HEALTH - STI,EXTERNAL AGENCIES AND BODIES,5902214931
07.10.2016,PUBLIC HEALTH,LEWISHAM AND GREENWICH NHS TRUST,"-1,215.40",SEXUAL HEALTH - STI,EXTERNAL AGENCIES AND BODIES,5902214935
07.10.2016,PUBLIC HEALTH,LEWISHAM AND GREENWICH NHS TRUST,"-2,774.40",SEXUAL HEALTH - STI,EXTERNAL AGENCIES AND BODIES,5902214938
07.10.2016,PUBLIC HEALTH,LEWISHAM AND GREENWICH NHS TRUST,"3,354.85",SEXUAL HEALTH - STI,EXTERNAL AGENCIES AND BODIES,5902214942
07.10.2016,PUBLIC HEALTH,LEWISHAM AND GREENWICH NHS TRUST,"-2,688.34",SEXUAL HEALTH - STI,EXTERNAL AGENCIES AND BODIES,5902214943
07.10.2016,PUBLIC HEALTH,LEWISHAM AND GREENWICH NHS TRUST,"3,013.20",SEXUAL HEALTH - STI,EXTERNAL AGENCIES AND BODIES,5902214944
07.10.2016,PUBLIC HEALTH,BARTS HEALTH NHS TRUST,"18,958.66",SEXUAL HEALTH - STI,EXTERNAL AGENCIES AND BODIES,5902216399
07.10.2016,PUBLIC HEALTH,THE ROYAL BOURNEMOUTH & CHRISTCHURCH HOSPITALS NHS TRUST,807.03,SEXUAL HEALTH - STI,EXTERNAL AGENCIES AND BODIES,5902216409
07.10.2016,PUBLIC HEALTH,LEWISHAM AND GREENWICH NHS TRUST,"2,493.90",SEXUAL HEALTH - STI,EXTERNAL AGENCIES AND BODIES,5902216439
07.10.2016,PUBLIC HEALTH,OXFORD UNIVERSITY HOSPITAL NHS TRUST,468.00,SEXUAL HEALTH - STI,EXTERNAL AGENCIES AND BODIES,5902216448
07.10.2016,PUBLIC HEALTH,NHS SOUTHWARK CCG,"74,832.92",TACKLING CHILD OBESITY,EXTERNAL AGENCIES AND BODIES,5902216437
07.10.2016,RESIDENT SERVICES,THAMES WATER UTILITIES LTD,685.78,TA HOSTELS,WATER,5902216430
07.10.2016,RESIDENT SERVICES,EDF ENERGY PLC,"1,611.95",WALWORTH,ELECTRICITY,5902216388
07.10.2016,SOUTHWARK BUILDING SERVICES,CASTLETON TECHNOLOGY PLC,"1,035.29",ICT & COMMUNICATIONS,SOFTWARE,5902216371
07.10.2016,SOUTHWARK SCHOOL FOR FUTURE,HIGHSHORE SCHOOL,"7,995.00",CAPITAL PS (REGEN),CONSTRUCTION,5902216470
08.10.2016,CHILDREN AND ADULT,NUMBER 10 INTERIM LTD,"1,575.00",CAPITAL PS (STRAT SERV),ICT ACQUISITION,5902215328
08.10.2016,CHILDREN'S SERVICES,PULSE HEALTHCARE LTD,299.00,HOME 2 SCHOOL TRANSPORT,AGENCY STAFF,5902216450
08.10.2016,CHILDREN'S SERVICES,UNIVERSITY OF PORTSMOUTH,"9,000.00",SCHOLARSHIP SCHEME,EXTERNAL AGENCIES AND BODIES,5902215967
08.10.2016,COMMUNITIES,HOME OFFICE SHARED SERVICES CENTRE,"4,882.97",NO RECOURSE TO PUBLIC FUNDS,SECTION 17 PAYMENTS TO AGENCIES/CARERS,5902215779
08.10.2016,ENVIRONMENT AND LEISURE,MORGANICO,575.00,CAPITAL PS (LEISURE),CONST'N MAIN CONTRACT - NON CERTIFICATED,5902215260
08.10.2016,ENVIRONMENT AND LEISURE,ARTHUR DEMOWBRAY,900.00,CAPITAL PS (LEISURE),CONSTRUCTION SITE COSTS,5902215768
08.10.2016,ENVIRONMENT DIRECTORATE,THE T.P. PARTNERSHIP,572.00,ESTATE CLEANING-GENERAL,OTHER CONTRACTORS,5902215502
08.10.2016,HOUSING HRA,KEEPMOAT REGENERATION (APOLLO) LTD,"102,151.89",CAPITAL PS (HRA),CONSTRUCTION MAIN CONTRACT -CERTIFICATED,2102572036
08.10.2016,MODERNISATION HGF,KIER FACILITIES SERVICES LTD,"54,679.96",PLANNED FM SERVICES BY KIER,BUILDING R&M,5902216431
09.10.2016,CENTRAL FUNCTIONS,THE INNOVATION GROUP PLC,"1,000.00",ASSET MANAGEMENT SYSTEM,SOFTWARE,5902215479
09.10.2016,CHILDREN'S SERVICES,HOLMDENE HOUSING LTD,"1,850.00",UNACCOMPANIED ASYLUM CHILDREN 16-17,RESIDENTIAL CARE,5902215498
09.10.2016,ENVIRONMENT AND LEISURE,RIDGE & PARTNERS LLP,517.50,CAPITAL PS (LEISURE),CONSTRUCTION FEES  - EXTERNAL,5902216174
09.10.2016,ENVIRONMENT DIRECTORATE,IMPERIAL JANITORIAL SUPPLIES LTD,680.00,ESTATE CLEANING-GENERAL,"""CLOTHING, UNIFORMS & LAUNDRY""",5902216011
09.10.2016,ENVIRONMENT DIRECTORATE,THE INSTITUTE OF ACOUSTICS LTD,420.00,NOISE& AIR QUALITY,TRAINING,5902216035
09.10.2016,F & C S EXCLUDING CORPORATE BUDGETS,ROYAL MAIL GROUP LTD,"1,962.92",ADMINISTRATIVE SUPPORT,POSTAGES,5902216445
09.10.2016,HOUSING,SMITH & BYFORD LTD,"103,430.70",SMITH AND BYFORD,MANUAL CREDITORS,5902216237
09.10.2016,HOUSING,SMITH & BYFORD LTD,"13,394.31",SMITH AND BYFORD,MANUAL CREDITORS,5902216244
09.10.2016,LEISURE DIRECTORATE,T & T EARTH MATTERS LTD,265.00,G M HARMWORTH A TEAM,GROUNDS MAINTENANCE,5902215602
09.10.2016,LEISURE DIRECTORATE,T & T EARTH MATTERS LTD,775.00,G M HARMWORTH A TEAM,GROUNDS MAINTENANCE,5902215602
10.10.2016,ADULT SOCIAL CARE,LONDON CARE PLC,493.80,HOME CARE C&V,HOMECARE - C&V,2102573228
10.10.2016,ADULT SOCIAL CARE,LONDON CARE PLC,"1,975.20",HOME CARE C&V,HOMECARE - C&V,2102573247
10.10.2016,ADULT SOCIAL CARE,LONDON CARE PLC,296.28,HOME CARE C&V,HOMECARE - C&V,2102573250
10.10.2016,ADULT SOCIAL CARE,LONDON CARE PLC,675.00,HOME CARE C&V,HOMECARE - C&V,2102573252
10.10.2016,ADULT SOCIAL CARE,LONDON CARE PLC,255.17,HOME CARE C&V,HOMECARE - C&V,2102573253
10.10.2016,ADULT SOCIAL CARE,LONDON CARE PLC,559.64,HOME CARE C&V,HOMECARE - C&V,2102573260
10.10.2016,ADULT SOCIAL CARE,LONDON CARE PLC,312.78,HOME CARE C&V,HOMECARE - C&V,2102573262
10.10.2016,ADULT SOCIAL CARE,LONDON CARE PLC,345.66,HOME CARE C&V,HOMECARE - C&V,2102573266
10.10.2016,ADULT SOCIAL CARE,HAVEN SOCIAL CARE LTD,259.70,MEM LTS 65+,HOMECARE - SPOT,2102573281
10.10.2016,ADULT SOCIAL CARE,HAVEN SOCIAL CARE LTD,259.70,MEM LTS 65+,HOMECARE - SPOT,2102573283
10.10.2016,ADULT SOCIAL CARE,LONDON CARE PLC,374.50,OP - HOMECARE,HOMECARE - C&V,2102573244
10.10.2016,ADULT SOCIAL CARE,LONDON CARE PLC,333.33,OP - HOMECARE,HOMECARE - C&V,2102573249
10.10.2016,ADULT SOCIAL CARE,LONDON CARE PLC,543.32,OP - HOMECARE,HOMECARE - C&V,2102573251
10.10.2016,ADULT SOCIAL CARE,LONDON CARE PLC,971.14,OP - HOMECARE,HOMECARE - C&V,2102573261
10.10.2016,ADULT SOCIAL CARE,LONDON CARE PLC,"1,498.00",OP - HOMECARE,HOMECARE - C&V,2102573265
10.10.2016,ADULT SOCIAL CARE,YOUTH GRACES (UK) LTD,492.46,OP - HOMECARE,HOMECARE - SPOT,2102573267
10.10.2016,ADULT SOCIAL CARE,ARK HOME HEALTHCARE,"14,080.49",OP CARE PACKAGES,HOMECARE - IC,5902216602
10.10.2016,ADULT SOCIAL CARE,HAVEN SOCIAL CARE LTD,768.93,PHY LTS 18-64,HOMECARE - SPOT,2102573275
10.10.2016,ADULT SOCIAL CARE,HAVEN SOCIAL CARE LTD,296.78,PHY LTS 18-64,HOMECARE - SPOT,2102573277
10.10.2016,ADULT SOCIAL CARE,HAVEN SOCIAL CARE LTD,768.93,PHY LTS 18-64,HOMECARE - SPOT,2102573291
10.10.2016,ADULT SOCIAL CARE,HAVEN SOCIAL CARE LTD,296.78,PHY LTS 18-64,HOMECARE - SPOT,2102573293
10.10.2016,ADULT SOCIAL CARE,YOUTH GRACES (UK) LTD,256.35,PHY LTS 18-64,HOMECARE - SPOT,2102573314
10.10.2016,ADULT SOCIAL CARE,YOUTH GRACES (UK) LTD,259.70,PHY LTS 18-64,HOMECARE - SPOT,2102573315
10.10.2016,ADULT SOCIAL CARE,HEALTHCARE & TRANSPORT SERVICE,"34,932.10",PWLD DAY CARE (TRANSPORT),CAB FARES,5902216557
10.10.2016,ADULT SOCIAL CARE,ACCESS MOBILITY TRANSPORT LTD,"16,246.80",PWLD DAY CARE (TRANSPORT),CAB FARES,5902216591
10.10.2016,ADULT SOCIAL CARE,LONDON CARE PLC,263.36,PWLD HOME CARE IND,HOMECARE - C&V,2102573246
10.10.2016,ADULT SOCIAL CARE,LONDON CARE PLC,263.36,PWLD HOME CARE IND,HOMECARE - C&V,2102573254
10.10.2016,ASSET MANAGEMENT,M E HORSTEAD,780.00,ADAPTATIONS,OTHER R&M,5902216528
10.10.2016,ASSET MANAGEMENT,M E HORSTEAD,480.00,ADAPTATIONS,BUILDING R&M,5902216540
10.10.2016,ASSET MANAGEMENT,M C TECHNICIANS LTD,450.00,ADAPTATIONS,BUILDING R&M,5902216542
10.10.2016,ASSET MANAGEMENT,M E HORSTEAD,680.00,ADAPTATIONS,BUILDING R&M,5902216683
10.10.2016,ASSET MANAGEMENT,M E HORSTEAD,990.00,ADAPTATIONS,BUILDING R&M,5902216708
10.10.2016,ASSET MANAGEMENT,ANTHONY GOLD SOLICITORS,"5,000.00",DISREPAIR,BUILDING R&M,5902216505
10.10.2016,CENTRAL FUNCTIONS,VEOLIA ES (UK)LTD,"132,635.80",HEATING ACCOUNT,GAS,5902216577
10.10.2016,CENTRAL FUNCTIONS,EDF ENERGY PLC,803.00,HEATING ACCOUNT,ELECTRICITY,5902216578
10.10.2016,CENTRAL FUNCTIONS,EDF ENERGY PLC,312.58,HEATING ACCOUNT,ELECTRICITY,5902216579
10.10.2016,CENTRAL FUNCTIONS,CHARTERED INSTITUTE OF HOUSING,"10,000.00",HOUSING ACADEMY,TRAINING,5902216685
10.10.2016,CENTRAL FUNCTIONS,ROC SYSTEMS CONSULTING LTD,"1,425.00",SAP PAYROLL,CONSULTANTS SERVICES,5902216490
10.10.2016,CHIEF EXECUTIVE,TRANSPORT FOR LONDON,"2,000.00",CAPITAL PS (REGEN),CONSTR'N SUB CONTRACT - NON CERTIFICATED,5902216547
10.10.2016,CHIEF EXECUTIVE'S OFFICE,J C CONSULTANT SERVICES LTD,"8,000.00",CHIEF EXEC'S OFFICE,GRANTS,5902216482
10.10.2016,CHIEF EXECUTIVE'S OFFICE,J C CONSULTANT SERVICES LTD,"8,500.00",CHIEF EXEC'S OFFICE,GRANTS,5902216486
10.10.2016,CHIEF EXECUTIVE'S OFFICE,GOSNELLS LONDON MEAD,"2,006.63",YOUTH FUND EMPLOYMENT,GRANTS,2102573223
10.10.2016,CHILDREN AND ADULT,BOLT & HEEKS LIMITED,"165,809.42",CAPITAL PS (EDUCATION),CONSTRUCTION MAIN CONTRACT -CERTIFICATED,2102572526
10.10.2016,CHILDREN AND ADULT,REDACTED PERSONAL DATA,"1,643.06",CAPITAL PS (EDUCATION),CONSTRUCTION FEES  - EXTERNAL,2102573342
10.10.2016,CHILDREN'S SERVICES,MKJ&L SERVICES LTD,"4,620.00",ACPC  - SAFEGUARDING,CONSULTANTS SERVICES,5902215776
10.10.2016,CHILDREN'S SERVICES,BANYA FAMILY PLACEMENT AGENCY LTD,"1,978.29",AGENCY FOSTERING,EXTERNAL AGENCIES AND BODIES,5902216689
10.10.2016,CHILDREN'S SERVICES,KENT COUNTY COUNCIL - LASER,-536.63,BISHOPS HOUSE EARLY YEARS CENTRE,ELECTRICITY,5902216567
10.10.2016,CHILDREN'S SERVICES,MEGGS COSTOYA ATTFIELD LTD,"6,463.95",BUSINESS APPLICATIONS,SOFTWARE,5902215917
10.10.2016,CHILDREN'S SERVICES,EDF ENERGY PLC,"1,119.15",CAMBERWELL GROVE EARLY YEARS CENTRE,ELECTRICITY,5902216646
10.10.2016,CHILDREN'S SERVICES,CARE O LINE,458.30,CONTACT,OTHER PAYMENTS FOR CLIENTS,5902216696
10.10.2016,CHILDREN'S SERVICES,CARE O LINE,441.75,CONTACT,OTHER PAYMENTS FOR CLIENTS,5902216699
10.10.2016,CHILDREN'S SERVICES,REDACTED PERSONAL DATA,300.00,DISABILITY & HIV,ADDITIONAL PAYMENTS TO AGENCIES/CARERS,2102573299
10.10.2016,CHILDREN'S SERVICES,REDACTED PERSONAL DATA,300.00,DISABILITY & HIV,ADDITIONAL PAYMENTS TO AGENCIES/CARERS,2102573306
10.10.2016,CHILDREN'S SERVICES,REDACTED PERSONAL DATA,417.19,DISABILITY & HIV,PAYMENTS TO CARERS,2102573307
10.10.2016,CHILDREN'S SERVICES,ACCESS MOBILITY TRANSPORT LTD,"1,624.00",EDUCATION OTHERWISE,EXTERNAL AGENCIES AND BODIES,5902216573
10.10.2016,CHILDREN'S SERVICES,CANADA WATER CULTURE SPACE,591.53,GENERAL CPD,HIRE OF ROOMS/HALLS,5902216586
10.10.2016,CHILDREN'S SERVICES,JOHN GUEST SAFEGUARDING LIMITED,275.00,GOVERNOR TRAINING,CONSULTANTS SERVICES,5902216508
10.10.2016,CHILDREN'S SERVICES,HEALTHCARE & TRANSPORT SERVICE,"119,876.19",HOME 2 SCHOOL TRANSPORT,CAB FARES,5902216456
10.10.2016,CHILDREN'S SERVICES,PULSE HEALTHCARE LTD,299.00,HOME 2 SCHOOL TRANSPORT,AGENCY STAFF,5902216667
10.10.2016,CHILDREN'S SERVICES,HEALTHCARE & TRANSPORT SERVICE,"41,472.00",HOME 2 SCHOOL TRANSPORT - ESCORTS,EXTERNAL AGENCIES AND BODIES,5902216454
10.10.2016,CHILDREN'S SERVICES,REDACTED PERSONAL DATA,"2,000.00",LEAVING CARE GRANT,OTHER PAYMENTS FOR CLIENTS,2102573305
10.10.2016,CHILDREN'S SERVICES,THE INSTITUTE FOR ARTS IN THERAPHY,"7,699.00",LOCALITIES INCLUSION TEAM,TRAINING,5902216359
10.10.2016,CHILDREN'S SERVICES,JOHN RUSKIN PRIMARY SCHOOL,"1,200.00",NEWLY QUALIFIED TEACHERS,TRAINING,5902216713
10.10.2016,CHILDREN'S SERVICES,THAMES WATER UTILITIES LTD,470.06,PLAY SERVICE MANAGEMENT & ADMIN,WATER,5902216620
10.10.2016,CHILDREN'S SERVICES,MORGAN SINDALL PLC,"46,084.92",PROPERTY MANAGEMENT - 5015257,CONSULTANTS SERVICES,5902216631
10.10.2016,CHILDREN'S SERVICES,BLOOMFIELD LEARNING CENTRE,400.00,PUPIL PREMIUM CURRENT YEAR,EXTERNAL AGENCIES AND BODIES,5902216637
10.10.2016,CHILDREN'S SERVICES,UNIVERSITY OF KENT,"9,000.00",SCHOLARSHIP SCHEME,EXTERNAL AGENCIES AND BODIES,5902216561
10.10.2016,CHILDREN'S SERVICES,PULSE HEALTHCARE LTD,897.00,SEN TRANSPORT,STATEMENTED FEES,5902216522
10.10.2016,CHILDREN'S SERVICES,HILLCREST AUTISM SERVICES LTD,"14,844.00",SEN TRANSPORT,STATEMENTED FEES,5902216569
10.10.2016,CHILDREN'S SERVICES,RESOURCES FOR AUTISM,558.00,SPECIALIST CARE,SECTION 17 PAYMENTS TO AGENCIES/CARERS,5902216694
10.10.2016,CHILDREN'S SERVICES,CARE O LINE,426.25,SPECIALIST CARE,SECTION 17 PAYMENTS TO AGENCIES/CARERS,5902216701
10.10.2016,CHILDREN'S SERVICES,FOCUSED HEALTHCARE LTD,"3,884.40",SPECIALIST CARE,SECTION 17 PAYMENTS TO AGENCIES/CARERS,5902216703
10.10.2016,CHILDREN'S SERVICES,REDACTED PERSONAL DATA,"1,250.00",STAYING PUT,PAYMENTS TO CARERS,2102573308
10.10.2016,CHILDREN'S SERVICES,RED R DESIGN,375.00,YOUTH MANAGEMENT AND ADMIN,MARKETING & PUBLICITY SERVICES,5902216714
10.10.2016,COMMUNITIES,RED R DESIGN,"1,045.00",COMM PARTICIP TEAM,MARKETING & PUBLICITY SERVICES,5902216511
10.10.2016,COMMUNITIES,ELMINGTON ESTATE T&RA,"4,475.00",JOINT SECURITY INITIATIVES,GRANTS,5902216488
10.10.2016,COMMUNITIES,UNWIN AND FRIARY T&RA,"5,000.00",JOINT SECURITY INITIATIVES,GRANTS,5902216625
